Workbook

Sheet деканаты
A1: Факультет | D1: подпись декана | F1: Должность | G1: Декан факультета | L1: Специалист по УМР
A2: 2 | B2: Экономический | C2: Экфак | D2: Н.А. Середа | E2: экономического | F2: И.о. декана | G2: Середа | H2: Надежда | I2: Александровна | K2: доцент | L2: О.В. Сосова | M2: Сосова | N2: Ольга | O2: Васильевна
A3: 3 | B3: Архитектурно-строительный | C3: АСФ | D3: С.В. Цыбакин | E3: архитектурно-строительного | F3: Декан | G3: Цыбакин | H3: Сергей | I3: Валерьевич | J3: к.т.н. | K3: доцент | L3: ..
A4: 4 | B4: Агробизнеса | C4: Агробизнес | D4: Ю.В. Панкратов | E4: агробизнеса | F4: Декан | G4: Панкратов | H4: Юрий | I4: Владимирович | J4: к.сх.н. | K4: доцент | L4: ..
A5: 5 | B5: Ветеринарной медицины и зоотехнии | C5: ВМиЗ | D5: Н.Ю. Парамонова | E5: ветеринарной медицины и зоотехнии | F5: Декан | G5: Парамонова | H5: Наталья | I5: Юрьевна | J5: к.в.н. | K5: доцент | L5: ..
A6: 6 | B6: Инженерно-технологический | C6: ИТФ | D6: С.А. Полозов | E6: инженерно-технологического | F6: Декан | G6: Полозов | H6: Сергей | I6: Александрович | J6: к.т.н. | K6: доцент | L6: А.А. Шашкова | M6: Шашкова | N6: Анна | O6: Андреевна
A7: 7 | B7: Электроэнергетический | C7: ЭЭФ | D7: А.В. Рожнов | E7: электроэнергетического | F7: Декан | G7: Рожнов | H7: Александр | I7: Валентинович | J7: к.т.н. | K7: доцент | L7: ..

Sheet Предметы
A1: 1 | B1: 2 | C1: 3 | D1: 4 | E1: 5 | F1: 6 | G1: 7 | H1: 8 | I1: 9 | J1: 10 | K1: 11 | L1: 12 | M1: 13 | N1: 14 | O1: 15 | P1: 16 | Q1: 17 | R1: 18 | S1: 19 | T1: 20 | U1: 21 | V1: 22 | W1: 23 | X1: 24 | Y1: 25 | Z1: 26 | AA1: 27 | AB1: 28 | AC1: 29 | AD1: 30 | AE1: 31 | AF1: 32 | AG1: 33 | AH1: 34 | AI1: 35 | AJ1: 36 | AK1: 37 | AL1: 38 | AM1: 39 | AN1: 40 | AO1: 41 | AP1: 42 | AQ1: 43 | AR1: 44 | AS1: 45 | AT1: 46 | AU1: 47 | AV1: 48 | AW1: 49 | AX1: 50 | AY1: 51 | AZ1: 52 | BA1: 53 | BB1: 54 | BC1: 55 | BD1: 56 | BE1: 57 | BF1: 58 | BG1: 59 | BH1: 60 | BI1: 61 | BJ1: 62 | BK1: 63 | BL1: 64 | BM1: 65 | BN1: 66 | BO1: 67 | BP1: 68 | BQ1: 69 | BR1: 70 | BS1: 71 | BT1: 72 | BU1: 73 | BV1: 74 | BW1: 75 | BX1: 76 | BY1: 77 | BZ1: 78 | CA1: 79 | CB1: 80 | CC1: 81 | CD1: 1900-03-22 | CE1: 83 | CF1: 84 | CG1: 85 | CH1: 86 | CI1: 87 | CJ1: 88 | CK1: 89 | CL1: 90 | CM1: 91 | CN1: 92 | CO1: 93 | CP1: 94 | CQ1: 95 | CR1: 96 | CS1: 97 | CT1: 98 | CU1: 99 | CV1: 100 | CW1: 101 | CX1: 102 | CY1: 103 | CZ1: 104 | DA1: 105 | DB1: 106 | DC1: 107 | DD1: 108 | DE1: 109 | DF1: 110 | DG1: 111 | DH1: 112 | DI1: 113 | DJ1: 114 | DK1: 115 | DL1: 116 | DM1: 117 | DN1: 118 | DO1: 119 | DP1: 120 | DQ1: 121 | DR1: 122 | DS1: 123 | DT1: 124 | DU1: 125 | DV1: 126 | DW1: 127 | DX1: 128 | DY1: 129 | DZ1: 130 | EA1: 131 | EB1: 132 | EC1: 133 | ED1: 134 | EE1: 135 | EF1: 136 | EG1: 137 | EH1: 138 | EI1: 139 | EJ1: 140 | EK1: 141 | EL1: 142 | EM1: 143 | EN1: 144 | EO1: 145 | EP1: 146 | EQ1: 147 | ER1: 148 | ES1: 149 | ET1: 150 | EU1: 151 | EV1: 152 | EW1: 153 | EX1: 154 | EY1: 155 | EZ1: 156 | FA1: 157 | FB1: 158 | FC1: 159 | FD1: 160 | FE1: 161 | FF1: 162 | FG1: 163 | FH1: 164 | FI1: 165 | FJ1: 166 | FK1: 167 | FL1: 168 | FM1: 169 | FN1: 170 | FO1: 171 | FP1: 172 | FQ1: 173 | FR1: 174 | FS1: 175 | FT1: 176 | FU1: 177 | FV1: 178 | FW1: 179 | FX1: 180 | FY1: 181 | FZ1: 182 | GA1: 183 | GB1: 184 | GC1: 185 | GD1: 186 | GE1: 187 | GF1: 188 | GG1: 189 | GH1: 190 | GI1: 191 | GJ1: 192 | GK1: 193 | GL1: 194 | GM1: 195 | GN1: 196 | GO1: 197 | GP1: 198 | GQ1: 199 | GR1: 200 | GS1: 201 | GT1: 202 | GU1: 203 | GV1: 204 | GW1: 205 | GX1: 206 | GY1: 207 | GZ1: 208 | HA1: 209 | HB1: 210 | HC1: 211 | HD1: 212 | HE1: 213 | HF1: 214 | HG1: 215 | HH1: 216 | HI1: 217 | HJ1: 218 | HK1: 219 | HL1: 220 | HM1: 221 | HN1: 222 | HO1: 223 | HP1: 224 | HQ1: 225 | HR1: 226 | HS1: 227 | HT1: 228 | HU1: 229 | HV1: 230 | HW1: 231 | HX1: 232 | HY1: 233 | HZ1: 234 | IA1: 235 | IB1: 236 | IC1: 237 | ID1: 238 | IE1: 239 | IF1: 240 | IG1: 241 | IH1: 242 | II1: 243 | IJ1: 244 | IK1: 245 | IL1: 246 | IM1: 247 | IN1: 248 | IO1: 249 | IP1: 250 | IQ1: 251 | IR1: 252 | IS1: 253 | IT1: 254 | IU1: 255 | IV1: 256 | IW1: 257 | IX1: 258 | IY1: 259 | IZ1: 260 | JA1: 261 | JB1: 262 | JC1: 263 | JD1: 264 | JE1: 265 | JF1: 266 | JG1: 267
A2: 1 | CC2: 2 | CF2: 2 | CI2: 2 | CL2: 2 | CO2: 2 | CR2: 2 | CU2: 2 | CX2: 2 | DA2: 3 | DD2: 3 | DG2: 3 | DJ2: 3 | DM2: 3 | DP2: 4 | DS2: 4 | DV2: 4 | DY2: 4 | EB2: 4 | EE2: 4 | EH2: 4 | EK2: 4 | EN2: 4 | EQ2: 5 | ET2: 5 | EW2: 5 | EZ2: 5 | FC2: 5 | FF2: 5 | FI2: 6 | FL2: 6 | FO2: 6 | FR2: 6 | FU2: 6 | FX2: 6 | GA2: 6 | GD2: 6 | GG2: 7 | GJ2: 7 | GM2: 7 | GP2: 7 | GS2: 7 | GV2: 8 | GY2: 8 | HB2: 8 | HE2: 8 | HH2: 8 | HK2: 8 | HN2: 8 | HQ2: 8 | HT2: 9 | HW2: 9 | HZ2: 9 | IC2: 9 | IF2: 9 | II2: 9 | IL2: 9 | IO2: 9 | IR2: 9 | IU2: 9 | IX2: 9 | JA2: 9 | JD2: 10 | JG2: 10
CC3: 216 | CF3: 108 | CI3: 108 | CL3: 72 | CO3: 216 | CR3: 252 | CU3: 360 | CX3: 216 | DA3: 97 | DD3: 72 | DG3: 180 | DJ3: 144 | DM3: 136 | DP3: 180 | DS3: 119 | DV3: 152 | DY3: 216 | EB3: 144 | EE3: 72 | EK3: 72 | EQ3: 108 | ET3: 144 | EW3: 144 | EZ3: 144 | FC3: 216 | FF3: 144 | FI3: 144 | FL3: 72 | FO3: 144 | FR3: 252 | FX3: 288 | GG3: 144 | GJ3: 160 | GM3: 180 | GS3: 144 | GV3: 144 | GY3: 200 | HE3: 180 | HH3: 180 | HK3: 144 | HT3: 144 | HW3: 108 | HZ3: 144 | IC3: 144 | II3: 144 | IL3: 108 | IO3: 180 | IR3: 180 | IU3: 108 | IX3: 108 | JA3: 72
A4: 0 | B4: Фамилия | C4: Имя | D4: Отчество | E4: ФИО | F4: ФИО | G4: Фамилия | H4: Имя | I4: Отчество | J4: Дата | K4: Место | L4: Гражданство | M4: Пол | N4: Что окончил(а) | O4: Год | P4: Семейное | R4: Трудовая книжка | U4: Паспорт | AC4: Профиль / специализация | AD4: Срок обучения | AE4: Квалификация | AF4: Приказ | AG4: Дата | AH4: вид зачисления | AI4: контракта /договора | AK4: Переведен на бюджет | AM4: Отчислен | AP4: Восстановлен | AS4: Академический отпуск | AX4: Переводной приказ 1 курс | AZ4: Переводной приказ 2 курс | BB4: Переводной приказ 3 курс | BD4: Переводной приказ 4 курс | BF4: Переводной приказ 5 курс | BH4: Переводной приказ 6 курс | BJ4: допуск к защите дипломного проекта | BL4: гос. экзамен | BR4: Диплом | CA4: Курс | CB4: Группа | CC4: 1курс | DA4: 2 курс | EQ4: 3 курс | GG4: 4 курс | HT4: 5 курс | JL4: Оценки по предметам
A5: 0 | F5: Дател. Падеж | G5: Дател. Падеж | H5: Дател. Падеж | I5: Дател. Падеж | J5: рождения | K5: рождения | O5: окончания | P5: положение | Q5: Адрес места жительства | R5: Номер | S5: Дата выдачи | T5: кем выдана | U5: серия | V5: Номер | W5: Дата выдачи | X5: кем выдан | Y5: 6ной | Z5: Факультет | AA5: Направление /специальность | AI5: договора | AJ5: Дата | AK5: договора | AL5: Дата | AM5: Приказ | AN5: Дата | AO5: Причина отчисления | AP5: Приказ | AQ5: Дата | AR5: Причина востановления | AS5: Приказ | AT5: Дата | AU5: Причина | AV5: с даты | AW5: по дату | AX5: Приказ | AY5: Дата | AZ5: Приказ | BA5: Дата | BB5: Приказ | BC5: Дата | BD5: Приказ | BE5: Дата | BF5: Приказ | BG5: Дата | BH5: Приказ | BI5: Дата | BJ5: Приказ | BK5: Дата | BL5: Название экзамена | BM5: Дата | BN5: оценка | BO5: Название экзамена | BP5: Дата | BQ5: оценка | BR5: Тема | BS5: оценка | BT5: протокола | BU5: Дата защиты | BV5: Отличие | BW5: Регистр. | BX5: Серия | BY5: Номер | BZ5: Дата выдачи | CC5: Делопроизводство и документооборот | CF5: Введение в профессию и основы научных исследований | CI5: История | CL5: Психология | CO5: Математический анализ | CR5: Линейная алгебра | CU5: Информатика и информационное обеспечение бухгалтерского учета | CX5: Микроэкономика | DA5: Иностранный язык (З) | DD5: Социология | DG5: Политология | DJ5: Теория вероятностей и математическая статистика | DM5: Макроэкономика(З) | DP5: Эконометрика | DS5: Иностранный язык | DV5: Макроэкономика | DY5: Статистика | EB5: Менеджмент | EE5: Физическая культура и спорт | EH5: Общая физическая подготовка | EK5: Деловые коммуникации | EN5: Практика по ПППУ и Н | EQ5: Философия | ET5: Право | EW5: Регионалистика | EZ5: Информационные технологии и базы данных в бухгалтерском учете | FC5: Инструментальные средства программирования бухгалтерских операций | FF5: Мировая экономика и международные экономические отношения | FI5: Методы оптимальных решений | FL5: Методы принятия управленческих решений в сфере бухгалтерского учета | FO5: Финансы | FR5: Бухгалтерский учет и анализ | FU5: Бухгалтерский учет и анализ (КР) | FX5: Моделирование социально-экономических систем | GA5: Моделирование социально -экономических систем (КП) | GD5: Практика по ППУ и ОПД | GG5: Корпоративные финансы | GJ5: Бухгалтерский финансовый учет (з) | GM5: Экономика организаций (предприятий) | GP5: Экономика организаций (предприятий) (КР) | GS5: Планирование на предприятии | GV5: Деньги, кредит, банки | GY5: Бухгалтерский финансовый учет | HB5: Бухгалтерский финансовый учет (КР) | HE5: Бухгалтерский управленческий учет | HH5: Бухгалтерская (финансовая) отчетность | HK5: Аудит | HN5: Аудит (КР) | HQ5: Производственная (технологическая) практика | HT5: Безопасность жизнедеятельности | HW5: Маркетинг | HZ5: Макроэкономическое планирование и прогнозирование | IC5: Комплексный анализ хозяйственной деятельности | IF5: Комплексный анализ хозяйственной деятельности (КР) | II5: Лабораторный практикум по бухгалтерскому учету | IL5: Международные стандарты финансовой отчетности | IO5: Бухгалтерский учет на предприятиях малого бизнеса | IR5: Логистика | IU5: Налоги и налогообложение | IX5: Анализ финансовой отчетности | JA5: Практикум 1С:Бухгалтерия | JD5: НИР | JG5: Преддипломная практика | JJ5: Средний балл | JL5: из них с оценками 3 | JM5: из них с оценками 4 | JN5: из них с оценками 5 | JO5: из них с 6ом | JP5: итого предметов | JQ5: Часы всего | JR5: из них аудиторных | JS5: из них с оценками 3 | JT5: из них с оценками 4 | JU5: из них с оценками 5 | JW5: Количество долгов
A6: =A5+1 -> 1 | B6: Агаева | C6: Гульнара | D6: Фейрузовна | E6: =CONCATENATE(B6," ",LEFT(C6,1),". ",LEFT(D6,1),".") -> Агаева Г. Ф. | F6: =DativeCase(CONCATENATE(B6," ", C6," ",D6)) ->  | G6: Агаевой | H6: Гульнаре | I6: Фейрузовне | J6: 1996-02-03 | K6: п. Ветлужский г. Шарья Костромской обл. | L6: РФ | M6: ж | N6: МБОУ СОШ 21 г. Шарья | O6: 2013 | P6: не замужем | Q6: Костромская обл., г. Шарья, ул. Адмирала Виноградова, д. 17, кв. 1 | Y6: 13131 | Z6: Экономический | AA6: 38.03.01 | AB6: Экономика | AC6: Бухгалтерский учет, анализ и аудит | AD6: 5 лет | AE6: БАКАЛАВР | AF6: 2-552 | AG6: 2013-08-30 | AH6: по договору с полным возмещение затрат | AI6: 000001013 | AJ6: 2013-08-19 | AS6: 2-233 | AT6: 2018-04-02 | AU6: по семейным обстоятельствам | AV6: 2018-03-23 | AW6: 2018-03-22 | AX6: 2-532 | AY6: 2014-09-01 | AZ6: 2-571 | BA6: 2015-09-01 | BB6: 2-561 | BC6: 2016-09-01 | CA6: 5 | CB6: АО | CC6: 4 | CD6: 2017-11-01 | CF6: 6 | CG6: 2017-11-01 | CI6: 4 | CJ6: 29.05.2014 | CL6: 6 | CM6: 03.06.2014 | CO6: 3 | CP6: 25.12.2015 | CR6: 3 | CS6: 03.06.2014 | CU6: 4 | CV6: 30.05.2014 | CX6: 3 | CY6: 26.05.2015 | DA6: 6 | DB6: 24.12.2014 | DD6: 6 | DE6: 23.12.2014 | DG6: 3 | DH6: 25.12.2014 | DJ6: 3 | DK6: 25.12.2014 | DM6: 6 | DN6: 26.06.2015 | DP6: 3 | DQ6: 29.06.2015 | DV6: 3 | DW6: 26.06.2015 | EB6: 3 | EC6: 07.12.2015 | EE6: 6 | EF6: 21.05.2014 | EQ6: 6 | ER6: 01.11.2015 | ET6: 4 | EU6: 02.12.2015 | EW6: 5 | EX6: 19.11.2015 | EZ6: 3 | FA6: 27.11.2015 | FF6: 4 | FG6: 23.11.2015 | FL6: 6 | FM6: 05.06.2016 | FX6: 3 | FY6: 05.06.2016 | GA6: 3 | GB6: 06.04.2017 | GF6: ООО "МедТехникаПоинт" Ленинградской обл. | GG6: 3 | GH6: 01.12.2016 | GJ6: 6 | GK6: 2018-03-13 | GL6: 522 | GV6: 4 | GW6: 11.04.2017 | GY6: 3 | GZ6: 11.04.2017 | HE6: 3 | HF6: 11.04.2017 | HH6: 3 | HI6: 11.04.2017 | HS6: ООО "МедТехникаПоинт" Ленинградская обл. | HT6: 4 | HU6: 01.11.2017 | HZ6: 3 | IA6: 01.11.2017 | II6: 3 | IJ6: 2018-03-22 | IK6: 565 | IL6: 3 | IM6: 01.11.2017 | IO6: 3 | IP6: 2018-03-20 | IQ6: 555 | IR6: 4 | IS6: 2018-03-13 | IT6: 521 | JA6: 6 | JB6: 01.11.2017 | JF6: ФГБОУ ВО Костромская ГСХА, кафедра бухгалтерский учет, анализ и аудит | JI6: ООО "Абсолют" г. Санкт-Петербург Ленинградской обл. | JJ6: =(JL6*3+JM6*4+JN6*5)/50 -> 1.88 | JL6: =COUNTIF(CC6:JG6,3) -> 19 | JM6: =COUNTIF(CC6:JG6,4) -> 8 | JN6: =COUNTIF(CC6:JG6,5) -> 1 | JO6: =COUNTIF(CC6:JG6,6) -> 10 | JP6: =SUM(JL6:JN6) -> 28 | JQ6: =SUMIF(CC6:JG6,">0",$CC$3:$JG$3) -> 5749 | JR6: =INT(JQ6/8+0.5) -> 719
A7: =A6+1 -> 2 | B7: Восканян | C7: Ирина | D7: Константиновна | E7: Восканян И. К. | G7: Восканян | H7: Ирине | I7: Константиновне | J7: 1994-03-10 | K7: г. Москва | L7: РФ | M7: ж | N7: МБОУ гимназия 4 г. Озеры Московской обл. | O7: 2012 | P7: замужем | Q7: г. Кострома, ул. Ленина, д. 100б, кв. 32 | Y7: 13132 | Z7: Экономический | AA7: 38.03.01 | AB7: Экономика | AC7: Бухгалтерский учет, анализ и аудит | AD7: 5 лет | AE7: БАКАЛАВР | AF7: 2-552 | AG7: 2013-08-30 | AH7: по договору с полным возмещение затрат | AI7: 000001055 | AJ7: 2013-08-20 | AS7: 2-448 | AT7: 2018-05-31 | AU7: по семейным обстоятельствам | AV7: 2018-05-18 | AW7: 2019-05-17 | AX7: 2-532 | AY7: 2014-09-01 | AZ7: 2-571 | BA7: 2015-09-01 | BB7: 2-561 | BC7: 2016-09-01 | BD7: 2-703 | BE7: 2017-09-01 | BR7: Бухгалтерский учет и анализ продаж ювелирных изделий (на примере ИП Филипповой О.В. г. Кострома) | CA7: 5 | CB7: АО | CC7: 4 | CD7: 2017-11-01 | CF7: 6 | CG7: 2017-11-01 | CI7: 4 | CJ7: 21.12.2013 | CL7: 6 | CM7: 16.01.2014 | CO7: 3 | CP7: 18.06.2014 | CR7: 3 | CS7: 24.01.2014 | CU7: 5 | CV7: 27.06.2014 | CX7: 4 | CY7: 26.06.2014 | DA7: 6 | DB7: 15.09.2015 | DD7: 6 | DE7: 17.09.2015 | DG7: 4 | DH7: 25.12.2014 | DJ7: 4 | DK7: 26.12.2014 | DM7: 6 | DN7: 27.12.2014 | DP7: 5 | DQ7: 27.04.2015 | DS7: 4 | DT7: 20.09.2016 | DV7: 5 | DW7: 21.04.2015 | DY7: 3 | DZ7: 03.07.2015 | EB7: 4 | EC7: 25.04.2015 | EE7: 6 | EF7: 24.04.2014 | EN7: 5 | EO7: 2016-09-09 | EP7: ФГБОУ ВО Костромская ГСХА, кафедра экономической кибернетики | EQ7: 6 | ER7: 03.12.2015 | ET7: 4 | EU7: 02.12.2015 | EW7: 5 | EX7: 31.08.2016 | EZ7: 3 | FA7: 29.01.2016 | FC7: 4 | FD7: 12.09.2016 | FF7: 5 | FG7: 31.08.2016 | FI7: 3 | FJ7: 01.05.2016 | FL7: 6 | FM7: 05.06.2016 | FO7: 5 | FP7: 04.06.2016 | FR7: 5 | FS7: 04.06.2016 | FU7: 3 | FV7: 04.06.2016 | FW7: История развития бухгалтерского учёта | FX7: 4 | FY7: 02.03.2016 | GA7: 4 | GB7: 2016-06-04 | GC7: Оптимизация рационов кормления птицы | GG7: 5 | GH7: 10.12.2016 | GJ7: 6 | GK7: 10.12.2016 | GM7: 5 | GN7: 18.10.2017 | GP7: 3 | GQ7: 2018-05-16 | GR7: Ценовая политика организации (предприятия) | GS7: 4 | GT7: 10.12.2016 | GV7: 5 | GW7: 11.04.2017 | HD7: Учет денежных средств | HE7: 5 | HF7: 11.04.2017 | HH7: 4 | HI7: 11.04.2017 | HK7: 4 | HL7: 11.04.2017 | HN7: 4 | HO7: 08.06.2017 | HP7: Завершение аудита и аудиторское заключение | HS7: ООО Такос Стиль г. Кострома | HT7: 3 | HU7: 2017-11-01 | HV7: Z-7679499 | HW7: 5 | HX7: 2018-05-16 | HY7: 861 | HZ7: 4 | IA7: 2018-04-17 | IB7: 676 | IC7: 5 | ID7: 2017-11-01 | IE7: Z-7679523 | IH7: Аналииз общего уровня экономического развития предприятия | II7: 4 | IJ7: 2018-04-16 | IK7: 662 | IL7: 4 | IM7: 2018-04-16 | IN7: 666 | IO7: 5 | IP7: 2017-11-01 | IQ7: Z-7679503 | IR7: 5 | IS7: 2017-11-01 | IT7: Z-7679715 | IU7: 6 | IV7: 2018-05-16 | IW7: 860 | IX7: 6 | IY7: 2017-11-01 | IZ7: Z-7679562 | JA7: 6 | JB7: 2017-11-01 | JC7: Z-7679747 | JF7: ФГБОУ ВО Костромская ГСХА, кафедра бухгалтерский учет, анализ и аудит | JI7: ООО "Гарант-займ" г. Кострома Костромской обл. | JJ7: 3.52 | JL7: 8 | JM7: 18 | JN7: 16 | JO7: 12 | JP7: 42 | JQ7: 7576 | JR7: 947
A8: 3 | B8: Старикова (Крутикова) | C8: Татьяна | D8: Сергеевна | E8: Старикова (Крутикова) Т. С. | G8: Стариковой | H8: Татьяне | I8: Сергеевне | J8: 1993-05-18 | K8: с. Георгиевское Межевского р-на Костромской обл. | L8: РФ | M8: ж | N8: Муниципальное общеобразовательное учреждение Межевская средняя общеобразовательная школа Межевского муниципального района Костромской области с. Георгиевское | O8: 2011 | P8: замужем | Q8: Костромская обл., г. Шарья, ул. Лугова, д. 11, кв. 2 | Y8: 11476 | Z8: Экономический | AA8: 38.03.01 | AB8: Экономика | AC8: Бухгалтерский учет, анализ и аудит | AD8: 5 лет | AE8: БАКАЛАВР | AF8: 2-371 | AG8: 2011-08-17 | AH8: по договору с полным возмещение затрат | AI8: 196-2011 | AJ8: 2011-08-12 | AS8: 2-803 2-391 | AT8: 26.12.2016 18.05.2018 | AU8: по состоянию здоровья по уходу за ребенком | AV8: 17.11.2016 27.04.2018 | AW8: 16.11.2017 26.04.2019 | AX8: 2-648 | AY8: 2012-10-01 | AZ8: 2-554 | BA8: 2013-08-30 | BB8: 2-571 | BC8: 2015-09-01 | BD8: 2-561 | BE8: 2016-09-01 | BR8: Бухгалтерский учет и анализ затрат на производство зерна в ООО «Минское» Костромского района Костромской области | CA8: 5 | CB8: АО | CC8: 3 | CD8: 2017-11-01 | CF8: 6 | CG8: 2017-11-01 | CI8: 3 | CJ8: п/зач | CL8: 6 | CM8: п/зач | CO8: 3 | CP8: п/зач | CR8: 3 | CS8: 02.11.2015 | CU8: 3 | CV8: 01.12.2015 | CX8: 3 | CY8: п/зач | DA8: 6 | DB8: п/зач | DD8: 6 | DE8: п/зач | DG8: 3 | DH8: п/зач | DJ8: 3 | DK8: 30.10.2015 | DM8: 6 | DN8: п/зач | DP8: 4 | DQ8: 19.04.2013 | DS8: 3 | DT8: 09.12.2014 | DV8: 3 | DW8: п/зач | DY8: 4 | DZ8: 20.04.2013 | EB8: 4 | EC8: 23.12.2015 | EE8: 6 | EF8: п/зач | EN8: 3 | EO8: п/зач | EQ8: 6 | ER8: 03.12.2013 | ET8: 4 | EU8: 09.12.2013 | EW8: 3 | EX8: 05.12.2013 | EZ8: 3 | FA8: 20.11.2015 | FF8: 3 | FG8: 04.12.2013 | FL8: 6 | FM8: 25.11.2015 | FR8: 3 | FS8: 26.10.2015 | FU8: 3 | FV8: 26.10.2015 | FX8: 3 | FY8: 22.12.2015 | GG8: 3 | GH8: 08.12.2014 | GM8: 4 | GN8: 14.12.2014 | GP8: 3 | GQ8: 16.12.2014 | GS8: 3 | GT8: 16.12.2014 | GV8: 3 | GW8: 22.12.2014 | HE8: 3 | HF8: 30.11.2015 | HT8: 3 | HU8: п/зач | HW8: 4 | HX8: 01.11.2017 | IC8: 3 | ID8: 01.11.2017 | IL8: 4 | IM8: 01.11.2017 | IO8: 3 | IP8: 01.11.2017 | IR8: 4 | IS8: 01.11.2017 | IU8: 6 | IV8: 02.11.2016 | IX8: 6 | IY8: 01.11.2017 | JF8: ФГБОУ ВО Костромская ГСХА, кафедра бухгалтерский учет, анализ и аудит | JI8: OOO "Минское" Костромского р-на Костромской обл. | JJ8: 2.14 | JL8: 25 | JM8: 8 | JN8: 0 | JO8: 10 | JP8: 33 | JQ8: 6228 | JR8: 779
A9: 4 | B9: Будкова | C9: Ольга | D9: Андреевна | E9: Будкова О. А. | G9: Будковой | H9: Ольге | I9: Андреевне | J9: 1996-02-06 | K9: г. Кострома | L9: РФ | M9: ж | N9: МБОУ г. Костромы СОШ 6 | O9: 2014 | P9: не замужем | Q9: г. Кострома, ул. Малышковская, д. 74, кв. 32 | Y9: 14102 | Z9: Экономический | AA9: 38.03.01 | AB9: Экономика | AC9: Бухгалтерский учет, анализ и аудит | AD9: 5 лет | AE9: БАКАЛАВР | AF9: 2-525 | AG9: 2014-08-21 | AH9: по договору с полным возмещение затрат | AI9: 000002774 | AJ9: 2014-08-06 | AX9: 2-571 | AY9: 2015-09-01 | AZ9: 2-561 | BA9: 2016-09-01 | BB9: 2-703 | BC9: 2017-09-01 | CA9: 5 | CB9: 253z | CF9: 6 | CG9: 2018-04-13 | CI9: 3 | CJ9: 01.06.2015 | CL9: 6 | CM9: 02.06.2015 | CO9: 3 | CP9: 02.06.2015 | CR9: 3 | CS9: 06.06.2015 | CU9: 4 | CV9: 30.05.2015 | CX9: 3 | CY9: 05.06.2015 | DA9: 6 | DB9: 23.12.2015 | DD9: 6 | DE9: 22.12.2015 | DG9: 5 | DH9: 26.12.2015 | DJ9: 3 | DK9: 25.12.2015 | DM9: 6 | DN9: 23.12.2015 | DP9: 3 | DQ9: 27.04.2016 | DS9: 3 | DT9: 27.04.2016 | DV9: 4 | DW9: 13.04.2016 | DY9: 4 | DZ9: 25.04.2016 | EB9: 4 | EC9: 21.04.2016 | EE9: 6 | EF9: 22.05.2015 | EQ9: 6 | ER9: 01.12.2016 | ET9: 4 | EU9: 01.12.2016 | EW9: 3 | EX9: 01.12.2016 | EZ9: 3 | FA9: 01.12.2016 | FC9: 3 | FD9: 01.12.2016 | FF9: 3 | FG9: 24.11.2016 | FI9: 3 | FJ9: 03.06.2017 | FL9: 6 | FM9: 03.06.2017 | FO9: 3 | FP9: 03.06.2017 | FR9: 3 | FS9: 03.06.2017 | FU9: 3 | FV9: 03.06.2017 | FX9: 4 | FY9: 03.06.2017 | GA9: 3 | GB9: 03.06.2017 | GG9: 4 | GH9: 06.12.2017 | GJ9: 6 | GK9: 2018-04-03 | GL9: 599 | GM9: 3 | GN9: 06.12.2017 | GP9: 4 | GQ9: 06.12.2017 | GS9: 4 | GT9: 06.12.2017 | GV9: 4 | GW9: 2018-04-13 | GX9: 7729558 | GY9: 3 | GZ9: 2018-04-13 | HA9: 7729519 | HB9: 4 | HC9: 2018-04-13 | HD9: Учет собственного капитала | HE9: 3 | HF9: 2018-04-13 | HG9: 7729504 | HH9: 4 | HI9: 2018-04-13 | HJ9: 7729513 | HK9: 4 | HL9: 2018-04-13 | HM9: 7729511 | HN9: 4 | HO9: 2018-04-13 | HP9: Планирование аудита | HS9: ООО "Мечта" Костромского р-на Костромской обл. | IH9: 0
A10: 5 | B10: Ваваева | C10: Ольга | D10: Алексеевна | E10: Ваваева О. А. | G10: Ваваевой | H10: Ольге | I10: Алексеевне | J10: 1987-12-11 | K10: д. Ефино Макарьевского р-на Костромской обл. | L10: РФ | M10: ж | N10: ГОУ НПО Профессиональный лицей 29 | O10: 2007 | P10: замужем | Q10: г. Кострома, ул. Войкова, д. 40, кв.133 | Y10: 12119 | Z10: Экономический | AA10: 38.03.01 | AB10: Экономика | AC10: Бухгалтерский учет, анализ и аудит | AD10: 5 лет | AE10: БАКАЛАВР | AF10: 2-560 | AG10: 2012-08-16 | AH10: по договору с полным возмещение затрат | AI10: 696-2012 | AJ10: 2012-08-14 | AS10: 2-708 2-616 | AT10: 26.10.2015 28.09.2016 | AU10: по семейным обстоятельствам по уходу за ребенком | AV10: 06.10.2015 06.10.2016 | AW10: 05.10.2016 05.10.2017 | AX10: 2-554 | AY10: 2013-08-30 | AZ10: 2-532 | BA10: 2014-09-01 | BB10: 2-571 | BC10: 2015-09-01 | CA10: 5 | CB10: 253z | CF10: 6 | CG10: 2018-04-13 | CI10: 3 | CJ10: 27.05.2013 | CL10: 6 | CM10: 21.05.2013 | CO10: 3 | CP10: 11.06.2013 | CR10: 3 | CS10: 07.06.2013 | CU10: 4 | CV10: 01.06.2013 | CX10: 3 | CY10: 08.06.2013 | DA10: 6 | DB10: 17.12.2013 | DD10: 6 | DE10: 11.12.2013 | DG10: 4 | DH10: 13.12.2013 | DJ10: 3 | DK10: 19.12.2013 | DM10: 6 | DN10: 14.12.2013 | DP10: 4 | DQ10: 22.04.2014 | DS10: 3 | DT10: 17.04.2014 | DV10: 4 | DW10: 18.04.2014 | DY10: 4 | DZ10: 23.04.2014 | EB10: 3 | EC10: 14.04.2014 | EE10: 6 | EF10: 05.06.2013 | EN10: 4 | EO10: п/зач | EQ10: 6 | ER10: 06.12.2014 | ET10: 4 | EU10: 27.11.2014 | EW10: 5 | EX10: 01.12.2014 | EZ10: 4 | FA10: 28.11.2014 | FC10: 3 | FD10: 05.12.2014 | FF10: 4 | FG10: 03.12.2014 | FI10: 3 | FJ10: 01.06.2015 | FL10: 6 | FM10: 27.05.2015 | FO10: 3 | FP10: 02.06.2015 | FR10: 3 | FS10: 30.05.2015 | FU10: 3 | FV10: 30.05.2015 | FX10: 4 | FY10: 29.05.2015 | GA10: 4 | GB10: 05.06.2015 | GD10: 4 | GE10: 2018-04-11 | GG10: 3 | GH10: 06.12.2017 | GJ10: 6 | GK10: 06.12.2017 | GM10: 3 | GN10: 06.12.2017 | GP10: 4 | GQ10: 06.12.2017 | GS10: 5 | GT10: 06.12.2017 | GV10: 4 | GW10: 2018-04-13 | GX10: 7729558 | GY10: 3 | GZ10: 2018-04-13 | HA10: 7729519 | HB10: 4 | HC10: 2018-04-13 | HD10: Организация бухгалтерского учета на предприятии | HE10: 3 | HF10: 2018-04-13 | HG10: 7729504 | HH10: 5 | HI10: 2018-04-13 | HJ10: 7729513 | HK10: 4 | HL10: 2018-04-14 | HM10: 7729511 | HN10: 5 | HO10: 2018-04-13 | HP10: Правовое регулирование аудиторской деятельности в Российской Федерации | HS10: ООО "Север+" Октябрьского р-на Костромской обл. | IH10: 0
A11: 6 | B11: Вахнина | C11: Наталья | D11: Сергеевна | E11: Вахнина Н. С. | G11: Вахниной | H11: Наталье | I11: Сергеевне | J11: 1994-09-21 | K11: г. Кострома | L11: РФ | M11: ж | N11: ОГБОУ СПО "Костромской техникум торговли и питания" | O11: 2013 | P11: не замужем | Q11: г. Кострома, ул. Сплавщиков, д. 27, кв. 1 | Y11: 14103 | Z11: Экономический | AA11: 38.03.01 | AB11: Экономика | AC11: Бухгалтерский учет, анализ и аудит | AD11: 5 лет | AE11: БАКАЛАВР | AF11: 2-525 | AG11: 2014-08-21 | AH11: по договору с полным возмещение затрат | AI11: 000002960 | AJ11: 2014-08-15 | AX11: 2-571 | AY11: 2015-09-01 | AZ11: 2-561 | BA11: 2016-09-01 | BB11: 2-703 | BC11: 2017-09-01 | CA11: 5 | CB11: 253z | CF11: 6 | CG11: 2018-04-13 | CI11: 4 | CJ11: 01.06.2015 | CL11: 6 | CM11: 02.06.2015 | CO11: 3 | CP11: 02.06.2015 | CR11: 3 | CS11: 06.06.2015 | CU11: 4 | CV11: 30.05.2015 | CX11: 3 | CY11: 05.06.2015 | DA11: 6 | DB11: 23.12.2015 | DD11: 6 | DE11: 22.12.2015 | DG11: 5 | DH11: 26.12.2015 | DJ11: 3 | DK11: 25.12.2015 | DM11: 6 | DN11: 23.12.2015 | DP11: 4 | DQ11: 27.04.2016 | DV11: 4 | DW11: 13.04.2016 | DY11: 3 | DZ11: 31.05.2017 | EB11: 4 | EC11: 21.04.2016 | EE11: 6 | EF11: 22.12.2015 | EQ11: 6 | ER11: 01.12.2016 | ET11: 4 | EU11: 26.05.2017 | EW11: 3 | EX11: 01.12.2016 | EZ11: 3 | FA11: 20.06.2016 | FB11: 1126 | FC11: 3 | FD11: 2018-09-19 | FE11: 40 | FF11: 4 | FG11: 02.06.2017 | FI11: 3 | FJ11: 03.06.2017 | FL11: 6 | FM11: 03.06.2017 | FR11: 4 | FS11: 03.06.2017 | FX11: 3 | FY11: 03.06.2017 | GA11: 3 | GB11: 03.06.2017 | GC11: Оптимизация структуры кормопроизводства предприятия | GJ11: 6 | GK11: 2018-04-03 | GL11: 600 | GS11: 4 | GT11: 2018-04-02 | GU11: 596 | GV11: 4 | GW11: 2018-04-13 | GX11: 7729558 | GY11: 3 | GZ11: 2018-04-13 | HA11: 7729519 | HE11: 4 | HF11: 2018-04-13 | HG11: 7729504 | HH11: 3 | HI11: 2018-04-13 | HJ11: 7729513 | HK11: 4 | HL11: 2018-04-14 | HM11: 7729511 | HS11: ООО "Мечта" Костромского р-на Костромской обл. | IH11: 0
A12: 7 | B12: Кут | C12: Мария | D12: Михайловна | E12: Кут М. М. | G12: Кут | H12: Марии | I12: Михайловне | J12: 1995-12-08 | K12: г. Кострома | L12: РФ | M12: ж | N12: МБОУ г. Костромы СОШ 31 | O12: 2014 | P12: не замужем | Q12: г. Кострома, ул. Ивана Сусанина, д. 25, кв. 139 | Y12: 14106 | Z12: Экономический | AA12: 38.03.01 | AB12: Экономика | AC12: Бухгалтерский учет, анализ и аудит | AD12: 5 лет | AE12: БАКАЛАВР | AF12: 2-525 | AG12: 2014-08-21 | AH12: по договору с полным возмещение затрат | AI12: 000002709 | AJ12: 2014-07-29 | AX12: 2-571 | AY12: 2015-09-01 | AZ12: 2-561 | BA12: 2016-09-01 | BB12: 2-703 | BC12: 2017-09-01 | CA12: 5 | CB12: 253z | CF12: 6 | CG12: 2018-04-13 | CI12: 4 | CJ12: 01.06.2015 | CL12: 6 | CM12: 02.06.2015 | CO12: 3 | CP12: 02.06.2015 | CR12: 3 | CS12: 06.06.2015 | CU12: 5 | CV12: 30.05.2015 | CX12: 3 | CY12: 05.06.2015 | DA12: 6 | DB12: 23.12.2015 | DD12: 6 | DE12: 22.12.2015 | DG12: 5 | DH12: 26.12.2015 | DJ12: 3 | DK12: 17.10.2016 | DM12: 6 | DN12: 23.12.2015 | DP12: 5 | DQ12: 2016-04-27 | DS12: 3 | DT12: 2016-04-27 | DV12: 5 | DW12: 2016-04-13 | DY12: 4 | DZ12: 2016-04-25 | EB12: 5 | EC12: 2016-04-21 | EE12: 6 | EF12: 22.05.2015 | EN12: 4 | EO12: 2018-04-10 | EP12: ФГБОУ ВО Костромская ГСХА, кафедра экономической кибернетики | EQ12: 6 | ER12: 01.12.2016 | ET12: 4 | EU12: 01.12.2016 | EW12: 3 | EX12: 01.12.2016 | EZ12: 3 | FA12: 01.12.2016 | FC12: 5 | FD12: 01.12.2016 | FF12: 4 | FG12: 24.11.2016 | FI12: 4 | FJ12: 03.06.2017 | FL12: 6 | FM12: 03.06.2017 | FO12: 4 | FP12: 03.06.2017 | FR12: 4 | FS12: 03.06.2017 | FU12: 3 | FV12: 03.06.2017 | FX12: 4 | FY12: 03.06.2017 | GA12: 3 | GB12: 03.06.2017 | GD12: 4 | GE12: 2018-04-13 | GG12: 4 | GH12: 06.12.2017 | GJ12: 6 | GK12: 06.12.2017 | GM12: 3 | GN12: 06.12.2017 | GP12: 4 | GS12: 5 | GT12: 06.12.2017 | GV12: 4 | GW12: 2018-04-13 | GX12: 7729558 | GY12: 3 | GZ12: 2018-04-13 | HA12: 7729519 | HB12: 4 | HC12: 2018-04-13 | HD12: Учет продаж продукции (работ, услуг) в организации | HE12: 3 | HF12: 2018-04-13 | HG12: 7729504 | HH12: 4 | HI12: 2018-04-13 | HJ12: 7729513 | HK12: 4 | HL12: 2018-04-14 | HM12: 7729511 | HN12: 4 | HO12: 2018-04-13 | HP12: Образование аудитора и контроль качества проведения аудита | HS12: ООО "Нерехтахлебопродукт" г. Нерехта Костромской обл. | IH12: 0
A13: 8 | B13: Мудрова | C13: Анастасия | D13: Сергеевна | E13: Мудрова А. С. | G13: Мудровой | H13: Анастасии | I13: Сергеевне | J13: 1991-05-16 | K13: г. Кострома | L13: РФ | M13: ж | N13: ГОУ СПО Костромской механико-технологический техникум | O13: 2009 | P13: замужем | Q13: Кострома г. пр-т Рабочий, д. 69, кв. 91 | Y13: 170824 | Z13: Экономический | AA13: 38.03.01 | AB13: Экономика | AC13: Бухгалтерский учет, анализ и аудит | AD13: 5 лет | AE13: БАКАЛАВР | AF13: 2-374 | AG13: 2009-08-17 | AH13: по договору с полным возмещение затрат | AI13: 57 | AJ13: 2009-08-12 | AM13: 2-511 | AN13: 2015-07-15 | AO13: невыполнение учебного плана | AP13: 2-770 | AQ13: 2017-09-29 | AX13: 2-400 | AY13: 2010-09-01 | AZ13: 2-784 | BA13: 2012-12-04 | BB13: 2-554 | BC13: 2013-08-30 | CA13: 5 | CB13: 253z | CF13: 6 | CG13: 2018-04-13 | CI13: 3 | CJ13: п/атт 15.11.2017 | CK13: 206 | CL13: 6 | CM13: п/атт 26.12.2017 | CN13: 318 | CU13: 3 | CV13: п/атт 12.10.2017 | CW13: 301 | CX13: 3 | CY13: п/атт 02.04.2018 | CZ13: 597 | DA13: 6 | DB13: п/зач 02.11.2017 | DC13: 317 | DD13: 6 | DE13: п/атт 20.11.2017 | DF13: 208 | DG13: 3 | DH13: п/атт 20.11.2017 | DI13: 207 | DP13: 3 | DQ13: п/атт 28.10.2017 | DR13: 300 | DS13: 3 | DT13: п/зач 02.11.2017 | DU13: 316 | DY13: 3 | DZ13: п/атт 30.10.2017 | EA13: 304 | EB13: 5 | EC13: п/атт 17.10.2017 | ED13: 307 | EP13: ФГБОУ ВО Костромская ГСХА, кафедра экономической кибернетики | EQ13: 6 | ER13: п/атт 20.11.2017 | ES13: 209 | ET13: 4 | EU13: п/атт 31.10.2017 | EV13: 309 | EZ13: 3 | FA13: п/атт 13.10.2017 | FB13: 303 | FC13: 3 | FD13: п/атт 28.10.2017 | FE13: 302 | FF13: 3 | FG13: п/атт 28.10.2017 | FH13: 308 | FO13: 4 | FP13: п/атт 01.11.2017 | FQ13: 314 | FR13: 3 | FS13: п/атт 27.12.2017 | FT13: 304 | FX13: 3 | FY13: п/атт 28.10.2017 | FZ13: 305 | GA13: 3 | GB13: п/атт 28.10.2017 | GF13: ООО "Мечта" Костромского р-на Костромской обл. | GG13: 4 | GH13: 2018-12-06 | GJ13: 6 | GK13: 2017-12-06 | GM13: 3 | GN13: п/атт 28.12.2017 | GO13: 328 | GP13: 3 | GQ13: п/атт 28.12.2017 | GS13: 3 | GT13: п/атт 28.12.2017 | GU13: 339 | GV13: 3 | GW13: п/атт 28.10.2017 | GX13: 312 | HE13: 3 | HF13: п/зач 27.12.2017 | HG13: 301 | HK13: 4 | HL13: п/зач 27.12.2017 | HM13: 303 | HN13: 3 | HO13: п/зач 27.12.2017 | HS13: ООО "Мечта" Костромского р-на Костромской обл. | HT13: 3 | HU13: п/атт 26.12.2017 | HV13: 315 | HW13: 4 | HX13: п/зач 16.10.2017 | HY13: 310 | IC13: 3 | ID13: п/атт 27.12.2017 | IE13: 306 | IF13: 3 | IG13: п/атт 27.12.2017 | II13: 3 | IJ13: п/атт 27.12.2017 | IK13: 305 | IL13: 3 | IM13: п/атт 27.12.2017 | IN13: 308 | IO13: 3 | IP13: п/атт 27.12.2017 | IQ13: 307 | IU13: 6 | IV13: п/зач 26.12.2017 | IW13: 313 | IX13: 6 | IY13: п/зач 26.12.2017 | IZ13: 311 | JJ13: =(JL13*3+JM13*4+JN13*5)/50 -> 2 | JL13: =COUNTIF(CC13:JG13,3) -> 25 | JM13: =COUNTIF(CC13:JG13,4) -> 5 | JN13: =COUNTIF(CC13:JG13,5) -> 1 | JO13: =COUNTIF(CC13:JG13,6) -> 8 | JP13: =SUM(JL13:JN13) -> 31 | JQ13: =SUMIF(CC13:JG13,">0",$CC$3:$JG$3) -> 5452 | JR13: =INT(JQ13/8+0.5) -> 682
A14: 9 | B14: Осинкина | C14: Полина | D14: Сергеевна | E14: Осинкина П. С. | G14: Осинкиной | H14: Полине | I14: Сергеевне | J14: 1994-11-05 | K14: г. Кострома | L14: РФ | M14: ж | N14: МБОУ г. Костромы СОШ 35 | O14: 2013 | P14: не замужем | Q14: г. Кострома, пр-кт Рабочий, д. 13, кв. 26 | Y14: 13558 | Z14: Экономический | AA14: 38.03.01 | AB14: Экономика | AC14: Бухгалтерский учет, анализ и аудит | AD14: 5 лет | AE14: БАКАЛАВР | AF14: 2-509 | AG14: 2013-08-05 | AH14: по договору с полным возмещение затрат | AI14: 000000763 | AJ14: 2013-08-01 | AM14: 2-571 | AN14: 2015-09-01 | AO14: за академическую неуспеваемость | AP14: 2-641 | AQ14: 2016-10-06 | AX14: 2-533 | AY14: 2014-09-01 | CA14: 5 | CB14: 253z | CF14: 6 | CG14: 2018-04-13 | CI14: 3 | CJ14: п/зач | CL14: 6 | CM14: п/зач | CO14: 3 | CP14: п/зач | CR14: 3 | CS14: п/зач | CU14: 3 | CV14: 30.08.2017 | CX14: 3 | CY14: п/зач | DA14: 6 | DB14: п/зач | DD14: 6 | DE14: п/зач | DG14: 4 | DH14: п/зач | DJ14: 3 | DK14: п/зач | DM14: 6 | DN14: п/зач | DP14: 3 | DQ14: 2018-05-22 | DR14: 926 | DS14: 4 | DT14: 2018-05-22 | DU14: 927 | DV14: 3 | DW14: 04.10.2017 | DY14: 3 | DZ14: 07.06.2017 | EB14: 3 | EC14: п/зач | EE14: 6 | EF14: п/зач | EN14: 4 | EQ14: 6 | ER14: п/зач | ET14: 4 | EU14: 01.12.2016 | EW14: 3 | EX14: 2018-03-29 | EY14: 587 | EZ14: 3 | FA14: 2018-06-25 | FB14: 975 | FC14: 4 | FD14: п/зач | FF14: 3 | FG14: п/зач | FI14: 3 | FJ14: 2018-06-05 | FK14: 935 | FL14: 6 | FM14: 03.06.2017 | FO14: 3 | FP14: 2018-05-22 | FQ14: 928 | FR14: 3 | FS14: 03.06.2017 | FU14: 4 | FV14: 2018-05-29 | FW14: 931 | FX14: 3 | FY14: 2018-03-28 | FZ14: 584 | GA14: 3 | GB14: 2018-03-27 | GD14: 3 | GE14: 2018-09-04 | GG14: 4 | GH14: 06.12.2017 | GJ14: 6 | GK14: 06.12.2017 | GM14: 3 | GN14: 06.12.2017 | GP14: 3 | GQ14: 2018-06-05 | GS14: 3 | GT14: 2017-12-06 | GV14: 4 | GW14: 2018-04-13 | GX14: 7729558 | HE14: 3 | HF14: 2018-04-13 | HG14: 7729504 | HH14: 4 | HI14: 2018-04-13 | HJ14: 7729513 | HK14: 4 | HL14: 2018-04-14 | HM14: 7729511 | HN14: 5 | HO14: 2018-04-13 | HP14: Профессионально-этические нормы аудита | HS14: АО "Шувалово" Костромского р-на Костромской обл. | HT14: 6 | HU14: п/зач | IH14: 0 | JJ14: =(JL14*3+JM14*4+JN14*5)/50 -> 2.28 | JL14: =COUNTIF(CC14:JG14,3) -> 23 | JM14: =COUNTIF(CC14:JG14,4) -> 10 | JN14: =COUNTIF(CC14:JG14,5) -> 1 | JO14: =COUNTIF(CC14:JG14,6) -> 10 | JP14: =SUM(JL14:JN14) -> 34 | JQ14: =SUMIF(CC14:JG14,">0",$CC$3:$JG$3) -> 6064 | JR14: =INT(JQ14/8+0.5) -> 758
A15: 10 | B15: Александрова | C15: Елена | D15: Сергеевна | E15: Александрова Е. С. | G15: Александровой | H15: Елене | I15: Сергеевне | J15: 1987-07-08 | K15: п. Караваево Костромского р-на Костромской обл. | L15: РФ | M15: ж | N15: МОУ Караваевская СОШ Костромского р-на Костромской обл. | O15: 2004 | P15: не замужем | Q15: г. Кострома, ул. Индустриальная, д. 30, кв. 49 | Y15: 14132 | Z15: Экономический | AA15: 38.03.01 | AB15: Экономика | AC15: Бухгалтерский учет, анализ и аудит | AD15: 5 лет | AE15: БАКАЛАВР | AF15: 2-525 | AG15: 2014-08-21 | AH15: по договору с полным возмещение затрат | AI15: 000002870 | AJ15: 2014-08-13 | AX15: 2-571 | AY15: 2015-09-01 | AZ15: 2-561 | BA15: 2016-09-01 | BB15: 2-703 | BC15: 2017-09-01 | CA15: 5 | CB15: 254z | CI15: 5 | CJ15: 01.06.2015 | CL15: 6 | CM15: 02.06.2015 | CO15: 4 | CP15: 02.06.2015 | CR15: 4 | CS15: 20.01.2016 | CU15: 5 | CV15: 30.05.2015 | CX15: 3 | CY15: 05.06.2015 | DA15: 6 | DB15: 22.12.2015 | DD15: 6 | DE15: 22.12.2015 | DG15: 4 | DH15: 26.12.2015 | DJ15: 4 | DK15: 08.09.2016 | DM15: 6 | DN15: 23.12.2015 | DP15: 4 | DQ15: 27.05.2016 | DS15: 4 | DT15: 20.09.2016 | DV15: 4 | DW15: 27.04.2016 | DY15: 4 | DZ15: 31.08.2016 | EE15: 6 | EF15: 12.09.2016 | EN15: 5 | EO15: 02.07.2016 | EQ15: 6 | ER15: 01.12.2016 | ET15: 4 | EU15: 17.10.2017 | EW15: 4 | EX15: 2018-05-04 | EY15: 754 | EZ15: 4 | FA15: 01.12.2016 | FC15: 3 | FD15: 16.05.2017 | FI15: 4 | FJ15: 03.06.2017 | FL15: 6 | FM15: 20.03.2017 | FO15: 5 | FP15: 03.06.2007 | FR15: 5 | FS15: 03.06.2017 | FU15: 4 | FV15: 2018-05-04 | FX15: 4 | FY15: 03.06.2017 | GJ15: 6 | GK15: 2018-04-28 | GL15: 727 | HH15: 4 | HI15: 2018-04-26 | HJ15: 7749513-1 | HK15: 4 | HL15: 2018-05-07 | HM15: 7749511-2 | HN15: 4 | HO15: 2018-05-07 | HS15: ООО «Ирбис» г. Солночнегорск Московской обл. | IH15: 0 | JJ15: 1.98 | JL15: 2 | JM15: 17 | JN15: 5 | JO15: 8 | JP15: 24 | JQ15: 4732 | JR15: 592
A16: 11 | B16: Колонистова | C16: Наталия | D16: Олеговна | E16: Колонистова Н. О. | G16: Колонистовой | H16: Наталии | I16: Олеговне | J16: 1995-04-09 | K16: г. Нея | L16: РФ | M16: ж | N16: МОУ СОШ 2 г. Нея | O16: 2012 | P16: не замужем | Q16: г. Кострома, ул. Боевая, д. 27, кв. 36 | Y16: 12510 | Z16: Экономический | AA16: 38.03.01 | AB16: Экономика | AC16: Бухгалтерский учет, анализ и аудит | AD16: 5 лет | AE16: БАКАЛАВР | AF16: 2-555 | AG16: 2012-08-10 | AH16: по договору с полным возмещение затрат | AI16: 632-2012 | AJ16: 2012-08-07 | AM16: 2-642 | AN16: 2014-10-09 | AO16: за академическую неуспеваемость | AP16: 2-641 | AQ16: 2016-10-06 | AX16: 2-592 | AY16: 2013-09-16 | AZ16: 2-533 | BA16: 2014-09-01 | BB16: 2-703 | BC16: 2017-09-01 | CA16: 5 | CB16: 254z | CI16: 4 | CJ16: п/зач | CL16: 6 | CM16: п/зач | CO16: 3 | CP16: п/зач | CR16: 3 | CS16: п/зач | CU16: 4 | CV16: п/зач | CX16: 5 | CY16: п/зач | DA16: 6 | DB16: п/зач | DD16: 6 | DE16: п/зач | DG16: 4 | DH16: п/зач | DJ16: 3 | DK16: п/зач | DM16: 6 | DN16: п/зач | DP16: 4 | DQ16: п/зач | DS16: 5 | DT16: п/зач | DV16: 4 | DW16: п/зач | DY16: 3 | DZ16: 30.12.2016 | EB16: 5 | EC16: 17.06.2017 | EE16: 6 | EF16: п/зач | EH16: 6 | EI16: п/зач | EN16: 4 | EO16: п/зач | EQ16: 6 | ER16: 01.12.2016 | ET16: 4 | EU16: 01.12.2016 | EW16: 5 | EX16: 01.12.2016 | EZ16: 4 | FA16: 01.12.2016 | FC16: 5 | FD16: 01.12.2016 | FF16: 5 | FG16: 01.12.2016 | FI16: 4 | FJ16: 03.06.2017 | FL16: 6 | FM16: 03.06.2017 | FO16: 5 | FP16: 03.06.2017 | FR16: 5 | FS16: 03.06.2017 | FU16: 3 | FV16: 03.06.2017 | FX16: 5 | FY16: 03.06.2017 | GA16: 3 | GB16: 2017-06-03 | GG16: 5 | GH16: 2017-12-06 | GI16: Z-7749995 | GJ16: 6 | GK16: 2017-12-06 | GL16: Z-7749809 | GM16: 4 | GN16: 2017-12-06 | GO16: Z-7749708 | GP16: 3 | GQ16: 06.12.2017 | GS16: 4 | GT16: 2017-12-06 | GU16: Z-7749717 | GV16: 5 | GW16: 2018-04-13 | GX16: 7749558 | HE16: 5 | HF16: 2018-04-13 | HG16: 7749504 | HH16: 5 | HI16: 2018-04-13 | HJ16: 7749513 | HK16: 5 | HL16: 2018-04-13 | HM16: 7749511 | HN16: 5 | HO16: 2018-04-13 | HP16: Профессионально-этические нормы аудита | HS16: ООО "Лайт" г. Кострома | IH16: 0 | JJ16: 2.8 | JL16: 7 | JM16: 11 | JN16: 15 | JO16: 9 | JP16: 33 | JQ16: 5812 | JR16: 727
A17: 12 | B17: Монахова | C17: Инна | D17: Леонидовна | E17: Монахова И. Л. | G17: Монаховой | H17: Инне | I17: Леонидовне | J17: 1985-05-25 | K17: г. Кострома | L17: РФ | M17: ж | N17: ФГОУ СПО "Буйский сельскохозяйственный техникум" | O17: 2009 | P17: замужем | Q17: г. Кострома, ул. Даремская, д.3, кор. 2, кв. 23 | Y17: 180002 | Z17: Экономический | AA17: 38.03.01 | AB17: Экономика | AC17: Бухгалтерский учет, анализ и аудит | AD17: 5 лет | AE17: БАКАЛАВР | AF17: 2-378 | AG17: 2010-08-13 | AH17: по договору с полным возмещение затрат | AI17: 4-Бэ-2010 | AJ17: 2010-10-13 | AM17: 2-511 | AN17: 2015-07-15 | AO17: невыполнение учебного плана | AP17: 2-73 | AQ17: 2018-02-02 | AX17: 2-383 | AY17: 2011-09-01 | AZ17: 2-582 | BA17: 2012-08-31 | BB17: 2-554 | BC17: 2013-08-30 | CA17: 5 | CB17: 254z | CI17: 3 | CJ17: п/атт 29.01.2018 | CL17: 6 | CM17: п/атт 29.01.2018 | CO17: 3 | CP17: п/атт 09.02.2018 | CR17: 3 | CS17: п/атт 09.02.2018 | CU17: 3 | CV17: п/атт 25.01.2018 | CX17: 4 | CY17: п/атт 30.01.2018 | DA17: 6 | DB17: п/зач 31.01.2018 | DD17: 6 | DE17: п/атт 29.01.2018 | DG17: 4 | DH17: п/атт 29.01.2018 | DJ17: 3 | DK17: п/атт 09.02.2018 | DP17: 3 | DQ17: п/атт 25.01.2018 | DS17: 4 | DT17: п/зач 31.01.2018 | EB17: 4 | EC17: п/атт 29.01.2018 | EP17: ФГБОУ ВО Костромская ГСХА, кафедра экономической кибернетики | EQ17: 6 | ER17: п/атт 30.01.2018 | ET17: 4 | EU17: п/атт 29.01.2018 | FC17: 3 | FD17: п/атт 29.01.2018 | FF17: 5 | FG17: п/атт 29.01.2018 | FO17: 4 | FP17: п/атт 29.01.2018 | FR17: 3 | FS17: п/атт 29.01.2018 | FX17: 4 | FY17: п/атт 29.01.2018 | GA17: 4 | GB17: п/атт 29.01.2018 | GF17: ООО "Агрофирма "Планета" Буйского р-на Костромской обл. | GM17: 4 | GN17: п/зач 30.01.2018 | GP17: 3 | GQ17: п/зач 30.01.2018 | GS17: 3 | GT17: п/атт 15.01.2018 | GY17: 5 | GZ17: п/атт 31.01.2018 | HH17: 4 | HI17: п/атт 29.01.2018 | HK17: 3 | HL17: п/атт 29.01.2018 | HN17: 4 | HO17: п/атт 29.01.2018 | HS17: ООО "Агрофирма "Планета" Буйского р-на Костромской обл. | HZ17: 4 | IA17: п/атт 29.01.2018 | IF17: 3 | IG17: п/атт 29.01.2018 | IH17: 0 | II17: 4 | IJ17: п/атт 29.01.2018 | IL17: 3 | IM17: п/атт 29.01.2018 | IR17: 4 | IS17: п/атт 29.01.2018 | IX17: 6 | IY17: п/зач 29.01.2018 | JA17: 6 | JB17: п/атт 29.01.2018 | JJ17: 2.1 | JL17: 13 | JM17: 14 | JN17: 2 | JO17: 6 | JP17: 29 | JQ17: 5060 | JR17: 633
A18: 13 | B18: Гришина | C18: Елизавета | D18: Владимировна | E18: Гришина Е. В. | AA18: 38.03.01 | CA18: 4 | CB18: 245z | CI18: 3 | CJ18: п/зач 24.05.2018 | CL18: 6 | CM18: п/зач 18.05.2018 | CO18: 3 | CP18: п/атт 21.05.2018 | CQ18: 915 | CR18: 4 | CS18: п/атт 21.05.2018 | CT18: 913 | CU18: 4 | CV18: 2018-07-03 | CW18: 989 | CX18: 3 | CY18: п/зач 06.06.2018 | DA18: 6 | DB18: п/зач 08.05.2018 | DD18: 3 | DE18: п/зач 04.06.2018 | DG18: 3 | DH18: 2018-06-18 | DJ18: 3 | DK18: п/атт 21.05.2018 | DL18: 914 | DM18: 6 | DN18: 2018-06-06 | DP18: 3 | DQ18: 2018-06-06 | DR18: 934 | DS18: 5 | DT18: п/зач 08.05.2018 | DV18: 4 | DW18: 2018-06-06 | DX18: 953 | EB18: 4 | EC18: 2018-06-19 | EE18: 6 | EF18: п/зач 30.05.2018 | EH18: 6 | EI18: п/зач 30.05.2018 | EK18: 6 | EL18: 2018-06-19 | EM18: 965 | EN18: 3 | EO18: п/зач 16.05.2018 | EQ18: 3 | ER18: п/зач 24.05.2018 | ET18: 3 | EU18: п/зач 31.05.2018 | EZ18: 3 | FA18: 2018-07-06 | FB18: 990 | FC18: 4 | FD18: 2018-07-03 | FF18: 4 | FG18: п/зач 31.05.2018 | FI18: 3 | FJ18: 2018-06-05 | FK18: 7809539 | FL18: 6 | FM18: 2018-06-05 | FN18: 7809542 | FO18: 4 | FP18: п/зач 01.06.2018 | FR18: 3 | FS18: п/зач 04.06.2018 | FX18: 3 | FY18: 2018-06-22 | GA18: 3 | GB18: 2018-06-22 | GC18: Определение оптимальной структуры кормопроизводства сельскохозяйственных предприятий. | GD18: 3 | GE18: п/зач 04.06.2018 | GM18: 4 | GN18: п/атт 05.09.2018 | GO18: 49 | GV18: 3 | GW18: п/зач 01.06.2018 | HT18: 3 | HU18: п/зач 18.06.2018 | IU18: 6 | IV18: п/зач 01.06.2018 | JJ18: 1.82 | JL18: 18 | JM18: 8 | JN18: 1 | JO18: 8 | JP18: 27 | JQ18: 4824 | JR18: 603
A19: 14 | B19: Иванова | C19: Оксана | D19: Геннадьевна | E19: Иванова О. Г. | G19: Ивановой | H19: Оксане | I19: Геннадьевне | J19: 1989-07-03 | K19: г. Кострома | L19: РФ | M19: ж | N19: Вечерняя (общеобразовательная) школа 2 | O19: 2015 | P19: не замужем | Q19: г. Кострома, ул.Голубкова, д. 14а, кв. 74 | Y19: 15815 | Z19: Экономический | AA19: 38.03.01 | AB19: Экономика | AC19: Бухгалтерский учет, анализ и аудит | AD19: 5 лет | AE19: БАКАЛАВР | AF19: 2-547 | AG19: 2015-08-17 | AH19: в рамках контрольных цифр на основное место | AX19: 2-561 | AY19: 2016-09-01 | AZ19: 2-703 | BA19: 2017-09-01 | CA19: 4 | CB19: 245z | CE19: 78010135 | CF19: 6 | CG19: 2018-06-05 | CH19: 78010110 | CI19: 5 | CJ19: 11.06.2016 | CL19: 6 | CM19: 11.06.2016 | CO19: 3 | CP19: 11.06.2016 | CR19: 4 | CS19: 14.11.2016 | CU19: 4 | CV19: 11.06.2016 | CX19: 5 | CY19: 11.06.2016 | DA19: 6 | DB19: 23.12.2016 | DD19: 6 | DE19: 23.12.2016 | DG19: 5 | DH19: 23.12.2016 | DJ19: 3 | DK19: 23.12.2016 | DM19: 6 | DN19: 23.12.2016 | DP19: 3 | DQ19: 22.04.2017 | DS19: 3 | DT19: 22.04.2017 | DV19: 5 | DW19: 22.04.2017 | DY19: 3 | DZ19: 22.04.2017 | EB19: 4 | EC19: 22.04.2017 | EE19: 6 | EF19: 22.04.2017 | EH19: 6 | EI19: 22.04.2017 | EK19: 6 | EL19: 22.04.2017 | EN19: 5 | EO19: 14.09.2017 | EP19: ФГБОУ ВО Костромская ГСХА, кафедра экономической кибернетики | EQ19: 6 | ER19: 02.12.2017 | ET19: 4 | EU19: 02.12.2017 | EW19: 5 | EX19: 02.12.2017 | EZ19: 4 | FA19: 02.12.2017 | FC19: 5 | FD19: 02.12.2017 | FF19: 4 | FG19: 02.12.2017 | FI19: 3 | FJ19: 2018-06-05 | FK19: 7809539 | FL19: 6 | FM19: 2018-06-05 | FN19: 7809542 | FO19: 4 | FP19: 2018-06-05 | FQ19: 7809556 | FR19: 4 | FS19: 2018-06-05 | FT19: 7809514 | FU19: 4 | FV19: 2018-06-05 | FW19: Организация учета расчетов с поставщиками и подрядчиками | FX19: 3 | FY19: 2018-06-05 | FZ19: 7809545 | GA19: 3 | GB19: 2018-06-05 | GC19: Определение оптимальной структуры кормопроизводства сельскохозяйственных предприятий. | GF19: ИП Медникова Е.В. г. Кострома | JJ19: 1.9 | JL19: 8 | JM19: 9 | JN19: 7 | JO19: 10 | JP19: 24 | JQ19: 4716 | JR19: 590
A20: 15 | B20: Магомедов | C20: Шамиль | D20: Мусаатаевич | E20: Магомедов Ш. М. | G20: Магомедову | H20: Шамилю | I20: Мусаатаевичу | J20: 1996-04-09 | K20: с. Муги Акушинского р-на Республики Дагестан | L20: РФ | M20: м | N20: Мугинский многопрофильный лицей им. С.Абдуллаева | O20: 2013 | P20: холост | Q20: респ. Дагестан , Акушинский р-н, с. Муги | Y20: 14514 | Z20: Экономический | AA20: 38.03.01 | AB20: Экономика | AC20: Бухгалтерский учет, анализ и аудит | AD20: 5 лет | AE20: БАКАЛАВР | AF20: 2-524 | AG20: 2014-08-21 | AH20: по договору с полным возмещением затрат | AI20: 000002487 | AJ20: 2014-06-23 | AS20: 2-716 | AT20: 2016-11-10 | AU20: по семейным обстоятельствам | AV20: 2016-11-07 | AW20: 2017-11-06 | AX20: 2-571 | AY20: 2015-09-01 | AZ20: 2-703 | BA20: 2017-09-01 | CA20: 3 | CB20: 235z | CI20: 3 | CJ20: п/зач | CO20: 3 | CP20: п/зач | CR20: 3 | CS20: п/зач | CU20: 3 | CV20: п/зач | CX20: 3 | CY20: п/зач | DG20: 3 | DJ20: 3 | DP20: 3 | DS20: 4 | DV20: 3 | EN20: 5 | EO20: п/зач | ET20: 3 | EU20: п/зач | FF20: 3 | GF20: ФГБОУ ВО Костромская ГСХА Костромского р-на Костромской обл. | JJ20: 0.84 | JL20: 11 | JM20: 1 | JN20: 1 | JO20: 0 | JP20: 13 | JQ20: 2215 | JR20: 277
A21: 16 | B21: Рыбальченко | C21: Евгения | D21: Николаевна | E21: Рыбальченко Е. Н. | G21: Рыбальченко | H21: Евгении | I21: Николаевне | J21: 1990-12-04 | K21: г. Кострома | L21: РФ | M21: ж | N21: ГОУ СПО Костромской механико-технологический техникум | O21: 2010 | P21: замужем | Q21: 156019 г. Кострома, ул. Центральная, д. 6, кв. 1а | Y21: 160688 | Z21: Экономический | AA21: 38.03.01 | AB21: Экономика | AC21: Бухгалтерский учет, анализ и аудит | AD21: 5 лет | AE21: БАКАЛАВР | AF21: 2-387 | AG21: 2010-08-25 | AH21: по договору с полным возмещением затрат | AI21: 577 | AJ21: 2010-08-16 | AM21: 2-186 | AN21: 2014-04-09 | AO21: невыполнение условий договор | AP21: 2-645 | AQ21: 2016-10-07 | AX21: 2-383 | AY21: 2011-09-01 | AZ21: 2-703 | BA21: 2017-09-01 | CA21: 4 | CB21: 245z | CC21: 4 | CD21: 2018-06-05 | CE21: 78010135 | CF21: 6 | CG21: 2018-06-05 | CH21: 78010110 | CI21: 3 | CJ21: п/зач | CL21: 6 | CM21: п/зач | CR21: 4 | CS21: 25.04.2017 | CU21: 3 | CV21: п/зач | CX21: 3 | CY21: 2017-06-20 | DA21: 6 | DB21: п/зач | DD21: 6 | DE21: п/зач | DG21: 5 | DH21: 23.12.2016 | DJ21: 3 | DM21: 6 | DN21: 23.12.2016 | DP21: 4 | DQ21: 22.04.2017 | DS21: 4 | DV21: 4 | DW21: 22.04.2017 | DY21: 4 | DZ21: 22.04.2017 | EB21: 4 | EC21: 22.04.2017 | EK21: 6 | EL21: 22.04.2017 | ET21: 4 | EU21: 02.12.2017 | EW21: 4 | EX21: 02.12.2017 | EZ21: 5 | FA21: 02.12.2017 | FC21: 4 | FD21: 02.12.2017 | FF21: 5 | FG21: 02.12.2017 | FI21: 3 | FJ21: 2018-06-05 | FK21: 7809539 | FL21: 6 | FM21: 2018-06-05 | FN21: 7809542 | FO21: 5 | FP21: 2018-06-05 | FQ21: 7809556 | FR21: 4 | FS21: 2018-06-05 | FT21: 7809514 | FU21: 4 | FV21: 2018-06-05 | FW21: Учет расчетов с подотчетными лицами | FX21: 4 | FY21: 2018-06-05 | FZ21: 7809545 | GA21: 4 | GB21: 2018-06-05 | GC21: Определение оптимальной структуры кормопроизводства сельскохозяйственных предприятий. | GF21: ООО "Студия Ремонта" г. Кострома | JJ21: 1.82 | JL21: 5 | JM21: 14 | JN21: 4 | JO21: 7 | JP21: 23 | JQ21: 4536 | JR21: 567
A22: 17 | B22: Сарыгина | C22: Ирина | D22: Ильинична | E22: Сарыгина И. И. | G22: Сарыгиной | H22: Ирине | I22: Ильиничне | J22: 1994-10-19 | K22: г. Кострома | L22: РФ | M22: ж | N22: Костромской политехнический колледж | O22: 2015 | P22: не замужем | Q22: г. Кострома, ул. Костромская, д. 45 | Y22: 15818з | Z22: Экономический | AA22: 38.03.01 | AB22: Экономика | AC22: Бухгалтерский учет, анализ и аудит | AD22: 5 лет | AE22: БАКАЛАВР | AF22: 2-557 | AG22: 2015-08-21 | AH22: по договору с полным возмещением затрат | AI22: 000003690 | AJ22: 2015-08-14 | AX22: 2-561 | AY22: 2016-09-01 | CA22: 4 | CB22: 245z | CC22: 3 | CD22: 2018-06-05 | CE22: 78010135 | CF22: 6 | CG22: 2018-06-05 | CH22: 78010110 | CI22: 4 | CJ22: 11.06.2016 | CL22: 6 | CM22: 11.06.2016 | CO22: 3 | CP22: 11.06.2016 | CR22: 3 | CS22: 11.06.2016 | CU22: 4 | CV22: 11.06.2016 | CX22: 5 | CY22: 11.06.2016 | DA22: 6 | DB22: 23.12.2016 | DD22: 6 | DE22: 23.12.2016 | DG22: 5 | DH22: 23.12.2016 | DJ22: 3 | DK22: 2018-05-17 | DL22: 848 | DM22: 6 | DN22: 18.04.2017 | DP22: 4 | DQ22: 22.04.2017 | DS22: 3 | DT22: 22.04.2017 | DV22: 4 | DW22: 08.11.2017 | DY22: 4 | DZ22: 22.04.2017 | EB22: 4 | EC22: 22.04.2017 | EE22: 6 | EF22: 22.04.2017 | EH22: 6 | EI22: 22.04.2017 | EK22: 6 | EL22: 22.04.2017 | EQ22: 6 | ER22: 02.12.2017 | ET22: 3 | EU22: 02.12.2017 | EW22: 3 | EX22: 02.12.2017 | EZ22: 4 | FA22: 02.12.2017 | FC22: 5 | FD22: 02.12.2017 | FF22: 3 | FG22: 02.12.2017 | FI22: 3 | FJ22: 2018-06-05 | FK22: 7809539 | FL22: 6 | FM22: 2018-06-05 | FN22: 7809542 | FO22: 4 | FP22: 2018-06-05 | FQ22: 7809556 | FR22: 4 | FS22: 2018-06-05 | FT22: 7809514 | FU22: 4 | FV22: 2018-06-05 | FW22: Основные направления и перспективы развития бухгалтерского учета в РФ | FX22: 4 | FY22: 2018-06-05 | FZ22: 7809545 | GA22: 3 | GB22: 2018-06-05 | GC22: Определение оптимальной специализации и сочетания отраслей сельскохозяйственных предприятий. | GF22: ГП "Костромское ПАТП № 3" г. Кострома | JJ22: 1.78 | JL22: 10 | JM22: 11 | JN22: 3 | JO22: 10 | JP22: 24 | JQ22: 4932 | JR22: 617
A23: 18 | B23: Фомичева (Нестерчук) | C23: Юлия | D23: Сергеевна | E23: Фомичева (Нестерчук) Ю. С. | G23: Фомичевой | H23: Юлии | I23: Сергеевне | J23: 1997-11-10 | K23: г. Олевск Олевского р-на Житомирской обл. | L23: РФ | M23: ж | N23: МОУ Шолоховская СОШ Красносельского р-на Костромской области | O23: 2015 | P23: замужем | Q23: Костромская обл., Красносельский р-н, п. Красное на Волге, мкр Восточный, д. 17, кв. 14 | Y23: 15634 | Z23: Экономический | AA23: 38.03.01 | AB23: Экономика | AC23: Бухгалтерский учет, анализ и аудит | AD23: 5 лет | AE23: БАКАЛАВР | AF23: 2-555 | AG23: 2015-08-21 | AH23: по договору с полным возмещением затрат | AI23: 000003413 | AJ23: 2015-07-17 | AX23: 2-561 | AY23: 2016-09-01 | AZ23: 2-703 | BA23: 2017-09-01 | CA23: 4 | CB23: 245z | CC23: 3 | CD23: 2018-06-05 | CE23: 78010135 | CF23: 6 | CG23: 2018-06-05 | CH23: 78010110 | CI23: 3 | CJ23: п/зач | CL23: 6 | CM23: п/зач | CO23: 3 | CP23: п/зач | CR23: 4 | CS23: п/зач | CU23: 4 | CV23: п/зач | CX23: 3 | CY23: п/зач | DA23: 6 | DB23: 23.12.2016 | DD23: 6 | DE23: 23.12.2016 | DG23: 5 | DH23: 23.12.2016 | DJ23: 4 | DK23: 23.12.2016 | DM23: 6 | DN23: 22.04.2017 | DP23: 4 | DQ23: 22.04.2017 | DS23: 4 | DT23: 22.04.2017 | DV23: 5 | DW23: 22.04.2017 | DY23: 4 | DZ23: 22.04.2017 | EB23: 4 | EC23: 22.04.2017 | EE23: 6 | EF23: 22.04.2017 | EH23: 6 | EI23: 22.04.2017 | EK23: 6 | EL23: 22.04.2017 | EN23: 4 | EO23: п/зач | EQ23: 6 | ER23: 02.12.2017 | ET23: 4 | EU23: 02.12.2017 | EW23: 4 | EX23: 02.12.2017 | EZ23: 4 | FA23: 02.12.2017 | FC23: 4 | FD23: 02.12.2017 | FF23: 5 | FG23: 02.12.2017 | FI23: 4 | FJ23: 2018-06-05 | FK23: 7809539 | FL23: 6 | FM23: 2018-06-05 | FN23: 7809542 | FO23: 5 | FP23: 2018-06-05 | FQ23: 7809556 | FR23: 4 | FS23: 2018-06-05 | FT23: 7809514 | FU23: 4 | FV23: 2018-06-05 | FW23: Учет расчетов с персоналом по оплате труда | FX23: 4 | FY23: 2018-06-05 | FZ23: 7809545 | GA23: 4 | GB23: 2018-06-05 | GC23: Определение оптимальной структуры кормопроизводства сельскохозяйственных предприятий. | GF23: ООО "АВМ" Красносельского р-на Костромской обл. | JJ23: 2 | JL23: 4 | JM23: 17 | JN23: 4 | JO23: 10 | JP23: 25 | JQ23: 4932 | JR23: 617
A24: 19 | B24: Гришина | C24: Татьяна | D24: Александровна | E24: Гришина Т. А. | G24: Гришиной | H24: Татьяне | I24: Александровне | J24: 1997-11-06 | K24: с. Минское Костромского р-на Костромской обл. | L24: РФ | M24: ж | N24: МАОУ "Гимназия 25" г. Костромы | O24: 2015 | P24: не замужем | Q24: Костромская обл., Костромской р-н, с. Минское, ул. Куколевского, д.7, кв.79 | Y24: 170826 | Z24: Экономический | AA24: 38.03.01 | AB24: Экономика | AC24: Бухгалтерский учет, анализ и аудит | AD24: 5 лет | AE24: БАКАЛАВР | AF24: 2-555 | AG24: 2015-08-21 | AH24: по договору с полным возмещением затрат | AI24: 000003474 | AJ24: 2015-08-03 | AX24: 2-571 | AY24: 2015-09-01 | AZ24: 2-561 | BA24: 2016-09-01 | CA24: 4 | CB24: 247z | CF24: 6 | CG24: 2018-06-05 | CH24: 78210110 | CI24: 4 | CJ24: п/зач | CO24: 4 | CP24: п/зач 21.10.2017 | CR24: 4 | CS24: п/зач 21.10.2017 | CU24: 4 | CV24: п/зач 12.10.2017 | CX24: 4 | CY24: п/зач | DA24: 6 | DB24: п/зач | DD24: 6 | DE24: п/зач 31.10.2017 | DG24: 5 | DH24: п/зач 31.10.2017 | DJ24: 4 | DK24: п/зач 12.10.2017 | DM24: 6 | DN24: п/зач | DP24: 4 | DQ24: п/зач 28.10.2017 | DV24: 4 | DW24: п/зач | DY24: 3 | DZ24: п/зач 30.10.2017 | EB24: 4 | EC24: п/зач 17.10.2017 | EE24: 6 | EF24: п/зач 31.01.2018 | EK24: 6 | EL24: п/зач 28.10.2017 | EN24: 4 | EO24: п/зач 24.10.2017 | EZ24: 4 | FA24: п/зач 13.10.2017 | FC24: 3 | FD24: п/зач 28.10.2017 | FF24: 4 | FG24: п/зач 28.10.2017 | FL24: 6 | FM24: 2018-09-17 | FN24: 7829542-1 | FR24: 4 | FS24: 2018-06-05 | FT24: 7829514 | FX24: 4 | FY24: п/зач 28.10.2017 | GD24: 3 | GE24: п/зач 04.06.2018 | GF24: ООО "Минское" Костромского р-на Костромской обл. | HT24: 4 | HU24: п/зач | JJ24: 1.48 | JL24: 3 | JM24: 15 | JN24: 1 | JO24: 7 | JP24: 19 | JQ24: 3985 | JR24: 498
A25: 20 | B25: Несмеянов | C25: Михаил | D25: Владимирович | E25: Несмеянов М. В. | G25: Несмеянову | H25: Михаилу | I25: Владимировичу | J25: 1992-01-09 | K25: г. Кострома | L25: РФ | M25: м | N25: Костромской технологический техникум | O25: 2014 | P25: холост | Q25: Московская обл Мытищинский р-н, п. Долгопрудный, ул. Спортивная, д. 5, кв. 138 | Y25: 15816 | Z25: Экономический | AA25: 38.03.01 | AB25: Экономика | AC25: Бухгалтерский учет, анализ и аудит | AD25: 5 лет | AE25: БАКАЛАВР | AF25: 2-557 | AG25: 2015-08-21 | AH25: по договору с полным возмещением затрат | AI25: 000003677 | AJ25: 2015-08-14 | AX25: 2-561 | AY25: 2016-09-01 | AZ25: 2-703 | BA25: 2017-09-01 | CA25: 4 | CB25: 247z | CC25: 4 | CD25: 2018-06-05 | CE25: 78210135 | CF25: 6 | CG25: 2018-06-05 | CH25: 78210110 | CI25: 4 | CJ25: 11.06.2016 | CL25: 6 | CM25: 11.06.2016 | CO25: 5 | CP25: 08.09.2016 | CR25: 5 | CS25: 30.06.2016 | CU25: 5 | CV25: 11.06.2016 | CX25: 3 | CY25: 11.06.2016 | DA25: 6 | DB25: 23.12.2016 | DD25: 6 | DE25: 23.12.2016 | DG25: 4 | DH25: 23.12.2016 | DJ25: 3 | DK25: 23.12.2016 | DM25: 6 | DN25: 23.12.2016 | DP25: 5 | DQ25: 22.04.2017 | DS25: 4 | DT25: 30.05.2017 | DV25: 5 | DW25: 22.04.2017 | DY25: 3 | DZ25: 22.04.2017 | EB25: 5 | EC25: 22.04.2017 | EE25: 6 | EF25: 22.04.2017 | EH25: 6 | EI25: 22.04.2017 | EK25: 6 | EL25: 22.04.2017 | EN25: 4 | EO25: 01.07.2017 | EP25: ФГБОУ ВО Костромская ГСХА, кафедра экономической кибернетики | ET25: 5 | EU25: 2017-12-02 | EV25: Z-7829490 | EW25: 4 | EX25: 2017-12-02 | EY25: Z-7829492 | EZ25: 4 | FA25: 2017-12-02 | FB25: Z-7829536 | FC25: 4 | FD25: 02.12.20174 | FE25: Z-782953 | FF25: 5 | FG25: 2018-06-14 | FH25: 963 | FI25: 4 | FJ25: 2018-06-05 | FK25: 7829539 | FL25: 6 | FM25: 2018-06-05 | FN25: 7829542 | FO25: 5 | FP25: 2018-06-05 | FQ25: 7829556 | FR25: 5 | FS25: 2018-06-05 | FT25: 7829514 | FU25: 5 | FV25: 2018-06-05 | FW25: Бухгалтерский баланс и бухгалтерская отчетность | GD25: 5 | GE25: 2018-08-31 | GF25: СПК "Знамя Труда-1" Красносельского р-на Костромской обл. | JJ25: 2.1 | JL25: 3 | JM25: 9 | JN25: 12 | JO25: 9 | JP25: 24 | JQ25: 4536 | JR25: 567
A26: 21 | B26: Смирнова | C26: Людмила | D26: Николаевна | E26: Смирнова Л. Н. | J26: 1987-08-31 | K26: г. Галич Костромской обл. | L26: РФ | M26: ж | N26: Галичский педагогический колледж | O26: 2007 | P26: замужем | Q26: Костромская обл., г. Галич, ул. Красовского, д. 41 | Y26: 15820 | Z26: Экономический | AA26: 38.03.01 | AB26: Экономика | AC26: Бухгалтерский учет, анализ и аудит | AD26: 5 лет | AE26: БАКАЛАВР | AF26: 2-557 | AG26: 2015-08-21 | AH26: по договору с полным возмещением затрат | AI26: 000003650 | AJ26: 2015-08-13 | AX26: 2-561 | AY26: 2016-09-01 | AZ26: 2-703 | BA26: 2017-09-01 | CA26: 4 | CB26: 247z | CC26: 4 | CD26: 2018-06-05 | CE26: 78210135 | CF26: 6 | CG26: 2018-06-05 | CH26: 78210110 | CI26: 4 | CJ26: 12.09.2016 | CL26: 6 | CM26: 11.06.2016 | CO26: 4 | CP26: 30.06.2016 | CR26: 5 | CS26: 30.06.2016 | CU26: 5 | CV26: 11.06.2016 | CX26: 4 | CY26: 11.06.2016 | DA26: 6 | DB26: 23.12.2016 | DD26: 6 | DE26: 23.12.2016 | DG26: 3 | DH26: 23.12.2016 | DJ26: 4 | DK26: 23.12.2016 | DM26: 6 | DN26: 30.06.2017 | DS26: 4 | DT26: 30.05.2017 | DV26: 5 | DW26: 22.04.2017 | EB26: 5 | EC26: 22.04.2017 | EE26: 6 | EF26: 22.04.2017 | EH26: 6 | EI26: 22.04.2017 | EN26: 4 | EO26: 01.07.2017 | EP26: ФГБОУ ВО Костромская ГСХА, кафедра экономической кибернетики | ET26: 5 | EU26: 02.12.20170 | EV26: Z-782949 | FF26: 4 | FG26: 2017-12-02 | FH26: Z-7829484 | FL26: 6 | FM26: 2018-09-17 | FN26: 7829542-2 | FR26: 5 | FS26: 2018-06-05 | FT26: 7829514 | FU26: 5 | FV26: 2018-06-05 | FW26: История развития бухгалтерского учета | GD26: 4 | GE26: 2018-08-31 | GF26: ООО "Галловей Кострома" Галичского ьр-на Костромской обл. | JJ26: =(JL26*3+JM26*4+JN26*5)/50 -> 1.48 | JL26: =COUNTIF(CC26:JG26,3) -> 1 | JM26: =COUNTIF(CC26:JG26,4) -> 9 | JN26: =COUNTIF(CC26:JG26,5) -> 7 | JO26: =COUNTIF(CC26:JG26,6) -> 8 | JP26: =SUM(JL26:JN26) -> 17 | JQ26: =SUMIF(CC26:JG26,">0",$CC$3:$JG$3) -> 3276 | JR26: =INT(JQ26/8+0.5) -> 410
A27: 22 | B27: Соловьев | C27: Олег | D27: Иольевич | E27: Соловьев О. И. | G27: Соловьеву | H27: Олегу | I27: Иольевичу | J27: 1969-08-05 | K27: г. Кострома | L27: РФ | M27: м | N27: СПТУ 20 г. Костромы | O27: 1987 | P27: холост | Q27: г. Кострома, ул. Суслова, д. 4, кв. 113 | Y27: 15821 | Z27: Экономический | AA27: 38.03.01 | AB27: Экономика | AC27: Бухгалтерский учет, анализ и аудит | AD27: 5 лет | AE27: БАКАЛАВР | AF27: 2-557 | AG27: 2015-08-21 | AH27: по договору с полным возмещением затрат | AI27: 000003571 | AJ27: 2015-08-10 | AX27: 2-561 | AY27: 2016-09-01 | AZ27: 2-703 | BA27: 2017-09-01 | CA27: 4 | CB27: 247z | CC27: 4 | CD27: 2018-06-05 | CE27: 78210135 | CF27: 6 | CG27: 2018-06-05 | CH27: 78210110 | CI27: 5 | CJ27: 12.09.2016 | CL27: 6 | CM27: 11.06.2016 | CO27: 3 | CP27: 30.06.2016 | CR27: 4 | CS27: 30.06.2016 | CU27: 4 | CV27: 09.09.2016 | CX27: 4 | CY27: 11.06.2016 | DA27: 6 | DB27: 23.12.2016 | DD27: 6 | DE27: 23.12.2016 | DG27: 4 | DH27: 23.12.2016 | DJ27: 4 | DK27: 23.12.2016 | DM27: 6 | DN27: 23.12.2016 | DP27: 4 | DQ27: 22.04.2017 | DS27: 4 | DT27: 22.04.2017 | DV27: 5 | DW27: 22.04.2017 | DY27: 4 | DZ27: 22.04.2017 | EB27: 4 | EC27: 22.04.2017 | EE27: 6 | EF27: 22.04.2017 | EH27: 6 | EI27: 22.04.2017 | EK27: 6 | EL27: 22.04.2017 | EN27: 5 | EO27: 01.07.2017 | EP27: ФГБОУ ВО Костромская ГСХА, кафедра экономической кибернетики | ET27: 5 | EU27: 2017-12-02 | EV27: Z-7829490 | EW27: 4 | EX27: 2017-12-02 | EY27: Z-7829492 | EZ27: 4 | FA27: 2017-12-02 | FB27: Z-7829536 | FC27: 4 | FD27: 2017-12-02 | FE27: Z-7829534 | FF27: 4 | FG27: 2017-12-02 | FH27: Z-7829484 | FI27: 3 | FJ27: 2018-06-05 | FK27: 7829539 | FL27: 6 | FM27: 2018-06-05 | FN27: 7829542 | FO27: 4 | FP27: 2018-06-05 | FQ27: 7829556 | FR27: 5 | FS27: 2018-06-05 | FT27: 7829514 | FU27: 5 | FV27: 2018-06-05 | FW27: Основы организации и ведения бухгалтерского учета на предприятиях | FX27: 4 | FY27: 2018-06-05 | FZ27: 7829545 | GA27: 4 | GB27: 2018-06-05 | GC27: Определение оптимальной специализации и сочетания отраслей сельскохозяйственного предприятия. | GD27: 5 | GE27: 2018-08-31 | GF27: ООО "Славянский+" г. Кострома | JJ27: 2.18 | JL27: 2 | JM27: 17 | JN27: 7 | JO27: 9 | JP27: 26 | JQ27: 4824 | JR27: 603
A28: 23 | B28: Чадаев | C28: Вадим | D28: Валентинович | E28: Чадаев В. В. | G28: Чадаеву | H28: Вадиму | I28: Валентиновичу | J28: 1973-10-06 | K28: г. Галич Костромской обл. | L28: РФ | M28: м | N28: Среднее ПТУ 11 г. Галича Костромской обл. | O28: 1992 | P28: холост | Q28: Костромская обл. г. Галич ул. Гладышева, д.9а, кв. 54 | Y28: 14135 | Z28: Экономический | AA28: 38.03.01 | AB28: Экономика | AC28: Бухгалтерский учет, анализ и аудит | AD28: 5 лет | AE28: БАКАЛАВР | AF28: 2-525 | AG28: 2014-08-21 | AH28: по договору с полным возмещением затрат | AI28: 000002999 | AJ28: 2014-08-19 | AM28: 2-672 | AN28: 2017-08-01 | AO28: за академическую неуспеваемость | AP28: 2-29 | AQ28: 2018-01-18 | AX28: 2-571 | AY28: 2015-09-01 | AZ28: 2-561 | BA28: 2016-09-01 | CA28: 4 | CB28: 247z | CF28: 6 | CG28: 2018-06-05 | CH28: 78210110 | CI28: 4 | CJ28: 01.06.2015 | CL28: 6 | CM28: 02.06.2015 | CO28: 5 | CP28: 02.06.2015 | CR28: 5 | CS28: 06.06.2015 | CU28: 5 | CV28: 30.05.2015 | DA28: 6 | DB28: 20.09.2016 | DD28: 6 | DE28: 07.09.2016 | DG28: 3 | DH28: 26.12.2015 | DS28: 4 | DT28: 27.05.2016 | DV28: 3 | DW28: 27.04.2016 | EE28: 6 | EF28: 22.05.2015 | FO28: 5 | FP28: 03.06.2017 | GF28: ООО "АТП" г. Галич Костромской обл. | JJ28: 0.68 | JL28: 2 | JM28: 2 | JN28: 4 | JO28: 5 | JP28: 8 | JQ28: 1952 | JR28: 244
A29: 24 | B29: Тютя (Баталина) | C29: Лилия | D29: Ивановна | E29: Тютя (Баталина) Л. И. | G29: Тютя (Баталиной) | H29: Лилии | I29: Ивановне | J29: 1995-03-09 | K29: с. Подольское Красносельского р-на Костромской обл. | L29: РФ | M29: ж | N29: ОГБОУ НПО Профессиональное училище 30 п. Красное-на-Волге Костромской области | O29: 2013 | P29: замужем | Q29: 157940 Костромская обл., Красносельский р-н, пгт. Красное-на-Волге, ул. Песочная, д. 1, кв. 30 | Y29: 160609 | Z29: Экономический | AA29: 38.03.01 | AB29: Экономика | AC29: Бухгалтерский учет, анализ и аудит | AD29: 5 лет | AE29: БАКАЛАВР | AF29: 2-536 | AG29: 2016-08-15 | AH29: в рамках контрольных цифр на основное место | CA29: 3 | CB29: 233z | CC29: 4 | CD29: 10.06.2017 | CF29: 6 | CG29: 10.06.2017 | CI29: 4 | CJ29: 10.06.2017 | CL29: 6 | CM29: 10.06.2017 | CO29: 3 | CP29: 10.06.2017 | CR29: 4 | CS29: 10.06.2017 | CU29: 3 | CV29: 22.12.2017 | CX29: 3 | CY29: 10.06.2017 | DA29: 6 | DB29: 23.12.2017 | DD29: 6 | DE29: 23.12.2017 | DG29: 3 | DH29: 2017-12-23 | DI29: 785529 | DJ29: 3 | DK29: 23.12.2017 | DM29: 6 | DN29: 23.12.2017 | DP29: 4 | DQ29: 2018-04-28 | DR29: 7859533 | DS29: 4 | DT29: 28.04.2018 | DU29: 7859498 | DV29: 4 | DW29: 28.04.2018 | DX29: 7859723 | DY29: 3 | DZ29: 28.04.2018 | EA29: 7859552 | EB29: 4 | EC29: 28.04.2018 | ED29: 7859483 | EE29: 6 | EF29: 28.04.2018 | EG29: 7859872 | EH29: 6 | EI29: 28.04.2018 | EJ29: 7859873 | EK29: 6 | EL29: 28.04.2018 | EM29: 7859482 | EN29: 5 | EO29: 2018-06-30 | EP29: ФГБОУ ВО Костромская ГСХА, кафедра экономической кибернетики | IH29: 0 | JJ29: =(JL29*3+JM29*4+JN29*5)/50 -> 1.02 | JL29: =COUNTIF(CC29:JG29,3) -> 6 | JM29: =COUNTIF(CC29:JG29,4) -> 7 | JN29: =COUNTIF(CC29:JG29,5) -> 1 | JO29: =COUNTIF(CC29:JG29,6) -> 8 | JP29: =SUM(JL29:JN29) -> 14 | JQ29: =SUMIF(CC29:JG29,">0",$CC$3:$JG$3) -> 3132 | JR29: =INT(JQ29/8+0.5) -> 392
A30: 25 | B30: Бедарева | C30: Ольга | D30: Николаевна | E30: Бедарева О. Н. | G30: Бедаревой | H30: Ольге | I30: Николаевне | J30: 1990-05-08 | K30: г. Кострома | L30: РФ | M30: ж | N30: ГОУ НПО Профессиональный лицей 29 г. Костромы | O30: 2009 | P30: замужем | Q30: Кострома г. Боровая ул. д. 8 а, кв. 13, к.1 | Y30: 170825 | Z30: Экономический | AA30: 38.03.01 | AB30: Экономика | AC30: Бухгалтерский учет, анализ и аудит | AD30: 5 лет | AE30: БАКАЛАВР | AF30: 2-383 | AG30: 2008-08-25 | AH30: по договору с полным возмещение затрат | AI30: 128 | AJ30: 2009-08-19 | AM30: 2-483 | AN30: 2014-07-16 | AP30: 2-761 | AQ30: 2017-09-27 | CA30: 3 | CB30: 233z | CI30: 4 | CJ30: 14.10.2014 | CL30: 6 | CM30: 27.10.2017 | CO30: 3 | CP30: 21.10.2017 | CR30: 3 | CS30: 2018-04-02 | CT30: 591 | CX30: 3 | CY30: 18.10.2017 | DA30: 6 | DB30: 02.11.2017 | DD30: 6 | DE30: 23.12.2017 | DG30: 4 | DH30: 2017-12-23 | DI30: 785529 | DJ30: 4 | DK30: 23.12.2017 | DM30: 6 | DN30: 23.12.2017 | DP30: 4 | DQ30: 2018-04-28 | DR30: 7859533 | DS30: 3 | DT30: 02.11.2017 | DV30: 4 | DW30: 28.04.2018 | DX30: 7859723 | DY30: 3 | DZ30: 30.10.2017 | EB30: 5 | EC30: 28.04.2018 | ED30: 7859483 | EE30: 6 | EF30: 28.04.2018 | EG30: 7859872 | EH30: 6 | EI30: 28.04.2018 | EJ30: 7859873 | EK30: 6 | EL30: 28.04.2018 | EM30: 7859482 | EP30: ФГБОУ ВО Костромская ГСХА, кафедра экономической кибернетики | EQ30: 6 | ER30: 31.10.2017 | IH30: 0 | JJ30: 0.8 | JL30: 5 | JM30: 5 | JN30: 1 | JO30: 8 | JP30: 11 | JQ30: 2556 | JR30: 320
A31: 26 | B31: Беляева | C31: Анжелика | D31: Сергеевна | E31: Беляева А. С. | G31: Беляевой | H31: Анжелике | I31: Сергеевне | J31: 1997-08-25 | K31: п. Судиславль Костромской обл. | L31: РФ | M31: ж | N31: ОГБПОУ Костромской торгово-экономический колледж г. Кострома | O31: 2016 | P31: не замужем | Q31: 156003 г. Кострома, ул. Водяная, д. 2, кв. 1 | Y31: 160611 | Z31: Экономический | AA31: 38.03.01 | AB31: Экономика | AC31: Бухгалтерский учет, анализ и аудит | AD31: 5 лет | AE31: БАКАЛАВР | AF31: 2-536 | AG31: 2016-08-15 | AH31: в рамках контрольных цифр на основное место | AX31: 2-703 | AY31: 2017-09-01 | CA31: 3 | CB31: 233z | CC31: 4 | CD31: 10.06.2017 | CF31: 6 | CG31: 10.06.2017 | CI31: 4 | CJ31: 10.06.2017 | CL31: 6 | CM31: 10.06.2017 | CO31: 3 | CP31: 10.06.2017 | CR31: 4 | CS31: 10.06.2017 | CU31: 4 | CV31: 10.06.2017 | CX31: 4 | CY31: 10.06.2017 | DA31: 6 | DB31: 23.12.2017 | DD31: 6 | DE31: 23.12.2017 | DG31: 4 | DH31: 2018-06-25 | DI31: 976 | DJ31: 3 | DK31: 23.12.2017 | DM31: 6 | DN31: 2018-06-25 | DO31: 973 | DP31: 3 | DQ31: 2018-06-25 | DR31: 7859533-1 | DS31: 4 | DT31: 28.04.2018 | DU31: 7859498 | DV31: 3 | DW31: 28.04.2018 | DX31: 7859723 | DY31: 3 | DZ31: 28.04.2018 | EA31: 7859552 | EB31: 4 | EC31: 28.04.2018 | ED31: 7859483 | EE31: 6 | EF31: 28.04.2018 | EG31: 7859872 | EH31: 6 | EI31: 28.04.2018 | EJ31: 7859873 | EK31: 6 | EL31: 28.04.2018 | EM31: 7859482 | EP31: ФГБОУ ВО Костромская ГСХА, кафедра экономической кибернетики | IH31: 0 | JJ31: 0.94 | JL31: 5 | JM31: 8 | JN31: 0 | JO31: 8 | JP31: 13 | JQ31: 3132 | JR31: 392
A32: 27 | B32: Золотова (Беляева) | C32: Ольга | D32: Геннадьевна | E32: Золотова (Беляева) О. Г. | G32: Беляевой | H32: Ольге | I32: Геннадьевне | J32: 1996-01-04 | K32: д. Никифорово Красносельского р-на Костромской обл. | L32: РФ | M32: ж | N32: ОГБПОУ Костромской торгово-экономический колледж г. Кострома | O32: 2016 | P32: не замужем | Q32: 157940 Костромская обл., Красносельский р-н, пгт. Красное-на-Волге, ул. Карла Маркса, д. 40 | Y32: 160610 | Z32: Экономический | AA32: 38.03.01 | AB32: Экономика | AC32: Бухгалтерский учет, анализ и аудит | AD32: 5 лет | AE32: БАКАЛАВР | AF32: 2-542 | AG32: 2016-08-19 | AH32: по договору с полным возмещение затрат | AI32: 00004146 | AJ32: 2016-08-12 | AX32: 2-703 | AY32: 2017-09-01 | CA32: 3 | CB32: 233z | CC32: 4 | CD32: 10.06.2017 | CF32: 6 | CG32: 10.06.2017 | CI32: 4 | CJ32: 10.06.2017 | CL32: 6 | CM32: 10.06.2017 | CO32: 3 | CP32: 10.06.2017 | CR32: 4 | CS32: 10.06.2017 | CU32: 3 | CV32: 10.06.2017 | CX32: 3 | CY32: 10.06.2017 | DA32: 6 | DB32: 23.12.2017 | DD32: 6 | DE32: 23.12.2017 | DG32: 3 | DH32: 2017-12-23 | DI32: 785529 | DJ32: 3 | DK32: 23.12.2017 | DM32: 6 | DN32: 23.12.2017 | DP32: 4 | DQ32: 2018-04-28 | DR32: 7859533 | DS32: 4 | DT32: 28.04.2018 | DU32: 7859498 | DV32: 4 | DW32: 28.04.2018 | DX32: 7859723 | DY32: 4 | DZ32: 28.04.2018 | EA32: 7859552 | EB32: 4 | EC32: 28.04.2018 | ED32: 7859483 | EE32: 6 | EF32: 28.04.2018 | EG32: 7859872 | EH32: 6 | EI32: 28.04.2018 | EJ32: 7859873 | EK32: 6 | EL32: 28.04.2018 | EM32: 7859482 | EN32: 4 | EO32: 2018-06-30 | EP32: ФГБОУ ВО Костромская ГСХА, кафедра экономической кибернетики | IH32: 0 | JJ32: 1.02 | JL32: 5 | JM32: 9 | JN32: 0 | JO32: 8 | JP32: 14 | JQ32: 3132 | JR32: 392
A33: 28 | B33: Канорина | C33: Екатерина | D33: Викторовна | E33: Канорина Е. В. | G33: Канориной | H33: Екатерине | I33: Викторовне | J33: 1990-10-07 | K33: д. Толтуново Галичского р-на Костромской обл. | L33: РФ | M33: ж | N33: г. Галич Костромская обл., ФГОУ СПО Галичский аграрный техникум | O33: 2010 | P33: замужем | Q33: 157225 Костромская обл., Галичский р-н, д. Толтуново, д. 40, кв. 2 | Y33: 160613 | Z33: Экономический | AA33: 38.03.01 | AB33: Экономика | AC33: Бухгалтерский учет, анализ и аудит | AD33: 5 лет | AE33: БАКАЛАВР | AF33: 2-542 | AG33: 2016-08-19 | AH33: по договору с полным возмещение затрат | AI33: 000004156 | AJ33: 2016-08-15 | AX33: 2-703 | AY33: 2017-09-01 | CA33: 3 | CB33: 233z | CC33: 4 | CD33: 10.06.2017 | CF33: 6 | CG33: 10.06.2017 | CI33: 4 | CJ33: 10.06.2017 | CL33: 6 | CM33: 10.06.2017 | CO33: 3 | CP33: 10.06.2017 | CR33: 5 | CS33: 10.06.2017 | CU33: 4 | CV33: 10.06.2017 | CX33: 4 | CY33: 10.06.2017 | DA33: 6 | DB33: 23.12.2017 | DD33: 6 | DE33: 23.12.2017 | DG33: 4 | DH33: 2017-12-23 | DI33: 785529 | DJ33: 3 | DK33: 23.12.2017 | DM33: 6 | DN33: 23.12.2017 | DP33: 4 | DQ33: 2018-04-28 | DR33: 7859533 | DS33: 4 | DT33: 28.04.2018 | DU33: 7859498 | DV33: 3 | DW33: 28.04.2018 | DX33: 7859723 | DY33: 3 | DZ33: 28.04.2018 | EA33: 7859552 | EB33: 5 | EC33: 28.04.2018 | ED33: 7859483 | EE33: 6 | EF33: 28.04.2018 | EG33: 7859872 | EH33: 6 | EI33: 28.04.2018 | EJ33: 7859873 | EK33: 6 | EL33: 28.04.2018 | EM33: 7859482 | EP33: ФГБОУ ВО Костромская ГСХА, кафедра экономической кибернетики | IH33: 0 | JJ33: 1 | JL33: 4 | JM33: 7 | JN33: 2 | JO33: 8 | JP33: 13 | JQ33: 3132 | JR33: 392
A34: 29 | B34: Кузьмина | C34: Анастасия | D34: Леонидовна | E34: =CONCATENATE(B34," ",LEFT(C34,1),". ",LEFT(D34,1),".") -> Кузьмина А. Л. | G34: Кузьминой | H34: Анастасии | I34: Леонидовне | J34: 1997-01-22 | K34: г. Кострома | L34: РФ | M34: ж | N34: ОГБПОУ Костромской торгово-экономический колледж г. Кострома | O34: 2016 | P34: не замужем | Q34: 156013 г. Кострома, ул. Ленина, д. 50, кв. 55 | Y34: 160614 | Z34: Экономический | AA34: 38.03.01 | AB34: Экономика | AC34: Бухгалтерский учет, анализ и аудит | AD34: 5 лет | AE34: БАКАЛАВР | AF34: 2-542 | AG34: 2016-08-19 | AH34: по договору с полным возмещение затрат | AI34: 000004121 | AJ34: 2016-08-11 | AX34: 2-703 | AY34: 2017-09-01 | CA34: 3 | CB34: 233z | CC34: 4 | CD34: 10.06.2017 | CF34: 6 | CG34: 10.06.2017 | CI34: 4 | CJ34: 10.06.2017 | CL34: 6 | CM34: 10.06.2017 | CO34: 3 | CP34: 10.06.2017 | CR34: 3 | CS34: 10.06.2017 | CU34: 4 | CV34: 10.06.2017 | CX34: 4 | CY34: 10.06.2017 | DA34: 6 | DB34: 23.12.2017 | DD34: 6 | DE34: 23.12.2017 | DJ34: 3 | DK34: 23.12.2017 | DM34: 6 | DN34: 23.12.2017 | DS34: 4 | DT34: 28.04.2018 | DU34: 7859498 | DV34: 3 | DW34: 28.04.2018 | DX34: 7859723 | DY34: 3 | DZ34: 28.04.2018 | EA34: 7859552 | EB34: 4 | EC34: 28.04.2018 | ED34: 7859483 | EE34: 6 | EF34: 28.04.2018 | EG34: 7859872 | EH34: 6 | EI34: 28.04.2018 | EJ34: 7859873 | EK34: 6 | EL34: 28.04.2018 | EM34: 7859482 | EN34: 5 | EO34: 2018-06-30 | EP34: ФГБОУ ВО Костромская ГСХА, кафедра экономической кибернетики | IH34: 0 | JJ34: 0.88 | JL34: 5 | JM34: 6 | JN34: 1 | JO34: 8 | JP34: 12 | JQ34: 2772 | JR34: 347
A35: 30 | B35: Мальцева | C35: Алина | D35: Юрьевна | E35: Мальцева А. Ю. | G35: Мальцевой | H35: Алине | I35: Юрьевне | J35: 1996-01-01 | K35: г. Кострома | L35: РФ | M35: ж | N35: ОГБПОУ Костромской торгово-экономический колледж г. Кострома | O35: 2016 | P35: не замужем | Q35: 156025 г. Кострома, ул. Полянская, д. 31, кв. 63 | Y35: 160615 | Z35: Экономический | AA35: 38.03.01 | AB35: Экономика | AC35: Бухгалтерский учет, анализ и аудит | AD35: 5 лет | AE35: БАКАЛАВР | AF35: 2-542 | AG35: 2016-08-19 | AH35: по договору с полным возмещение затрат | AI35: 000004114 | AJ35: 2016-08-11 | AX35: 2-703 | AY35: 2017-09-01 | CA35: 3 | CB35: 233z | CC35: 4 | CD35: 10.06.2017 | CF35: 6 | CG35: 10.06.2017 | CI35: 4 | CJ35: 10.06.2017 | CL35: 6 | CM35: 10.06.2017 | CO35: 3 | CP35: 10.06.2017 | CR35: 3 | CS35: 10.06.2017 | CU35: 3 | CV35: 10.06.2017 | CX35: 4 | CY35: 10.06.2017 | DA35: 6 | DB35: 23.12.2017 | DD35: 6 | DE35: 23.12.2017 | DJ35: 3 | DK35: 23.12.2017 | DM35: 6 | DN35: 23.12.2017 | DS35: 4 | DT35: 28.04.2018 | DU35: 7859498 | DV35: 4 | DW35: 28.04.2018 | DX35: 7859723 | EB35: 4 | EC35: 28.04.2018 | ED35: 7859483 | EE35: 6 | EF35: 28.04.2018 | EG35: 7859872 | EH35: 6 | EI35: 28.04.2018 | EJ35: 7859873 | EK35: 6 | EL35: 28.04.2018 | EM35: 7859482 | EN35: 4 | EO35: 2018-06-30 | EP35: ФГБОУ ВО Костромская ГСХА, кафедра экономической кибернетики | IH35: 0 | JJ35: 0.8 | JL35: 4 | JM35: 7 | JN35: 0 | JO35: 8 | JP35: 11 | JQ35: 2556 | JR35: 320
A36: 31 | B36: Новикова | C36: Юлия | D36: Павловна | E36: Новикова Ю. П. | G36: Новиковой | H36: Юлии | I36: Павловне | J36: 1986-04-29 | K36: п. Никольское Костромского р-на Костромской обл. | L36: РФ | M36: ж | N36: Костромской лесомеханический колледж | O36: 2005 | P36: не замужем | Q36: 156005 г. Кострома, ул. Сусанина Ивана, д. 54/17, кв. 74 | Y36: 160616 | Z36: Экономический | AA36: 38.03.01 | AB36: Экономика | AC36: Бухгалтерский учет, анализ и аудит | AD36: 5 лет | AE36: БАКАЛАВР | AF36: 2-542 | AG36: 2016-08-19 | AH36: по договору с полным возмещение затрат | AI36: 000004172 | AJ36: 2016-08-15 | AX36: 2-703 | AY36: 2017-09-01 | CA36: 3 | CB36: 233z | CC36: 4 | CD36: 10.06.2017 | CF36: 6 | CG36: 10.06.2017 | CI36: 3 | CJ36: 10.06.2017 | CL36: 6 | CM36: 10.06.2017 | CO36: 3 | CP36: 10.06.2017 | CR36: 4 | CS36: 10.06.2017 | CU36: 3 | CV36: 10.06.2017 | CX36: 3 | CY36: 10.06.2017 | DA36: 6 | DB36: 23.12.2017 | DD36: 6 | DE36: 23.12.2017 | DG36: 4 | DH36: 2017-12-23 | DI36: 785529 | DJ36: 3 | DK36: 23.12.2017 | DM36: 6 | DN36: 23.12.2017 | DP36: 3 | DQ36: 2018-04-28 | DR36: 7859533 | DS36: 5 | DT36: 28.04.2018 | DU36: 7859498 | DV36: 4 | DW36: 28.04.2018 | DX36: 7859723 | DY36: 3 | DZ36: 28.04.2018 | EA36: 7859552 | EB36: 5 | EC36: 28.04.2018 | ED36: 7859483 | EE36: 6 | EF36: 28.04.2018 | EG36: 7859872 | EH36: 6 | EI36: 28.04.2018 | EJ36: 7859873 | EK36: 6 | EL36: 28.04.2018 | EM36: 7859482 | EN36: 3 | EO36: 2018-07-11 | EP36: ФГБОУ ВО Костромская ГСХА, кафедра экономической кибернетики | IH36: 0 | JJ36: 1 | JL36: 8 | JM36: 4 | JN36: 2 | JO36: 8 | JP36: 14 | JQ36: 3132 | JR36: 392
A37: 32 | B37: Окишев | C37: Максим | D37: Сергеевич | E37: Окишев М. С. | G37: Окишеву | H37: Максиму | I37: Сергеевичу | J37: 1991-12-07 | K37: п. Санино Петушинского р-на Владимирской обл. | L37: РФ | M37: м | N37: МОУ Санинская средняя общеобразовательная школа п. Санинского ДОКа Петушинского р-н,а Владимирской области | O37: 2010 | P37: холост | Q37: 150045 Ярославская обл., г. Ярославль, ул. Панина, д. 5-2, кв. 130 | Y37: 160617 | Z37: Экономический | AA37: 38.03.01 | AB37: Экономика | AC37: Бухгалтерский учет, анализ и аудит | AD37: 5 лет | AE37: БАКАЛАВР | AF37: 2-542 | AG37: 2016-08-19 | AH37: по договору с полным возмещение затрат | AI37: 000004112 | AJ37: 2016-08-11 | AX37: 2-703 | AY37: 2017-09-01 | CA37: 3 | CB37: 233z | CC37: 4 | CD37: 10.06.2017 | CF37: 6 | CG37: 10.06.2017 | CI37: 3 | CJ37: 10.06.2017 | CL37: 6 | CM37: 10.06.2017 | CO37: 3 | CP37: 10.06.2017 | CR37: 4 | CS37: 10.06.2017 | CU37: 4 | CV37: 10.06.2017 | CX37: 3 | CY37: 10.06.2017 | DA37: 6 | DB37: 23.12.2017 | DD37: 6 | DE37: 23.12.2017 | DG37: 4 | DH37: 2017-12-23 | DI37: 785529 | DJ37: 4 | DK37: 23.12.2017 | DM37: 6 | DN37: 23.12.2017 | DP37: 4 | DQ37: 28.04.2018 | DR37: 7859533 | DS37: 5 | DT37: 28.04.2018 | DU37: 7859498 | DV37: 4 | DW37: 28.04.2018 | DX37: 7859723 | DY37: 4 | DZ37: 28.04.2018 | EA37: 7859552 | EB37: 5 | EC37: 28.04.2018 | ED37: 7859483 | EE37: 6 | EF37: 28.04.2018 | EG37: 7859872 | EH37: 6 | EI37: 28.04.2018 | EJ37: 7859873 | EK37: 6 | EL37: 28.04.2018 | EM37: 7859482 | EN37: 5 | EO37: 2018-06-30 | EP37: ФГБОУ ВО Костромская ГСХА, кафедра экономической кибернетики | IH37: 0 | JJ37: 1.12 | JL37: 3 | JM37: 8 | JN37: 3 | JO37: 8 | JP37: 14 | JQ37: 3132 | JR37: 392
A38: 33 | B38: Петрова | C38: Юлия | D38: Александровна | E38: Петрова Ю. А. | G38: Петровой | H38: Юлии | I38: Александровне | J38: 1995-07-01 | K38: д. Бабаево Нерехтсвкого р-на Костромской обл. | L38: РФ | M38: ж | N38: ОГБ ПОУ Костромской энергетический техникум имени Ф.В. Чижова г. Кострома | O38: 2015 | P38: замужем | Q38: 156016 г. Кострома, ул. Богатырская, д. 34, кв. 6 | Y38: 160618 | Z38: Экономический | AA38: 38.03.01 | AB38: Экономика | AC38: Бухгалтерский учет, анализ и аудит | AD38: 5 лет | AE38: БАКАЛАВР | AF38: 2-536 | AG38: 2016-08-15 | AH38: в рамках контрольных цифр на основное место | AX38: 2-703 | AY38: 2017-09-01 | CA38: 3 | CB38: 233z | CC38: 4 | CD38: 10.06.2017 | CF38: 6 | CG38: 10.06.2017 | CI38: 4 | CJ38: 10.06.2017 | CL38: 6 | CM38: 10.06.2017 | CO38: 3 | CP38: 10.06.2017 | CR38: 5 | CS38: 10.06.2017 | CU38: 4 | CV38: 10.06.2017 | CX38: 4 | CY38: 10.06.2017 | DA38: 6 | DB38: 23.12.2017 | DD38: 6 | DE38: 23.12.2017 | DG38: 3 | DH38: 2017-12-23 | DI38: 785529 | DJ38: 4 | DK38: 23.12.2017 | DM38: 6 | DN38: 23.12.2017 | DP38: 5 | DQ38: 28.04.2018 | DR38: 7859533 | DS38: 4 | DT38: 28.04.2018 | DU38: 7859498 | DV38: 4 | DW38: 28.04.2018 | DX38: 7859723 | DY38: 4 | DZ38: 28.04.2018 | EA38: 7859552 | EB38: 4 | EC38: 28.04.2018 | ED38: 7859483 | EE38: 6 | EF38: 28.04.2018 | EG38: 7859872 | EH38: 6 | EI38: 28.04.2018 | EJ38: 7859873 | EK38: 6 | EL38: 28.04.2018 | EM38: 7859482 | EN38: 4 | EO38: 2018-06-30 | EP38: ФГБОУ ВО Костромская ГСХА, кафедра экономической кибернетики | IH38: 0 | JJ38: 1.12 | JL38: 2 | JM38: 10 | JN38: 2 | JO38: 8 | JP38: 14 | JQ38: 3132 | JR38: 392
A39: 34 | B39: Румянцева | C39: Мария | D39: Владимировна | E39: Румянцева М. В. | G39: Румянцевой | H39: Марии | I39: Владимировне | J39: 1983-09-10 | K39: г. Кострома | L39: РФ | M39: ж | N39: Костромской механико-технологический техникум | O39: 2002 | P39: не замужем | Q39: 156007 г. Кострома, мкр Якиманиха, д. 6, кв. 6 | Y39: 160619 | Z39: Экономический | AA39: 38.03.01 | AB39: Экономика | AC39: Бухгалтерский учет, анализ и аудит | AD39: 5 лет | AE39: БАКАЛАВР | AF39: 2-536 | AG39: 2016-08-15 | AH39: в рамках контрольных цифр на основное место | AX39: 2-703 | AY39: 2017-09-01 | CA39: 3 | CB39: 233z | CC39: 5 | CD39: 10.06.2017 | CF39: 6 | CG39: 10.06.2017 | CI39: 5 | CJ39: 10.06.2017 | CL39: 6 | CM39: 10.06.2017 | CO39: 3 | CP39: 10.06.2017 | CR39: 5 | CS39: 10.06.2017 | CU39: 4 | CV39: 10.06.2017 | CX39: 4 | CY39: 10.06.2017 | DA39: 6 | DB39: 23.12.2017 | DD39: 6 | DE39: 23.12.2017 | DG39: 4 | DH39: 2017-12-23 | DI39: 785529 | DJ39: 4 | DK39: 23.12.2017 | DM39: 6 | DN39: 23.12.2017 | DP39: 4 | DQ39: 28.04.2018 | DR39: 7859533 | DS39: 4 | DT39: 28.04.2018 | DU39: 7859498 | DV39: 5 | DW39: 28.04.2018 | DX39: 7859723 | DY39: 3 | DZ39: 28.04.2018 | EA39: 7859552 | EB39: 5 | EC39: 28.04.2018 | ED39: 7859483 | EE39: 6 | EF39: 28.04.2018 | EG39: 7859872 | EH39: 6 | EI39: 28.04.2018 | EJ39: 7859873 | EK39: 6 | EL39: 28.04.2018 | EM39: 7859482 | EN39: 5 | EO39: 2018-06-30 | EP39: ФГБОУ ВО Костромская ГСХА, кафедра экономической кибернетики | IH39: 0 | JJ39: 1.2 | JL39: 2 | JM39: 6 | JN39: 6 | JO39: 8 | JP39: 14 | JQ39: 3132 | JR39: 392
A40: 35 | B40: Серова | C40: Алёна | D40: Вячеславовна | E40: Серова А. В. | G40: Серовой | H40: Алёне | I40: Вячеславовне | J40: 1997-11-17 | K40: г. Кострома | L40: РФ | M40: ж | N40: ОГБПОУ Костромской торгово-экономический колледж г. Кострома | O40: 2016 | P40: не замужем | Q40: 156012 г. Кострома, ул. Опалиха, д. 23, кв. 2 | Y40: 160621 | Z40: Экономический | AA40: 38.03.01 | AB40: Экономика | AC40: Бухгалтерский учет, анализ и аудит | AD40: 5 лет | AE40: БАКАЛАВР | AF40: 2-536 | AG40: 2016-08-15 | AH40: в рамках контрольных цифр на основное место | AX40: 2-703 | AY40: 2017-09-01 | CA40: 3 | CB40: 233z | CC40: 4 | CD40: 10.06.2017 | CF40: 6 | CG40: 10.06.2017 | CI40: 4 | CJ40: 10.06.2017 | CL40: 6 | CM40: 10.06.2017 | CO40: 3 | CP40: 10.06.2017 | CR40: 4 | CS40: 10.06.2017 | CU40: 4 | CV40: 10.06.2017 | CX40: 4 | CY40: 10.06.2017 | DA40: 6 | DB40: 23.12.2017 | DD40: 6 | DE40: 23.12.2017 | DG40: 4 | DH40: 2018-06-25 | DI40: 977 | DJ40: 3 | DK40: 2018-06-22 | DL40: 972 | DM40: 6 | DN40: 2018-06-25 | DO40: 974 | DP40: 3 | DQ40: 2018-06-25 | DR40: 7859533-2 | DS40: 3 | DT40: 28.04.2018 | DU40: 7859498 | DV40: 3 | DW40: 28.04.2018 | DX40: 7859723 | DY40: 3 | DZ40: 28.04.2018 | EA40: 7859552 | EB40: 5 | EC40: 28.04.2018 | ED40: 7859483 | EE40: 6 | EF40: 28.04.2018 | EG40: 7859872 | EH40: 6 | EI40: 28.04.2018 | EJ40: 7859873 | EK40: 6 | EL40: 28.04.2018 | EM40: 7859482 | EP40: ФГБОУ ВО Костромская ГСХА, кафедра экономической кибернетики | IH40: 0 | JJ40: 0.94 | JL40: 6 | JM40: 6 | JN40: 1 | JO40: 8 | JP40: 13 | JQ40: 3132 | JR40: 392
A41: 36 | B41: Смирнов | C41: Семен | D41: Сергеевич | E41: Смирнов С. С. | G41: Смирнову | H41: Семену | I41: Сергеевичу | J41: 1989-12-24 | K41: г. Галич Костромской обл. | L41: РФ | M41: м | N41: ФГОУ среднего профессионального образования Галичский аграрный техникум | O41: 2008 | P41: холост | Q41: 157202 Костромская обл., г. Галич, ул. Машиностроителей, д. 6, кв. 36 | Y41: 160622 | Z41: Экономический | AA41: 38.03.01 | AB41: Экономика | AC41: Бухгалтерский учет, анализ и аудит | AD41: 5 лет | AE41: БАКАЛАВР | AF41: 2-542 | AG41: 2016-08-19 | AH41: по договору с полным возмещение затрат | AI41: 000004127 | AJ41: 2016-08-12 | AX41: 2-284 | AY41: 2018-04-17 | CA41: 3 | CB41: 233z | CC41: 4 | CD41: 10.06.2017 | CF41: 6 | CG41: 10.06.2017 | CI41: 4 | CJ41: 10.06.2017 | CL41: 6 | CM41: 10.06.2017 | CO41: 3 | CP41: 10.06.2017 | CR41: 4 | CS41: 10.06.2017 | CU41: 4 | CV41: 10.06.2017 | CX41: 4 | CY41: 10.06.2017 | DA41: 6 | DB41: 23.12.2017 | DD41: 6 | DE41: 23.12.2017 | DG41: 4 | DH41: 2017-12-23 | DI41: 785529 | DJ41: 4 | DK41: 23.12.2017 | DM41: 6 | DN41: 23.12.2017 | DP41: 4 | DQ41: 28.04.2018 | DR41: 7859533 | DS41: 4 | DT41: 28.04.2018 | DU41: 7859498 | DV41: 4 | DW41: 28.04.2018 | DX41: 7859723 | DY41: 4 | DZ41: 28.04.2018 | EA41: 7859552 | EB41: 5 | EC41: 28.04.2018 | ED41: 7859483 | EE41: 6 | EF41: 28.04.2018 | EG41: 7859872 | EH41: 6 | EI41: 28.04.2018 | EJ41: 7859873 | EK41: 6 | EL41: 28.04.2018 | EM41: 7859482 | EP41: ФГБОУ ВО Костромская ГСХА, кафедра экономической кибернетики | IH41: 0 | JJ41: 1.04 | JL41: 1 | JM41: 11 | JN41: 1 | JO41: 8 | JP41: 13 | JQ41: 3132 | JR41: 392
A42: 37 | B42: Смирнова | C42: Мария | D42: Николаевна | E42: Смирнова М. Н. | G42: Смирновой | H42: Марии | I42: Николаевне | J42: 1990-08-02 | K42: г. Нея Нейского р-на Костромской обл. | L42: РФ | M42: ж | N42: ГОУ СПО Костромской областной медицинский колледж имени Героя Советского Союза С.А. Богомолова | O42: 2010 | P42: замужем | Q42: 187555 Ленинградская обл., г. Тихвин, ул. Советская, д. 1, кв. 50 | Y42: 160624 | Z42: Экономический | AA42: 38.03.01 | AB42: Экономика | AC42: Бухгалтерский учет, анализ и аудит | AD42: 5 лет | AE42: БАКАЛАВР | AF42: 2-536 | AG42: 2016-08-15 | AH42: в рамках контрольных цифр на основное место | AX42: 2-703 | AY42: 2017-09-01 | CA42: 3 | CB42: 233z | CC42: 4 | CD42: 10.06.2017 | CF42: 6 | CG42: 10.06.2017 | CI42: 3 | CJ42: 10.06.2017 | CL42: 6 | CM42: 10.06.2017 | CO42: 4 | CP42: 10.06.2017 | CR42: 5 | CS42: 10.06.2017 | CU42: 4 | CV42: 10.06.2017 | CX42: 4 | CY42: 10.06.2017 | DA42: 6 | DB42: 23.12.2017 | DD42: 6 | DE42: 23.12.2017 | DG42: 4 | DH42: 2017-12-23 | DI42: 785529 | DJ42: 4 | DK42: 23.12.2017 | DM42: 6 | DN42: 23.12.2017 | DP42: 4 | DQ42: 28.04.2018 | DR42: 7859533 | DS42: 4 | DT42: 28.04.2018 | DU42: 7859498 | DV42: 4 | DW42: 28.04.2018 | DX42: 7859723 | DY42: 3 | DZ42: 28.04.2018 | EA42: 7859552 | EB42: 5 | EC42: 28.04.2018 | ED42: 7859483 | EE42: 6 | EF42: 28.04.2018 | EG42: 7859872 | EH42: 6 | EI42: 28.04.2018 | EJ42: 7859873 | EK42: 6 | EL42: 28.04.2018 | EM42: 7859482 | EP42: ФГБОУ ВО Костромская ГСХА, кафедра экономической кибернетики | IH42: 0 | JJ42: 1.04 | JL42: 2 | JM42: 9 | JN42: 2 | JO42: 8 | JP42: 13 | JQ42: 3132 | JR42: 392
A43: 38 | B43: Сумерина | C43: Лилия | D43: Александровна | E43: Сумерина Л. А. | G43: Сумериной | H43: Лилии | I43: Александровне | J43: 1983-09-17 | K43: г. Нерехта Костромской обл. | L43: РФ | M43: ж | N43: Костромской механико-технологический техникум | O43: 2002 | P43: замужем | Q43: 157800 Костромская обл., г. Нерехта, ул. Заречная, д. 9, кв. 1 | Y43: 160625 | Z43: Экономический | AA43: 38.03.01 | AB43: Экономика | AC43: Бухгалтерский учет, анализ и аудит | AD43: 5 лет | AE43: БАКАЛАВР | AF43: 2-536 | AG43: 2016-08-15 | AH43: в рамках контрольных цифр в пределах целевой квоты | AX43: 2-703 | AY43: 2017-09-01 | CA43: 3 | CB43: 233z | CC43: 4 | CD43: 10.06.2017 | CF43: 6 | CG43: 10.06.2017 | CI43: 4 | CJ43: 10.06.2017 | CL43: 6 | CM43: 10.06.2017 | CO43: 3 | CP43: 10.06.2017 | CR43: 5 | CS43: 10.06.2017 | CU43: 4 | CV43: 10.06.2017 | CX43: 4 | CY43: 10.06.2017 | DA43: 6 | DB43: 23.12.2017 | DD43: 6 | DE43: 23.12.2017 | DG43: 4 | DH43: 2017-12-23 | DI43: 785529 | DJ43: 3 | DK43: 23.12.2017 | DM43: 6 | DN43: 23.12.2017 | DP43: 5 | DQ43: 28.04.2018 | DR43: 7859533 | DS43: 5 | DT43: 28.04.2018 | DU43: 7859498 | DV43: 5 | DW43: 28.04.2018 | DX43: 7859723 | DY43: 4 | DZ43: 28.04.2018 | EA43: 7859552 | EB43: 5 | EC43: 28.04.2018 | ED43: 7859483 | EE43: 6 | EF43: 28.04.2018 | EG43: 7859872 | EH43: 6 | EI43: 28.04.2018 | EJ43: 7859873 | EK43: 6 | EL43: 28.04.2018 | EM43: 7859482 | EN43: 5 | EO43: 2018-06-30 | EP43: ФГБОУ ВО Костромская ГСХА, кафедра экономической кибернетики | IH43: 0 | JJ43: 1.2 | JL43: 2 | JM43: 6 | JN43: 6 | JO43: 8 | JP43: 14 | JQ43: 3132 | JR43: 392
A44: 39 | B44: Уткина (Гулютина) | C44: Полина | D44: Сергеевна | E44: Уткина (Гулютина) П. С. | G44: Уткиной | H44: Полине | I44: Сергеевне | J44: 1997-05-14 | K44: г. Кострома | L44: РФ | M44: ж | N44: ОГБПОУ Костромской торгово-экономический колледж г. Кострома | O44: 2016 | P44: замужем | Q44: 156005 г. Кострома, ул. Свердлова, д. 88, кв. 34 | Y44: 160612 | Z44: Экономический | AA44: 38.03.01 | AB44: Экономика | AC44: Бухгалтерский учет, анализ и аудит | AD44: 5 лет | AE44: БАКАЛАВР | AF44: 2-542 | AG44: 2016-08-19 | AH44: по договору с полным возмещение затрат | AI44: 000004138 | AJ44: 2016-08-12 | AX44: 2-703 | AY44: 2017-09-01 | CA44: 3 | CB44: 233z | CC44: 4 | CD44: 2017-06-28 | CE44: 1147 | CF44: 6 | CG44: 10.06.2017 | CI44: 4 | CJ44: 2017-06-17 | CK44: 1123 | CL44: 6 | CM44: 10.06.2017 | CO44: 3 | CP44: 10.06.2017 | CR44: 3 | CS44: 10.06.2017 | CU44: 4 | CV44: 10.06.2017 | CX44: 4 | CY44: 10.06.2017 | DA44: 6 | DB44: 23.12.2017 | DD44: 6 | DE44: 23.12.2017 | DG44: 4 | DH44: 2017-12-23 | DI44: 785529 | DJ44: 3 | DK44: 23.12.2017 | DM44: 6 | DN44: 23.12.2017 | DP44: 4 | DQ44: 28.04.2018 | DR44: 7859533 | DS44: 4 | DT44: 28.04.2018 | DU44: 7859498 | DV44: 4 | DW44: 28.04.2018 | DX44: 7859723 | DY44: 3 | DZ44: 28.04.2018 | EA44: 7859552 | EB44: 4 | EC44: 28.04.2018 | ED44: 7859483 | EE44: 6 | EF44: 28.04.2018 | EG44: 7859872 | EH44: 6 | EI44: 28.04.2018 | EJ44: 7859873 | EK44: 6 | EL44: 28.04.2018 | EM44: 7859482 | EN44: 5 | EO44: 2018-06-30 | EP44: ФГБОУ ВО Костромская ГСХА, кафедра экономической кибернетики | IH44: 0 | JJ44: 1.06 | JL44: 4 | JM44: 9 | JN44: 1 | JO44: 8 | JP44: 14 | JQ44: 3132 | JR44: 392
A45: 40 | B45: Ткаченко | C45: Евгения | D45: Владимировна | E45: Ткаченко Е. В. | G45: Ткаченко | H45: Евгении | I45: Владимировне | J45: 1990-07-13 | K45: г. Артем Приморского края | L45: РФ | M45: ж | N45: г. Екатеринбург ГОУ СПО Уральский государственный колледж имени И.И. Ползунова | O45: 2010 | P45: не замужем | Q45: 620074 Свердловская обл., г. Екатеринбург, ул. Олега Кошевого, д. 36, кв. 52 | Y45: 160626 | Z45: Экономический | AA45: 38.03.01 | AB45: Экономика | AC45: Бухгалтерский учет, анализ и аудит | AD45: 5 лет | AE45: БАКАЛАВР | AF45: 2-542 | AG45: 2016-08-19 | AH45: по договору с полным возмещение затрат | AI45: 000004087 | AJ45: 2016-08-08 | AX45: 2-339 | AY45: 2018-05-03 | CA45: 3 | CB45: 234z | CC45: 3 | CD45: 2018-05-08 | CE45: 784 | CF45: 6 | CG45: 10.06.2017 | CI45: 4 | CJ45: 10.06.2017 | CL45: 6 | CM45: 10.06.2017 | CO45: 5 | CP45: 11.10.2017 | CR45: 5 | CS45: 11.10.2017 | CU45: 4 | CV45: 11.10.2017 | CX45: 4 | CY45: 25.12.2017 | DA45: 6 | DB45: 2017-12-23 | DC45: Z-7869497 | DD45: 6 | DE45: 2017-12-23 | DF45: 7869528 | DG45: 4 | DH45: 2018-12-23 | DI45: 7869529 | DJ45: 3 | DK45: 23.12.2017 | DM45: 6 | DN45: 23.12.2017 | DP45: 5 | DQ45: 28.04.2018 | DS45: 4 | DT45: 2018-04-28 | DU45: 7869498 | EE45: 6 | EF45: 2018-04-28 | EG45: 7869872 | EH45: 6 | EI45: 2018-04-28 | EJ45: 7869873 | EP45: ФГБОУ ВО Костромская ГСХА, кафедра экономической кибернетики | IH45: 0 | JJ45: 0.82 | JL45: 2 | JM45: 5 | JN45: 3 | JO45: 7 | JP45: 10 | JQ45: 2548 | JR45: 319
A46: 41 | B46: Асанова | C46: Шукрона | D46: Солехджоновна | E46: Асанова Ш. С. | G46: Асановой | H46: Шукроне | I46: Солехджоновне | J46: 1998-02-08 | K46: Ишкашимский р-н Республики Таджикистан | L46: Республика Таджикистан | M46: ж | N46: СОУ 21 Ишкашимского района Республики Таджикистан | O46: 2016 | P46: не замужем | Y46: 170781 | Z46: Экономический | AA46: 38.03.01 | AB46: Экономика | AC46: Бухгалтерский учет, анализ и аудит | AD46: 5 лет | AE46: БАКАЛАВР | AF46: 2-701 | AG46: 2017-08-31 | AH46: по договору с полным возмещением затрат | AI46: 000004586 | AJ46: 2017-08-18 | CA46: 2 | CB46: 225z | CC46: 3 | CD46: 2018-06-09 | CE46: 7899481 | CF46: 6 | CG46: 2018-06-09 | CH46: 7899710 | CI46: 4 | CJ46: 2018-06-09 | CK46: 7899530 | CL46: 6 | CM46: 2018-06-09 | CN46: 7899527 | CO46: 3 | CP46: 2018-06-09 | CQ46: 7899494 | CR46: 3 | CS46: 2018-06-09 | CT46: 7899495 | CU46: 3 | CV46: 2018-06-09 | CW46: 7899550 | CX46: 3 | CY46: 2018-06-09 | CZ46: 78910236 | IH46: 0 | JJ46: 0.38 | JL46: 5 | JM46: 1 | JN46: 0 | JO46: 2 | JP46: 6 | JQ46: 1548 | JR46: 194
A47: 42 | B47: Афанасьева | C47: Светлана | D47: Владимировна | E47: Афанасьева С. В. | G47: Афанасьевой | H47: Светлане | I47: Владимировне | J47: 1976-03-29 | K47: г. Нерехта Костромской обл. | L47: РФ | M47: ж | N47: Костромской коммерческий колледж | O47: 1995 | P47: замужем | Q47: 156011 г. Кострома, Студенческий проезд, д.27, кв.108 | Y47: 170782 | Z47: Экономический | AA47: 38.03.01 | AB47: Экономика | AC47: Бухгалтерский учет, анализ и аудит | AD47: 5 лет | AE47: БАКАЛАВР | AF47: 2-687 | AG47: 2017-08-19 | AH47: по договору с полным возмещением затрат | AI47: 000004423 | AJ47: 2017-08-02 | CA47: 2 | CB47: 228z | CC47: 4 | CD47: 2018-06-09 | CE47: 7899481 | CF47: 6 | CG47: 2018-06-09 | CH47: 7899710 | CI47: 4 | CJ47: 2018-06-09 | CK47: 7899530 | CL47: 6 | CM47: 2018-06-09 | CN47: 7899527 | CO47: 3 | CP47: 2018-06-09 | CQ47: 7899494 | CR47: 3 | CS47: 2018-06-09 | CT47: 7899495 | CU47: 4 | CV47: 2018-06-09 | CW47: 7899550 | CX47: 3 | CY47: 2018-06-09 | CZ47: 78910236 | EE47: 6 | EF47: п/атт. 20.10.2017 | EN47: 4 | EO47: п/атт. 24.10.2017 | GD47: 5 | GE47: п/атт. 25.10.2017 | IH47: 0 | JJ47: 0.6 | JL47: 3 | JM47: 4 | JN47: 1 | JO47: 3 | JP47: 8 | JQ47: 1620 | JR47: 203
A48: 43 | B48: Боркова | C48: Яна | D48: Андреевна | E48: Боркова Я. А. | G48: Борковой | H48: Яне | I48: Андреевне | J48: 1991-09-03 | K48: д. Ченцы Красносельского р-на Костромской обл. | L48: РФ | M48: ж | N48: ФГОУ СПО "Костромской политехнический колледж" | O48: 2011 | P48: не замужем | Q48: Костромская обл., Красносельский р-н, ул. Рабочая, д. 26 | Y48: 12124 | Z48: Экономический | AA48: 38.03.01 | AB48: Экономика | AC48: Бухгалтерский учет, анализ и аудит | AD48: 5 лет | AE48: БАКАЛАВР | AF48: 2-576 | AG48: 2012-08-31 | AH48: по договору с полным возмещением затрат | AI48: 903-Д-2012 | AJ48: 2012-08-30 | AM48: 2-483 | AN48: 2014-07-16 | AO48: невыполнение учебного плана | AP48: 2-761 | AQ48: 2017-09-27 | CA48: 2 | CB48: 225z | CC48: 5 | CD48: 2018-06-09 | CE48: 7899481 | CF48: 6 | CG48: 2018-06-09 | CH48: 7899710 | CI48: 4 | CJ48: 2018-06-09 | CK48: 7899530 | CL48: 6 | CM48: 2018-06-09 | CN48: 7899527 | CO48: 4 | CP48: 2018-06-09 | CQ48: 7899494 | CR48: 5 | CS48: 2018-06-09 | CT48: 7899495 | CU48: 5 | CV48: 2018-06-09 | CW48: 7899550 | CX48: 4 | CY48: 2018-06-09 | CZ48: 78910236 | IH48: 0 | JJ48: 0.54 | JL48: 0 | JM48: 3 | JN48: 3 | JO48: 2 | JP48: 6 | JQ48: 1548 | JR48: 194
A49: 44 | B49: Волкова | C49: Анна | D49: Васильевна | E49: Волкова А. В. | AA49: 38.03.01 | CA49: 2 | CB49: 225z | CC49: 4 | CD49: 2018-06-18 | CE49: 7899481-2 | CI49: 5 | CJ49: 2016-06-11 | CK49: 6237383 | CL49: 6 | CM49: 2018-06-09 | CN49: 7899527 | CO49: 3 | CP49: 2018-06-20 | CQ49: 7899494-6 | CR49: 3 | CS49: 2018-06-20 | CT49: 7899495-7 | CU49: 3 | CV49: 2018-07-11 | CW49: 7899550 | CX49: 3 | CY49: 2018-06-19 | CZ49: 78910236-5 | JJ49: 0.42 | JL49: 4 | JM49: 1 | JN49: 1 | JO49: 1 | JP49: 6 | JQ49: 1440 | JR49: 180
A50: 45 | B50: Голубева | C50: Ксения | D50: Александровна | E50: Голубева К. А. | G50: Голубевой | H50: Ксении | I50: Александровне | J50: 1998-03-01 | K50: г. Кострома | L50: РФ | M50: ж | N50: Областное государственное бюджетное профессиональное образовательное учреждение Костромской торгово-экономический колледж г. Кострома | O50: 2017 | P50: не замужем | Q50: 156000 г. Кострома, ул. Шагова, д.217, кв.21 | Y50: 170783 | Z50: Экономический | AA50: 38.03.01 | AB50: Экономика | AC50: Бухгалтерский учет, анализ и аудит | AD50: 5 лет | AE50: БАКАЛАВР | AF50: 2-687 | AG50: 2017-08-19 | AH50: по договору с полным возмещением затрат | AI50: 000004459 | AJ50: 2017-08-09 | CA50: 2 | CB50: 226z | CC50: 4 | CD50: 2018-06-09 | CE50: 7899481 | CF50: 6 | CG50: 2018-06-09 | CH50: 7899710 | CI50: 4 | CJ50: п/атт. 14.10.2017 | CL50: 6 | CM50: 2018-06-09 | CN50: 7899527-1 | CO50: 3 | CP50: 2018-06-09 | CQ50: 7899494 | CR50: 4 | CS50: 2018-06-09 | CT50: 7899495 | CU50: 5 | CV50: 2018-06-09 | CW50: 7899550 | CX50: 4 | CY50: 2018-06-09 | CZ50: 78910236 | EE50: 6 | EF50: п/атт. 20.10.2017 | EN50: 4 | EO50: п/атт. 24.10.2017 | EQ50: 6 | ER50: п/атт. 31.10.2017 | GD50: 5 | GE50: п/атт. 25.10.2017 | HQ50: 5 | HR50: п/атт. 26.10.2017 | IH50: 0 | JJ50: 0.76 | JL50: 1 | JM50: 5 | JN50: 3 | JO50: 4 | JP50: 9 | JQ50: 1728 | JR50: 216
A51: 46 | B51: Зайцева | C51: Людмила | D51: Леонидовна | E51: Зайцева Л. Л. | G51: Зайцевой | H51: Людмиле | I51: Леонидовне | J51: 1978-04-06 | K51: п. Вохма Вохомского р-на Костромской обл. | L51: РФ | M51: ж | N51: ФГОУ СПО Костромской лесомеханический колледж | O51: 2008 | P51: не замужем | Q51: 157760 Костромская обл., Вохомский р-н, п. Вохма, ул. Спортивная, д.6 | Y51: 170784 | Z51: Экономический | AA51: 38.03.01 | AB51: Экономика | AC51: Бухгалтерский учет, анализ и аудит | AD51: 5 лет | AE51: БАКАЛАВР | AF51: 2-687 | AG51: 2017-08-19 | AH51: по договору с полным возмещением затрат | AI51: 000004445 | AJ51: 2017-08-07 | CA51: 2 | CB51: 228z | CC51: 3 | CD51: 2018-06-09 | CE51: 7899481 | CI51: 4 | CJ51: 2018-06-09 | CK51: 7899530 | CL51: 6 | CM51: 2018-06-14 | CN51: 7899527 | DA51: 6 | DB51: п/атт. 11.10.2017 | DD51: 6 | DE51: п/атт. 28.10.2017 | EE51: 6 | EF51: п/атт. 20.10.2017 | EQ51: 6 | ER51: п/атт. 31.10.2017 | GD51: 5 | GE51: п/атт. 25.10.2017 | IH51: 0 | JJ51: 0.24 | JL51: 1 | JM51: 1 | JN51: 1 | JO51: 5 | JP51: 3 | JQ51: 745 | JR51: 93
A52: =A50+1 -> 46 | B52: Зайцев | C52: Сергей | D52: Васильевич | E52: Зайцев С. В. | G52: Зайцеву | H52: Сергею | I52: Васильевичу | J52: 1975-08-15 | K52: г. Кинашма Ивановской обл. | L52: РФ | M52: м | N52: ФГОУ СПО "Буйский сельскохозяйственный техникум" | O52: 2011 | P52: женат | Q52: Костромская обл., Вохомский р-н, п. Вохма, ул. Спортивная, д.6 | U52: 3400 | V52: 74789 | W52: 2001-05-04 | X52: Отделом внутренних дел Вохомского района Костромской области | Y52: 180029 | Z52: Экономический | AA52: 38.03.01 | AB52: Экономика | AC52: Бухгалтерский учет, анализ и аудит | AD52: 5 лет | AE52: БАКАЛАВР | AF52: 2-687 | AG52: 2017-08-19 | AH52: по договору с полным возмещением затрат | AI52: 000004444 | AJ52: 2017-08-07 | CA52: 2 | CB52: 227z | CC52: 3 | CD52: 2018-06-09 | CE52: 7899481 | CI52: 3 | CJ52: 2018-06-09 | CK52: 7899530 | CL52: 6 | CM52: 2018-09-17 | CN52: 7899527-10 | JJ52: 0.12 | JL52: 2 | JM52: 0 | JN52: 0 | JO52: 1 | JP52: 2 | JQ52: 396 | JR52: 50
A53: =A51+1 -> 47 | B53: Калачева | C53: Марина | D53: Владимировна | E53: Калачева М. В. | G53: Калачевой | H53: Марине | I53: Владимировне | J53: 1983-10-02 | K53: г. Нерехта Костромской обл. | L53: РФ | M53: ж | N53: Костромской технологический техникум | O53: 2003 | P53: не замужем | Q53: Костромская обл., г. Нерехта, ул. Восточная, д.7 | Y53: 170785 | Z53: Экономический | AA53: 38.03.01 | AB53: Экономика | AC53: Бухгалтерский учет, анализ и аудит | AD53: 5 лет | AE53: БАКАЛАВР | AF53: 2-687 | AG53: 2017-08-19 | AH53: по договору с полным возмещением затрат | AI53: 000004421 | AJ53: 2017-08-02 | CA53: 2 | CB53: 228z | CC53: 4 | CD53: 2018-06-09 | CE53: 7899481 | CF53: 6 | CG53: 2018-06-09 | CH53: 7899710 | CI53: 4 | CJ53: 2018-06-09 | CK53: 7899530 | CL53: 6 | CM53: 2018-06-09 | CN53: 7899527 | CO53: 3 | CP53: 2018-06-09 | CQ53: 7899494 | CR53: 3 | CS53: 2018-06-09 | CT53: 7899495 | CU53: 5 | CV53: 2018-06-09 | CW53: 7899550 | CX53: 4 | CY53: 2018-06-09 | CZ53: 78910236 | DD53: 6 | DE53: п/атт. 28.10.2017 | EE53: 6 | EF53: п/атт. 20.10.2017 | EN53: 4 | EO53: п/атт. 24.10.2017 | EQ53: 6 | ER53: п/атт. 31.10.2017 | GD53: 3 | GE53: п/атт. 25.10.2017 | IH53: 0 | JJ53: 0.6 | JL53: 3 | JM53: 4 | JN53: 1 | JO53: 5 | JP53: 8 | JQ53: 1800 | JR53: 225
A54: 48 | B54: Кашина | C54: Наталия | D54: Сергеевна | E54: Кашина Н. С. | G54: Кашиной | H54: Наталии | I54: Сергеевне | J54: 1998-08-12 | K54: г. Кострома | L54: РФ | M54: ж | N54: ОГБПОУ Костромской торгово-экономический колледж г. Кострома | O54: 2017 | P54: не замужем | Q54: 157940 Костромская обл., Красносельский р-н, пгт. Красное-на-Волге, мкр. Восточный, д.12, кв.8 | Y54: 170786 | Z54: Экономический | AA54: 38.03.01 | AB54: Экономика | AC54: Бухгалтерский учет, анализ и аудит | AD54: 5 лет | AE54: БАКАЛАВР | AF54: 2-687 | AG54: 2017-08-19 | AH54: по договору с полным возмещением затрат | AI54: 000004443 | AJ54: 2017-08-07 | CA54: 2 | CB54: 226z | CC54: 4 | CD54: 2018-06-09 | CE54: 7899481 | CF54: 6 | CG54: 2018-06-09 | CH54: 7899710 | CI54: 3 | CJ54: п/атт. 14.10.2017 | CL54: 6 | CM54: 2018-06-09 | CN54: 7899527 | CO54: 3 | CP54: 2018-06-09 | CQ54: 7899494 | CR54: 3 | CS54: 2018-06-09 | CT54: 7899495 | CU54: 4 | CV54: 2018-06-09 | CW54: 7899550 | CX54: 3 | CY54: 2018-06-09 | CZ54: 78910236 | EE54: 6 | EF54: п/атт. 20.10.2017 | EN54: 4 | EO54: п/атт. 24.10.2017 | EQ54: 6 | ER54: п/атт. 31.10.2017 | GD54: 4 | GE54: п/атт. 25.10.2017 | HQ54: 4 | HR54: п/атт. 26.10.2017 | IH54: 0 | JJ54: 0.64 | JL54: 4 | JM54: 5 | JN54: 0 | JO54: 4 | JP54: 9 | JQ54: 1728 | JR54: 216
A55: 49 | B55: Крайнова (Криулина) | C55: Алла | D55: Александровна | E55: Крайнова (Криулина) А. А. | G55: Криулиной | H55: Алле | I55: Александровне | J55: 1997-03-21 | K55: п. Гравийный Карьер Красносельского ра-на Костромской обл. | L55: РФ | M55: ж | N55: ОГБПОУ Костромской торгово-экономический колледж г. Кострома | O55: 2017 | P55: не замужем | Q55: 157943 Костромская обл., Красносельский р-н, п. Гравийный Карьер, ул. Нагорная, д.8, кв.7 | Y55: 170787 | Z55: Экономический | AA55: 38.03.01 | AB55: Экономика | AC55: Бухгалтерский учет, анализ и аудит | AD55: 5 лет | AE55: БАКАЛАВР | AF55: 2-687 | AG55: 2017-08-19 | AH55: по договору с полным возмещением затрат | AI55: 000004447 | AJ55: 2017-08-08 | CA55: 2 | CB55: 226z | CC55: 4 | CD55: 2018-06-09 | CE55: 7899481 | CI55: 4 | CJ55: п/атт. 14.10.2017 | CL55: 6 | CM55: 2018-09-17 | CN55: 7899527-9 | CO55: 3 | CP55: 2018-06-09 | CQ55: 7899494 | CX55: 4 | CY55: 2018-06-09 | CZ55: 78910236 | EE55: 6 | EF55: п/атт. 20.10.2017 | EN55: 4 | EO55: п/атт. 24.10.2017 | EQ55: 6 | ER55: п/атт. 31.10.2017 | GD55: 5 | GE55: п/атт. 25.10.2017 | HQ55: 5 | HR55: п/атт. 26.10.2017 | IH55: 0 | JJ55: 0.58 | JL55: 1 | JM55: 4 | JN55: 2 | JO55: 3 | JP55: 7 | JQ55: 1008 | JR55: 126
A56: 50 | B56: Маркова | C56: Светлана | D56: Сергеевна | E56: Маркова С. С. | G56: Марковой | H56: Светлане | I56: Сергеевне | J56: 1987-05-23 | K56: д. Нейская Шарьинского р-на Костромской обл. | L56: РФ | M56: ж | N56: Костромской торгово-экономический колледж | O56: 2006 | P56: не замужем | Q56: Костромская обл., Шарьинский р-н, с. Рождественское, ул. Механизаторов, д.6 | Y56: 170789 | Z56: Экономический | AA56: 38.03.01 | AB56: Экономика | AC56: Бухгалтерский учет, анализ и аудит | AD56: 5 лет | AE56: БАКАЛАВР | AF56: 2-687 | AG56: 2017-08-19 | AH56: по договору с полным возмещением затрат | AI56: 000004457 | AJ56: 2017-08-09 | CA56: 2 | CB56: 228z | CC56: 5 | CD56: 2018-06-09 | CE56: 7899481 | CF56: 6 | CG56: 2018-06-09 | CH56: 7899710 | CI56: 4 | CJ56: 2018-06-09 | CK56: 7899530 | CL56: 6 | CM56: 2018-06-09 | CN56: 7899527 | CO56: 3 | CP56: 2018-06-09 | CQ56: 7899494 | CR56: 3 | CS56: 2018-06-09 | CT56: 7899495 | CU56: 5 | CV56: 2018-06-09 | CW56: 7899550 | CX56: 4 | CY56: 2018-06-09 | CZ56: 78910236 | DD56: 6 | DE56: п/атт. 28.10.2017 | EE56: 6 | EF56: п/атт. 20.10.2017 | EN56: 5 | EO56: п/атт. 24.10.2017 | EQ56: 6 | ER56: п/атт. 31.10.2017 | GD56: 4 | GE56: п/атт. 25.10.2017 | HQ56: 5 | HR56: п/атт. 26.10.2017 | IH56: 0 | JJ56: 0.76 | JL56: 2 | JM56: 3 | JN56: 4 | JO56: 5 | JP56: 9 | JQ56: 1800 | JR56: 225
A57: 51 | B57: Незнамова | C57: Мария | D57: Владимировна | E57: Незнамова М. В. | G57: Незнамовой | H57: Марии | I57: Владимировне | J57: 1993-11-26 | K57: п. Чистые Боры Буйского р-на Костромской обл. | L57: РФ | M57: ж | N57: ФГБОУ ВПО Ярославская государственная сельскохозяйственная академия г. Ярославль | O57: 2015 | P57: замужем | Q57: Ярославская область, г. Ярославль, ул. Панина, д.5, корп. 7, кв.173 | Y57: 170790 | Z57: Экономический | AA57: 38.03.01 | AB57: Экономика | AC57: Бухгалтерский учет, анализ и аудит | AD57: 5 лет | AE57: БАКАЛАВР | AF57: 2-687 | AG57: 2017-08-19 | AH57: по договору с полным возмещением затрат | AI57: 000004540 | AJ57: 2017-08-16 | CA57: 2 | CB57: 228z | CC57: 3 | CD57: 2018-06-09 | CE57: 7899481 | CI57: 4 | CJ57: п/зач. 14.10.2017 | CO57: 4 | CP57: п/атт. 21.10.2017 | DA57: 6 | DB57: п/атт. 11.10.2017 | DG57: 3 | DH57: п/атт. 05.11.2017 | EE57: 6 | EF57: п/атт. 20.10.2017 | EQ57: 6 | ER57: п/зач. 31.10.2017 | HT57: 4 | HU57: п/зач. 06.10.2017 | IH57: 0 | JJ57: 0.36 | JL57: 2 | JM57: 3 | JN57: 0 | JO57: 3 | JP57: 5 | JQ57: 1141 | JR57: 143
A58: 52 | B58: Новоселова | C58: Наталья | D58: Владимировна | E58: Новоселова Н. В. | G58: Новоселовой | H58: Наталье | I58: Владимировне | J58: 1981-06-08 | K58: п. Нефтекамск Республики Башкортостан | L58: РФ | M58: ж | N58: Нефтекамский машиностроительный техникум | O58: 2000 | P58: не замужем | Q58: 156901 Костромская обл., г. Волгореченск, ул. Имени 50-летия Ленинского Комсомола, д.47 кв.16 | Y58: 170791 | Z58: Экономический | AA58: 38.03.01 | AB58: Экономика | AC58: Бухгалтерский учет, анализ и аудит | AD58: 5 лет | AE58: БАКАЛАВР | AF58: 2-687 | AG58: 2017-08-19 | AH58: по договору с полным возмещением затрат | AI58: 000004535 | AJ58: 2017-08-16 | CA58: 2 | CB58: 228z | CC58: 4 | CD58: 2018-06-09 | CE58: 7899481 | CF58: 6 | CG58: 2018-06-09 | CH58: 7899710 | CI58: 4 | CJ58: 2018-06-09 | CK58: 7899530 | CL58: 6 | CM58: п/атт. 27.10.2017 | CO58: 3 | CP58: 2018-06-09 | CQ58: 7899494 | CR58: 3 | CS58: 2018-06-09 | CT58: 7899495 | CU58: 4 | CV58: 2018-06-09 | CW58: 7899550 | CX58: 4 | CY58: 2018-06-09 | CZ58: 78910236 | DA58: 6 | DB58: п/атт. 11.10.2017 | DD58: 6 | DE58: п/атт. 28.10.2017 | EE58: 6 | EF58: п/атт. 20.10.2017 | EN58: 4 | EO58: п/атт. 24.10.2017 | EQ58: 6 | ER58: п/атт. 31.10.2017 | GD58: 3 | GE58: п/атт. 25.10.2017 | IH58: 0 | JJ58: 0.58 | JL58: 3 | JM58: 5 | JN58: 0 | JO58: 6 | JP58: 8 | JQ58: 1897 | JR58: 237
A59: 53 | B59: Пирогова | C59: Мария | D59: Сергеевна | E59: Пирогова М. С. | G59: Пироговой | H59: Марии | I59: Сергеевне | J59: 1997-10-27 | K59: г. Кострома | L59: РФ | M59: ж | N59: ОГБПОУ Костромской торгово-экономический колледж г. Кострома | O59: 2017 | P59: не замужем | Q59: г. Кострома, ул. Рабочая 6-я, д. 48, кв. 3 | Y59: 170792 | Z59: Экономический | AA59: 38.03.01 | AB59: Экономика | AC59: Бухгалтерский учет, анализ и аудит | AD59: 5 лет | AE59: БАКАЛАВР | AF59: 2-701 | AG59: 2017-08-31 | AH59: по договору с полным возмещением затрат | AI59: 000004597 | AJ59: 2017-08-25 | CA59: 2 | CB59: 226z | CC59: 4 | CD59: 2018-06-09 | CE59: 7899481 | CF59: 6 | CG59: 2018-06-09 | CH59: 7899710 | CI59: 5 | CJ59: п/атт. 14.10.2017 | CL59: 6 | CM59: 2018-06-09 | CN59: 7899527 | CO59: 3 | CP59: 2018-06-09 | CQ59: 7899494 | CR59: 3 | CS59: 2018-06-09 | CT59: 7899495 | CU59: 5 | CV59: 2018-06-09 | CW59: 7899550 | CX59: 4 | CY59: 2018-06-09 | CZ59: 78910236 | EE59: 6 | EF59: п/атт. 20.10.2017 | EN59: 5 | EO59: п/атт. 24.10.2017 | EQ59: 6 | ER59: п/атт. 31.10.2017 | GD59: 5 | GE59: п/атт. 25.10.2017 | HQ59: 5 | HR59: п/атт. 26.10.2017 | JJ59: 0.78 | JL59: 2 | JM59: 2 | JN59: 5 | JO59: 4 | JP59: 9 | JQ59: 1728 | JR59: 216
A60: 54 | B60: Сизов | C60: Андрей | D60: Михайлович | E60: Сизов А. М. | G60: Сизову | H60: Андрею | I60: Михайловичу | J60: 1999-06-09 | K60: г. Галич Костромской обл. | L60: РФ | M60: м | N60: ОГБПОУ Галичский аграрный техникум Костромской области г. Галич Кострмоская обл. | O60: 2017 | P60: холост | Q60: 157201 Костромская обл., г. Галич, ул. Большой Глинник, д.32 | Y60: 170793 | Z60: Экономический | AA60: 38.03.01 | AB60: Экономика | AC60: Бухгалтерский учет, анализ и аудит | AD60: 5 лет | AE60: БАКАЛАВР | AF60: 2-687 | AG60: 2017-08-19 | AH60: по договору с полным возмещением затрат | AI60: 000004539 | AJ60: 2017-08-16 | AS60: 2-800 | AT60: 2017-10-13 | AU60: в связи с пизывом в ряды ВС РФ | AV60: 2017-10-09 | AW60: 2018-10-08 | CA60: 1 | CB60: АО | JJ60: 0 | JL60: 0 | JM60: 0 | JN60: 0 | JO60: 0 | JP60: 0 | JQ60: 0 | JR60: 0
A61: 55 | B61: Смирнов | C61: Тимур | D61: Альбертович | E61: Смирнов Т. А. | G61: Смирнову | H61: Тимуру | I61: Альбертовичу | J61: 1995-06-19 | K61: г. Кострома | L61: РФ | M61: м | N61: ОГБПОУ Костромской политехнический колледж город Кострома | O61: 2015 | P61: холост | Q61: г. Кострома, ул. Хвойная, д.35 | Y61: 170794 | Z61: Экономический | AA61: 38.03.01 | AB61: Экономика | AC61: Бухгалтерский учет, анализ и аудит | AD61: 5 лет | AE61: БАКАЛАВР | AF61: 2-687 | AG61: 2017-08-19 | AH61: по договору с полным возмещением затрат | AI61: 000004441 | AJ61: 2017-08-07 | CA61: 2 | CB61: 225z | CC61: 3 | CD61: 2018-06-09 | CE61: 7899481 | CF61: 6 | CG61: 2018-06-09 | CH61: 7899710 | CI61: 4 | CJ61: 2018-06-09 | CK61: 7899530 | CL61: 6 | CM61: 2018-06-09 | CN61: 7899527 | CO61: 3 | CP61: 2018-06-09 | CQ61: 7899494 | CR61: 3 | CS61: 2018-06-09 | CT61: 7899495 | CU61: 5 | CV61: 2018-06-09 | CW61: 7899550 | CX61: 3 | CY61: 2018-06-09 | CZ61: 78910236 | JJ61: 0.42 | JL61: 4 | JM61: 1 | JN61: 1 | JO61: 2 | JP61: 6 | JQ61: 1548 | JR61: 194
A62: 56 | B62: Соколов | C62: Андрей | D62: Александрович | E62: Соколов А. А. | G62: Соколову | H62: Андрею | I62: Александровичу | J62: 1997-05-07 | K62: г. Кострома | L62: РФ | M62: м | N62: ОГБПОУ Костромской торгово-экономический колледж г. Кострома | O62: 2016 | P62: холост | Q62: 156019 г. Кострома, ул. Восточная, д.11, кв.2 | Y62: 170795 | Z62: Экономический | AA62: 38.03.01 | AB62: Экономика | AC62: Бухгалтерский учет, анализ и аудит | AD62: 5 лет | AE62: БАКАЛАВР | AF62: 2-687 | AG62: 2017-08-19 | AH62: по договору с полным возмещением затрат | AI62: 000004453 | AJ62: 2017-08-08 | CA62: 2 | CB62: 226z | CC62: 3 | CD62: 2018-06-09 | CE62: 7899481 | CF62: 6 | CG62: 2018-06-18 | CH62: 7899710-4 | CI62: 5 | CJ62: п/атт. 14.10.2017 | CL62: 6 | CM62: 2018-06-09 | CN62: 7899527 | CU62: 4 | CV62: 2018-06-09 | CW62: 7899550 | CX62: 4 | CY62: 2018-06-18 | CZ62: 78910236-3 | EE62: 6 | EF62: п/атт. 20.10.2017 | EN62: 5 | EO62: п/атт. 24.10.2017 | EQ62: 6 | ER62: п/атт. 31.10.2017 | GD62: 4 | GE62: п/атт. 25.10.2017 | HQ62: 5 | HR62: п/атт. 26.10.2017 | JJ62: 0.6 | JL62: 1 | JM62: 3 | JN62: 3 | JO62: 4 | JP62: 7 | JQ62: 1260 | JR62: 158
A63: 57 | B63: Трунова | C63: Маргарита | D63: Владимировна | E63: Трунова М. В. | G63: Труновой | H63: Маргарите | I63: Владимировне | J63: 1999-02-23 | K63: г. Кострома | L63: РФ | M63: ж | N63: МБОУ г. Костромы СОШ №23 | O63: 2017 | P63: не замужем | Q63: г. Кострома, ул. Крупской, д. 27 А, кв. 19 | U63: 3412 | V63: 081883 | W63: 2013-03-05 | X63: Отделением УФМС России по Костромской области в Давыдовском округе гор. Костромы | Y63: 170430 | Z63: Экономический | AA63: 38.03.01 | AB63: Экономика | AC63: Бухгалтерский учет, анализ и аудит | AD63: 5 лет | AE63: БАКАЛАВР | AF63: 2-686 | AG63: 2017-08-19 | AH63: по договору с полным возмещением затрат | AI63: 000004381 | AJ63: 2017-07-05 | CA63: 2 | CB63: 225z | CC63: 4 | CD63: 2018-06-09 | CE63: 7899481 | CF63: 6 | CG63: 2018-06-09 | CH63: 7899710 | CI63: 4 | CJ63: п/зач | CL63: 6 | CM63: п/зач | CO63: 3 | CP63: п/зач | CU63: 4 | CV63: 2018-06-09 | CW63: 7899550 | CX63: 4 | CY63: п/зач | DA63: 6 | DB63: п/зач | EE63: 6 | EF63: п/зач | JJ63: 0.38 | JL63: 1 | JM63: 4 | JN63: 0 | JO63: 4 | JP63: 5 | JQ63: 1465 | JR63: 183
A64: 58 | B64: Фера | C64: Мария | D64: Васильевна | E64: =CONCATENATE(B64," ",LEFT(C64,1),". ",LEFT(D64,1),".") -> Фера М. В. | G64: Фера | H64: Марии | I64: Васильевне | J64: 1999-02-11 | K64: г. Кострома | L64: РФ | M64: ж | N64: ОГБПОУ Костромской торгово-экономический колледж г. Кострома | O64: 2017 | P64: не замужем | Q64: Костромская обл., Костромской р-н, п. Сухоногово, ул. Костромская, д. 3, кв. 15 | Y64: 170796 | Z64: Экономический | AA64: 38.03.01 | AB64: Экономика | AC64: Бухгалтерский учет, анализ и аудит | AD64: 5 лет | AE64: БАКАЛАВР | AF64: 2-701 | AG64: 2017-08-31 | AH64: по договору с полным возмещением затрат | AI64: 000004590 | AJ64: 2017-08-22 | CA64: 2 | CB64: 226z | CC64: 3 | CD64: 2018-06-09 | CE64: 7899481 | CF64: 6 | CG64: 2018-06-09 | CH64: 7899710 | CI64: 5 | CJ64: п/атт. 14.10.2017 | CL64: 6 | CM64: 2018-06-09 | CN64: 7899527 | CO64: 3 | CP64: 2018-06-09 | CQ64: 7899494 | CR64: 4 | CS64: 2018-06-09 | CT64: 7899495 | CU64: 5 | CV64: 2018-06-09 | CW64: 7899550 | CX64: 4 | CY64: 2018-06-09 | CZ64: 78910236 | EE64: 6 | EF64: п/атт. 20.10.2017 | EN64: 5 | EO64: п/атт. 24.10.2017 | EQ64: 6 | ER64: п/атт. 31.10.2017 | GD64: 5 | GE64: п/атт. 25.10.2017 | HQ64: 5 | HR64: п/атт. 26.10.2017 | JJ64: 0.78 | JL64: 2 | JM64: 2 | JN64: 5 | JO64: 4 | JP64: 9 | JQ64: 1728 | JR64: 216
A65: 59 | B65: Одинцов | C65: Роман | D65: Сергеевич | E65: Одинцов Р. С. | G65: Одинцову | H65: Роману | I65: Сергеевичу | J65: 1981-11-19 | K65: г. Кострома | L65: РФ | M65: м | N65: Костромской автотранспортный техникум | O65: 2001 | P65: женат | Q65: г. Кострома ул. Профсоюзная, д.25/2 кв. 46 | U65: 3403 | V65: 553987 | W65: 2003-07-07 | X65: Отделом внутренних дел Заволжского округа г. Костромы района Костромской области | Y65: 180055 | Z65: Экономический | AA65: 38.03.01 | AB65: Экономика | AC65: Бухгалтерский учет, анализ и аудит | AD65: 5 лет | AE65: БАКАЛАВР | AF65: 2-591 | AG65: 2018-07-02 | AH65: по договору с полным возмещением затрат | AI65: 000004760 | AJ65: 2018-06-18 | CA65: 2 | CB65: 225z | CI65: 3 | CL65: 6 | CU65: 3 | DD65: 6 | EE65: 6 | EH65: 6 | JJ65: 0.12 | JL65: 2 | JM65: 0 | JN65: 0 | JO65: 4 | JP65: 2 | JQ65: 684 | JR65: 86
A66: 60 | B66: Артюшенко | C66: Евгений | D66: Сергеевич | E66: Артюшенко Е. С. | J66: 1994-08-25 | K66: п. Гезгалы Датловского р-на Городнецкой обл. | L66: РФ | M66: м | N66: ОГБПОУ "Костромской торгово-экономический колледж" | O66: 2014 | Q66: Кострома г. Никитская ул. д.104 кв.44 | Z66: Экономический | AA66: 38.03.01 | AB66: Экономика | AC66: Бухгалтерский учет, анализ и аудит | AD66: 5 лет | AE66: БАКАЛАВР | AF66: 2-670 | AG66: 2018-08-20 | AH66: по договору с полным возмещением затрат | AI66: 000004761 | AJ66: 2018-06-25 | CA66: 1 | CB66: 213z
A67: 61 | B67: Балдина | C67: Анастасия | D67: Александровна | E67: Балдина А. А. | J67: 1999-10-08 | K67: г. Волгореченск Костромская обл. | L67: РФ | M67: ж | N67: ФГОУ ВО Костромская ГСХА | O67: 2018 | Q67: Кострома г. Кинешемское ш. д.15 кв.120 | Z67: Экономический | AA67: 38.03.01 | AB67: Экономика | AC67: Бухгалтерский учет, анализ и аудит | AD67: 5 лет | AE67: БАКАЛАВР | AF67: 2-670 | AG67: 2018-08-20 | AH67: по договору с полным возмещением затрат | AI67: 000004865 | AJ67: 2018-08-08 | CA67: 1 | CB67: 213z
A68: 62 | B68: Белышева | C68: Анна | D68: Анатольевна | E68: Белышева А. А. | J68: 1999-08-30 | K68: г. Кострома | L68: РФ | M68: ж | N68: ФГОУ ВО Костромская ГСХА | O68: 2018 | Q68: Костромская обл., Красносельский р-н, Красное-на-Волге пгт. Заготскот ул. д.12 | Z68: Экономический | AA68: 38.03.01 | AB68: Экономика | AC68: Бухгалтерский учет, анализ и аудит | AD68: 5 лет | AE68: БАКАЛАВР | AF68: 2-670 | AG68: 2018-08-20 | AH68: по договору с полным возмещением затрат | AI68: 000004863 | AJ68: 2018-08-08 | CA68: 1 | CB68: 213z
A69: 63 | B69: Бородачева | C69: Полина | D69: Владимировна | E69: Бородачева П. В. | J69: 1996-05-31 | K69: пос. Караваево Костромского р-на Костромской обл. | L69: РФ | M69: ж | N69: ЧУПО "Костромской технологический техникум" г. Кострома | O69: 2016 | P69: замужем | Q69: Костромская обл., Костромской р-н, Караваево п. Садовая ул. д.2 кв.4 | Z69: Экономический | AA69: 38.03.01 | AB69: Экономика | AC69: Бухгалтерский учет, анализ и аудит | AD69: 5 лет | AE69: БАКАЛАВР | AF69: 2-670 | AG69: 2018-08-20 | AH69: по договору с полным возмещением затрат | AI69: 000005048 | AJ69: 2018-08-17 | CA69: 1 | CB69: 213z
A70: 64 | B70: Васильева | C70: Юлия | D70: Вячеславовна | E70: Васильева Ю. В. | J70: 1998-12-01 | K70: г. Кострома | L70: РФ | M70: ж | N70: ФГОУ ВО Костромская ГСХА | O70: 2018 | Q70: 157940, Костромская обл., Красносельский р-н, Красное-на-Волге пгт., Советская ул., д. 57А, кв. 2 | Z70: Экономический | AA70: 38.03.01 | AB70: Экономика | AC70: Бухгалтерский учет, анализ и аудит | AD70: 5 лет | AE70: БАКАЛАВР | AF70: 2-670 | AG70: 2018-08-20 | AH70: по договору с полным возмещением затрат | AI70: 000005013 | AJ70: 2018-08-16 | CA70: 1 | CB70: 213z
A71: =A70+1 -> 65 | B71: Глушаница | C71: Екатерина | D71: Валерьевна | E71: Глушаница Е. В. | J71: 1998-06-11 | K71: г. Кострома | L71: РФ | M71: ж | N71: ОГБПОУ "Костромской торгово-экономический колледж" г. Кострома | O71: 2018 | Q71: Кострома г. Калиновская ул. д.63 кв.33 | Z71: Экономический | AA71: 38.03.01 | AB71: Экономика | AC71: Бухгалтерский учет, анализ и аудит | AD71: 5 лет | AE71: БАКАЛАВР | AF71: 2-670 | AG71: 2018-08-20 | AH71: по договору с полным возмещением затрат | AI71: 000004874 | AJ71: 2018-08-08 | CA71: 1 | CB71: 213z
A72: 66 | B72: Грибов | C72: Артем | D72: Иванович | E72: Грибов А. И. | J72: 2000-01-05 | K72: г. Кострома | L72: РФ | M72: м | N72: ФГОУ ВО Костромская ГСХА | O72: 2018 | Q72: Кострома г. Давыдовский-2 мкр. д.41 кв.43 | Z72: Экономический | AA72: 38.03.01 | AB72: Экономика | AC72: Бухгалтерский учет, анализ и аудит | AD72: 5 лет | AE72: БАКАЛАВР | AF72: 2-670 | AG72: 2018-08-20 | AH72: по договору с полным возмещением затрат | AI72: 000004858 | AJ72: 2018-08-07 | CA72: 1 | CB72: 213z
A73: 67 | B73: Груздева | C73: Анна | D73: Андреевна | E73: Груздева А. А. | J73: 1999-02-20 | K73: г. Кострома | L73: РФ | M73: ж | N73: ОГБПОУ "Костромской торгово-экономический колледж" г. Кострома | O73: 2018 | Q73: Костромская обл., Костромской р-н, Караваево п. Капитана Харчина ул. д.8 кв.25 | Z73: Экономический | AA73: 38.03.01 | AB73: Экономика | AC73: Бухгалтерский учет, анализ и аудит | AD73: 5 лет | AE73: БАКАЛАВР | AF73: 2-670 | AG73: 2018-08-20 | AH73: по договору с полным возмещением затрат | AI73: 000004929 | AJ73: 2018-08-13 | CA73: 1 | CB73: 214z
A74: 68 | B74: Губочкина | C74: Светлана | D74: Сергеевна | E74: Губочкина С. С. | J74: 1999-02-06 | K74: г. Кострома | L74: РФ | M74: ж | N74: ОГБПОУ "Костромской политехнический колледж" г. Кострома | O74: 2018 | Q74: Кострома г. Стопани ул. д.33 кв.20 | Z74: Экономический | AA74: 38.03.01 | AB74: Экономика | AC74: Бухгалтерский учет, анализ и аудит | AD74: 5 лет | AE74: БАКАЛАВР | AF74: 2-670 | AG74: 2018-08-20 | AH74: по договору с полным возмещением затрат | AI74: 000005019 | AJ74: 2018-08-16 | CA74: 1 | CB74: 213z
A75: 69 | B75: Догадаева | C75: Варвара | D75: Юрьевна | E75: Догадаева В. Ю. | J75: 1985-09-27 | K75: пос. Вохтома Парфеньевского района Костромской области | L75: РФ | M75: ж | N75: Профессиональное училище №11 г. Галич Костромская обл. | O75: 2004 | P75: замужем | Q75: Кострома г. Пушкина ул. д.38 кв.26 | Z75: Экономический | AA75: 38.03.01 | AB75: Экономика | AC75: Бухгалтерский учет, анализ и аудит | AD75: 5 лет | AE75: БАКАЛАВР | AF75: 2-670 | AG75: 2018-08-20 | AH75: по договору с полным возмещением затрат | AI75: 000004916 | AJ75: 2018-08-13 | CA75: 1 | CB75: 215z
A76: 70 | B76: Дугина | C76: Мария | D76: Алексеевна | E76: Дугина М. А. | J76: 1999-02-09 | K76: г. Волгореченск Костромская обл. | L76: РФ | M76: ж | N76: ОГБПОУ "Костромской колледж отраслевых технологий строительства и лесной промышленности" | O76: 2018 | Q76: Костромская обл., Волгореченск г. им. 50-летия Ленинского комсомола д.33 кв.11 | Z76: Экономический | AA76: 38.03.01 | AB76: Экономика | AC76: Бухгалтерский учет, анализ и аудит | AD76: 5 лет | AE76: БАКАЛАВР | AF76: 2-670 | AG76: 2018-08-20 | AH76: по договору с полным возмещением затрат | AI76: 000004882 | AJ76: 2018-08-09 | CA76: 1 | CB76: 213z
A77: 71 | B77: Егоров | C77: Александр | D77: Евгеньевич | E77: Егоров А. Е. | J77: 1999-04-05 | K77: гор. Буй Костромская обл. | L77: РФ | M77: м | N77: ОГБПОУ "Буйский техникум градостроительства и предпринимательства Костромской области" г. Буй Костромская область | O77: 2018 | Q77: Костромская обл., Буй г. Островского ул. д.13 кв.36 | Z77: Экономический | AA77: 38.03.01 | AB77: Экономика | AC77: Бухгалтерский учет, анализ и аудит | AD77: 5 лет | AE77: БАКАЛАВР | AF77: 2-670 | AG77: 2018-08-20 | AH77: по договору с полным возмещением затрат | AI77: 000004797 | AJ77: 2018-07-24 | CA77: 1 | CB77: 213z
A78: 72 | B78: Живоложнова | C78: Александра | D78: Олеговна | E78: Живоложнова А. О. | J78: 1999-05-06 | K78: гор. Буй Костромской обл. | L78: РФ | M78: ж | N78: ОГБПОУ "Буйский техникум градостроительства и предпринимательства Костромской области" г. Буй Костромская область | O78: 2018 | Q78: Костромская обл., Буй г. Военный городок 1 ул. д.178 кв.15 | Z78: Экономический | AA78: 38.03.01 | AB78: Экономика | AC78: Бухгалтерский учет, анализ и аудит | AD78: 5 лет | AE78: БАКАЛАВР | AF78: 2-670 | AG78: 2018-08-20 | AH78: по договору с полным возмещением затрат | AI78: 000004784 | AJ78: 2018-07-16 | CA78: 1 | CB78: 214z
A79: 73 | B79: Карабельникова | C79: Виктория | D79: Генадьевна | E79: Карабельникова В. Г. | J79: 1995-03-18 | K79: деревня Панфилово Галичский район Костромская область | L79: РФ | M79: ж | N79: ОГБПОУ "Галичский аграрный техникум Костромской области" г. Галич Костромская обл. | O79: 2015 | Q79: Костромская обл., Галичский р-н. Ладыгино дер. д.37 кв.2 | Z79: Экономический | AA79: 38.03.01 | AB79: Экономика | AC79: Бухгалтерский учет, анализ и аудит | AD79: 5 лет | AE79: БАКАЛАВР | AF79: 2-670 | AG79: 2018-08-20 | AH79: по договору с полным возмещением затрат | AI79: 000004762 | AJ79: 2018-06-26 | CA79: 1 | CB79: 214z
A80: 74 | B80: Каурова | C80: Елена | D80: Сергеевна | E80: Каурова Е. С. | J80: 1973-03-28 | K80: пос Судиславль Костромская обл. | L80: РФ | M80: ж | N80: Костромской технологический техникум Центросоюза России | O80: 1992 | Q80: Костромская обл., Костромской р-н, Шувалово п. Победы ул. д.11 кв.11 | Z80: Экономический | AA80: 38.03.01 | AB80: Экономика | AC80: Бухгалтерский учет, анализ и аудит | AD80: 5 лет | AE80: БАКАЛАВР | AF80: 2-670 | AG80: 2018-08-20 | AH80: по договору с полным возмещением затрат | AI80: 000004790 | AJ80: 2018-07-19 | CA80: 1 | CB80: 215z
A81: 75 | B81: Кобзарь | C81: Анна | D81: Викторовна | E81: Кобзарь А. В. | J81: 1998-10-13 | K81: г. Кострома | L81: РФ | M81: ж | N81: ФГОУ ВО Костромская ГСХА | O81: 2018 | Q81: Кострома г. Костромская ул. д.86 кв.7 | Z81: Экономический | AA81: 38.03.01 | AB81: Экономика | AC81: Бухгалтерский учет, анализ и аудит | AD81: 5 лет | AE81: БАКАЛАВР | AF81: 2-670 | AG81: 2018-08-20 | AH81: по договору с полным возмещением затрат | AI81: 000004853 | AJ81: 2018-06-27 | CA81: 1 | CB81: 214z
A82: 76 | B82: Козырева | C82: Полина | D82: Евгеньевна | E82: Козырева П. Е. | J82: 1997-06-14 | K82: дер. Стрельниково Костромского р-на Костромской обл. | L82: РФ | M82: ж | N82: ФГОУ ВО Костромская ГСХА | O82: 2018 | Q82: Костромская обл., Костромской р-н, Стрельниково д. Омелинская ул. д.16 кв. | Z82: Экономический | AA82: 38.03.01 | AB82: Экономика | AC82: Бухгалтерский учет, анализ и аудит | AD82: 5 лет | AE82: БАКАЛАВР | AF82: 2-670 | AG82: 2018-08-20 | AH82: по договору с полным возмещением затрат | AI82: 000004873 | AJ82: 2018-08-08 | CA82: 1 | CB82: 213z
A83: 77 | B83: Комогорова | C83: Вероника | D83: Игоревна | E83: Комогорова В. И. | J83: 1992-06-20 | K83: с. Нижняя Ведуга Семилукского р-на Воронежской обл. | L83: РФ | M83: ж | N83: ОГБОУ СПО "Костромской механико-технологический техникум" г. Кострома Костромская область | O83: 2013 | Q83: Кострома г., Якиманиха мкр., д. 4, кв. 61 | Z83: Экономический | AA83: 38.03.01 | AB83: Экономика | AC83: Бухгалтерский учет, анализ и аудит | AD83: 5 лет | AE83: БАКАЛАВР | AF83: 2-670 | AG83: 2018-08-20 | AH83: по договору с полным возмещением затрат | AI83: 000004838 | AJ83: 2018-08-03 | CA83: 1 | CB83: 214z
A84: 78 | B84: Крылова | C84: Екатерина | D84: Евгеньевна | E84: Крылова Е. Е. | J84: 1999-01-27 | L84: РФ | M84: ж | N84: ОГБПОУ "Костромской колледж отраслевых технологий строительства и лесной промышленности" | O84: 2018 | Q84: 156901, Костромская обл., Волгореченск г., Набережная ул., д. 36, кв. 66 | Z84: Экономический | AA84: 38.03.01 | AB84: Экономика | AC84: Бухгалтерский учет, анализ и аудит | AD84: 5 лет | AE84: БАКАЛАВР | AF84: 2-670 | AG84: 2018-08-20 | AH84: по договору с полным возмещением затрат | AI84: 000004881 | AJ84: 2018-08-09 | CA84: 1 | CB84: 213z
A85: 79 | B85: Кудрявцев | C85: Илья | D85: Игоревич | E85: Кудрявцев И. И. | J85: 1991-08-02 | K85: с. Минское Костромского р-на Костромской обл. | L85: РФ | M85: м | N85: ОГБОУ НПО "Профессиональный лицей №15 г. Костромы Костромской области" | O85: 2015 | Q85: 156543 Костромская обл., Костромской р-н, Минское с., Куколевского ул., д. 13, кв. 12 | Z85: Экономический | AA85: 38.03.01 | AB85: Экономика | AC85: Бухгалтерский учет, анализ и аудит | AD85: 5 лет | AE85: БАКАЛАВР | AF85: 2-670 | AG85: 2018-08-20 | AH85: по договору с полным возмещением затрат | AI85: 000004918 | AJ85: 2018-08-13 | CA85: 1 | CB85: 213z
A86: 80 | B86: Кузнецова | C86: Мария | D86: Владимировна | E86: Кузнецова М. В. | J86: 1999-06-26 | K86: гор. Кострома | L86: РФ | M86: ж | N86: ОГБПОУ "Костромской торгово-экономический колледж" г. Кострома | O86: 2018 | Q86: 157951 Костромская обл., Красносельский р-н, Шолохово д., Зеленая ул., д. 19 | Z86: Экономический | AA86: 38.03.01 | AB86: Экономика | AC86: Бухгалтерский учет, анализ и аудит | AD86: 5 лет | AE86: БАКАЛАВР | AF86: 2-670 | AG86: 2018-08-20 | AH86: по договору с полным возмещением затрат | AI86: 000004888 | AJ86: 2018-08-10 | CA86: 1 | CB86: 213z
A87: 81 | B87: Кукушкина | C87: Анастасия | D87: Андреевна | E87: Кукушкина А. А. | J87: 1999-11-05 | K87: гор. Кострома | L87: РФ | M87: ж | N87: ОГБПОУ "Костромской торгово-экономический колледж" г. Кострома | O87: 2018 | Q87: Кострома г. Смирнова Юрия ул. д.63 кв.61 | Z87: Экономический | AA87: 38.03.01 | AB87: Экономика | AC87: Бухгалтерский учет, анализ и аудит | AD87: 5 лет | AE87: БАКАЛАВР | AF87: 2-670 | AG87: 2018-08-20 | AH87: по договору с полным возмещением затрат | AI87: 000004909 | AJ87: 2018-08-10 | CA87: 1 | CB87: 213z
A88: 82 | B88: Кустова | C88: Анастасия | D88: Алексеевна | E88: Кустова А. А. | J88: 1999-10-19 | K88: гор. Кострома | L88: РФ | M88: ж | N88: ОГБПОУ "Костромской политехнический колледж" город Кострома | O88: 2018 | Q88: 156016 Кострома г., Давыдовский-1 мкр., д. 26, кв. 9 | Z88: Экономический | AA88: 38.03.01 | AB88: Экономика | AC88: Бухгалтерский учет, анализ и аудит | AD88: 5 лет | AE88: БАКАЛАВР | AF88: 2-670 | AG88: 2018-08-20 | AH88: по договору с полным возмещением затрат | AI88: 000004857 | AJ88: 2018-08-07 | CA88: 1 | CB88: 214z
A89: 83 | B89: Максимова | C89: Анна | D89: Ивановна | E89: Максимова А. И. | J89: 2000-02-21 | K89: гор. Кострома | L89: РФ | M89: ж | N89: ФГБОУ ВО "Костромская государственная сельскохозяйственная академия" пос. Караваево Костромского р-на Костромской обл. | O89: 2018 | Q89: 157945, Костромская обл., Красносельский р-н, Подольское с., Волжская ул., д. 19 | Z89: Экономический | AA89: 38.03.01 | AB89: Экономика | AC89: Бухгалтерский учет, анализ и аудит | AD89: 5 лет | AE89: БАКАЛАВР | AF89: 2-670 | AG89: 2018-08-20 | AH89: по договору с полным возмещением затрат | AI89: 000004893 | AJ89: 2018-08-10 | CA89: 1 | CB89: 213z
A90: 84 | B90: Мохова | C90: Людмила | D90: Евгеньевна | E90: Мохова Л. Е. | J90: 1986-05-17 | K90: пос Красное-на-Волге Красносельского р-на. Костромской обл. | L90: РФ | M90: ж | N90: НОУ СПО Костромской технологический техникум ОАО "Костромакоопцентр" г. Кострома | O90: 2005 | Q90: 157940, Костромская обл., Красносельский р-н, Красное-на-Волге пгт., Заводская ул., д. 326 | Z90: Экономический | AA90: 38.03.01 | AB90: Экономика | AC90: Бухгалтерский учет, анализ и аудит | AD90: 5 лет | AE90: БАКАЛАВР | AF90: 2-670 | AG90: 2018-08-20 | AH90: по договору с полным возмещением затрат | AI90: 000004827 | AJ90: 2018-08-02 | CA90: 1 | CB90: 213z
A91: 85 | B91: Мягкова | C91: Юлия | D91: Александровна | E91: Мягкова Ю. А. | J91: 1981-09-26 | K91: пос Красное-на-Волге Красносельского р-на. Костромской обл. | L91: РФ | M91: ж | N91: НОУ СПО Костромской технологический техникум ОАО "Костромакоопцентр" г. Кострома | O91: 2008 | Q91: 156530 Костромская обл., Костромской р-н, Караваево п. Никулино ул. д.16 | Z91: Экономический | AA91: 38.03.01 | AB91: Экономика | AC91: Бухгалтерский учет, анализ и аудит | AD91: 5 лет | AE91: БАКАЛАВР | AF91: 2-670 | AG91: 2018-08-20 | AH91: по договору с полным возмещением затрат | AI91: 000004825 | AJ91: 2018-08-02 | CA91: 1 | CB91: 213z
A92: 86 | B92: Нетужилов | C92: Виктор | D92: Владимирович | E92: Нетужилов В. В. | J92: 1982-04-10 | K92: гор. Кологрив Костромской области | L92: РФ | M92: м | N92: ФГБОУ ВПО "Костромская государственная сельскохозяйственная академия" пос. Караваево Костромского р-на Костромской обл. | O92: 2004 | Q92: 156530 Кострома г. Проселочная ул. д.36 кв.70 | Z92: Экономический | AA92: 38.03.01 | AB92: Экономика | AC92: Бухгалтерский учет, анализ и аудит | AD92: 5 лет | AE92: БАКАЛАВР | AF92: 2-670 | AG92: 2018-08-20 | AH92: по договору с полным возмещением затрат | AI92: 000004843 | AJ92: 2018-08-06 | CA92: 1 | CB92: 213z
A93: 87 | B93: Никулина | C93: Диана | D93: Владимировна | E93: Никулина Д. В. | J93: 1998-03-31 | K93: гор. Буй Костромская область | L93: РФ | M93: ж | N93: ОГБПОУ "Костромской торгово-экономический колледж" г. Кострома | O93: 2018 | Q93: 157000, Костромская обл., Буй г., Карла Маркса ул., д. 28, кв. 26 | Z93: Экономический | AA93: 38.03.01 | AB93: Экономика | AC93: Бухгалтерский учет, анализ и аудит | AD93: 5 лет | AE93: БАКАЛАВР | AF93: 2-670 | AG93: 2018-08-20 | AH93: по договору с полным возмещением затрат | AI93: 000004826 | AJ93: 2018-08-02 | CA93: 1 | CB93: 213z
A94: 88 | B94: Охапкина | C94: Наталия | D94: Алексеевна | E94: Охапкина Н. А. | J94: 1995-02-08 | K94: гор. Кострома | L94: РФ | M94: ж | N94: ОГБПОУ "Костромской техникум торговли и питания" г. Кострома | O94: 2014 | Q94: 156016 Кострома г., Давыдовский-1 мкр., д. 12, кв. 90 | Z94: Экономический | AA94: 38.03.01 | AB94: Экономика | AC94: Бухгалтерский учет, анализ и аудит | AD94: 5 лет | AE94: БАКАЛАВР | AF94: 2-670 | AG94: 2018-08-20 | AH94: по договору с полным возмещением затрат | AI94: 000004861 | AJ94: 2018-08-07 | CA94: 1 | CB94: 214z
A95: 89 | B95: Полищук | C95: Мария | D95: Александровна | E95: Полищук М. А. | J95: 1997-04-29 | K95: пос. Караваево Костромского р-на Костромской обл. | L95: РФ | M95: ж | N95: ОГБПОУ "Костромской торгово-экономический колледж" г. Кострома | O95: 2016 | Q95: 141255, Московская область, Пушкинский р-н, Ельдигино с., Ельдигино мкр., д. 25, кв. 44 | Z95: Экономический | AA95: 38.03.01 | AB95: Экономика | AC95: Бухгалтерский учет, анализ и аудит | AD95: 5 лет | AE95: БАКАЛАВР | AF95: 2-670 | AG95: 2018-08-20 | AH95: по договору с полным возмещением затрат | AI95: 000004855 | AJ95: 2018-08-07 | CA95: 1 | CB95: 214z
A96: 90 | B96: Помана | C96: Ксения | D96: Николаевна | E96: Помана К. Н. | J96: 1993-12-15 | K96: ст. Николо-Полома Парфеньевского р-на Костромской обл. | L96: РФ | M96: ж | N96: ФГБОУ ВПО "Московский государственный машиностроительный университет (МАМИ)" Москва | O96: 2015 | Q96: 143121, Московская область, Рузский р-н, Покровское с., ДОХБ ул., д. 19, кв. 56 | Z96: Экономический | AA96: 38.03.01 | AB96: Экономика | AC96: Бухгалтерский учет, анализ и аудит | AD96: 5 лет | AE96: БАКАЛАВР | AF96: 2-670 | AG96: 2018-08-20 | AH96: по договору с полным возмещением затрат | AI96: 000004879 | AJ96: 2018-08-09 | CA96: 1 | CB96: 213z
A97: 91 | B97: Рахматов | C97: Нусратулло | D97: Ибодуллоевич | E97: Рахматов Н. И. | J97: 1984-08-27 | L97: РФ | M97: м | Q97: Таджикистан | Z97: Экономический | AA97: 38.03.01 | AB97: Экономика | AC97: Бухгалтерский учет, анализ и аудит | AD97: 5 лет | AE97: БАКАЛАВР | AF97: 2-670 | AG97: 2018-08-20 | AH97: по договору с полным возмещением затрат | AI97: 000005044 | AJ97: 2018-08-17 | CA97: 1 | CB97: 213z
A98: 92 | B98: Садовникова | C98: Елизавета | D98: Андреевна | E98: Садовникова Е. А. | J98: 1999-03-21 | K98: гор. Волгореченск Костромская обл. | L98: РФ | M98: ж | N98: ОГБПОУ "Костромской колледж отраслевых технологий строительства и лесной промышленности" | O98: 2018 | Q98: 156901, Костромская обл., Волгореченск г., Юбилейная ул., д. 6, кв. 14 | Z98: Экономический | AA98: 38.03.01 | AB98: Экономика | AC98: Бухгалтерский учет, анализ и аудит | AD98: 5 лет | AE98: БАКАЛАВР | AF98: 2-670 | AG98: 2018-08-20 | AH98: по договору с полным возмещением затрат | AI98: 000004891 | AJ98: 2018-08-10 | CA98: 1 | CB98: 213z
A99: 93 | B99: Саидова | C99: Гунча | E99: Саидова Г. . | J99: 1981-03-23 | L99: РФ | M99: м | N99: Среднее образовательное учреждение школы № 11 г. Туркменабат Область Лебап Страна Туркменистан | O99: 2018 | Q99: Туркменистан | Z99: Экономический | AA99: 38.03.01 | AB99: Экономика | AC99: Бухгалтерский учет, анализ и аудит | AD99: 5 лет | AE99: БАКАЛАВР | AF99: 2-670 | AG99: 2018-08-20 | AH99: по договору с полным возмещением затрат | AI99: 000004787 | AJ99: 2018-07-18 | CA99: 1 | CB99: 214z
A100: 94 | B100: Смирнова | C100: Мария | D100: Сергеевна | E100: Смирнова М. С. | J100: 1999-09-17 | K100: г. Буй Костромская обл. | L100: РФ | M100: ж | N100: ОГБПОУ "Буйский техникум градостроительства и предпринимательства Костромской области" г. Буй Костромская область | O100: 2018 | Q100: Костромская обл., Буй г. 3 Интернационала ул. д.65 кв.45 | Z100: Экономический | AA100: 38.03.01 | AB100: Экономика | AC100: Бухгалтерский учет, анализ и аудит | AD100: 5 лет | AE100: БАКАЛАВР | AF100: 2-670 | AG100: 2018-08-20 | AH100: по договору с полным возмещением затрат | AI100: 000004841 | AJ100: 2018-08-03 | CA100: 1 | CB100: 213z
A101: 95 | B101: Соколов | C101: Денис | D101: Владимирович | E101: Соколов Д. В. | J101: 1986-04-13 | K101: пос. Красное-на-Волге Красносельского р-на Костромской обл. | L101: РФ | M101: м | N101: Профессиональный лицей №15 г. Костромы | O101: 2004 | Q101: 157940, Костромская обл., Красносельский р-н, Красное-на-Волге пгт., Восточный мкр., д. 6, кв. 30 | Z101: Экономический | AA101: 38.03.01 | AB101: Экономика | AC101: Бухгалтерский учет, анализ и аудит | AD101: 5 лет | AE101: БАКАЛАВР | AF101: 2-670 | AG101: 2018-08-20 | AH101: по договору с полным возмещением затрат | AI101: 000004939 | AJ101: 2018-08-13 | CA101: 1 | CB101: 213z
A102: 96 | B102: Соснин | C102: Георгий | D102: Михайлович | E102: Соснин Г. М. | J102: 1993-06-17 | K102: гор. Кострома | L102: РФ | M102: м | N102: Муниципакльное вечернее (сменное) общеобразовательное учреждение вечернюю (сменную) общеобразовательную школу № 1 города Костромы | O102: 2010 | Q102: 156005, Кострома г., Крупяной пер., д. 7, кв. 4 | Z102: Экономический | AA102: 38.03.01 | AB102: Экономика | AC102: Бухгалтерский учет, анализ и аудит | AD102: 5 лет | AE102: БАКАЛАВР | AF102: 2-670 | AG102: 2018-08-20 | AH102: по договору с полным возмещением затрат | AI102: 000004876 | AJ102: 2018-08-09 | CA102: 1 | CB102: 213z
A103: 97 | B103: Увакина | C103: Полина | D103: Романовна | E103: Увакина П. Р. | J103: 1999-12-07 | K103: гор. Кострома | L103: РФ | M103: ж | N103: ФГБОУ ВО "Костромская государственная сельскохозяйственная академия" пос. Караваево Костромского р-на Костромской обл. | O103: 2018 | Q103: 157940, Костромская обл., Красносельский р-н, Красное-на-Волге пгт., Писанова ул., д. 11 | Z103: Экономический | AA103: 38.03.01 | AB103: Экономика | AC103: Бухгалтерский учет, анализ и аудит | AD103: 5 лет | AE103: БАКАЛАВР | AF103: 2-670 | AG103: 2018-08-20 | AH103: по договору с полным возмещением затрат | AI103: 000004895 | AJ103: 2018-08-10 | CA103: 1 | CB103: 213z
A104: 98 | B104: Улегина | C104: Анастасия | D104: Андреевна | E104: Улегина А. А. | J104: 1998-12-08 | K104: село Хомутово Островского района Костромской области | L104: РФ | M104: ж | N104: ФГБОУ ВО "Костромская государственная сельскохозяйственная академия" пос. Караваево Костромского р-на Костромской обл. | O104: 2018 | Q104: Костромская обл., Островский р-н, Хомутово с. д.2 кв.2 | Z104: Экономический | AA104: 38.03.01 | AB104: Экономика | AC104: Бухгалтерский учет, анализ и аудит | AD104: 5 лет | AE104: БАКАЛАВР | AF104: 2-670 | AG104: 2018-08-20 | AH104: по договору с полным возмещением затрат | AI104: 000004938 | AJ104: 2018-08-13 | CA104: 1 | CB104: 214z
A105: 99 | B105: Шведова | C105: Клавдия | D105: Владимировна | E105: Шведова К. В. | J105: 1998-04-26 | K105: гор. Кострома | L105: РФ | M105: ж | N105: ОГБПОУ " Костромской политехнический колледж" гор. Кострома | O105: 2017 | Q105: Костромская обл., Красносельский р-н, Абрамово д. д.17А кв.1 | Z105: Экономический | AA105: 38.03.01 | AB105: Экономика | AC105: Бухгалтерский учет, анализ и аудит | AD105: 5 лет | AE105: БАКАЛАВР | AF105: 2-670 | AG105: 2018-08-20 | AH105: по договору с полным возмещением затрат | AI105: 000004937 | AJ105: 2018-08-13 | CA105: 1 | CB105: 213z
A106: 100 | B106: Шелепова | C106: Ирина | D106: Николаевна | E106: Шелепова И. Н. | J106: 1989-11-27 | K106: пос. Поназырево Поназыревского района Костромской области | L106: РФ | M106: ж | N106: ФГОУ СПО "Костромской торгово-экономический колледж" | O106: 2009 | Q106: 157523, Костромская обл., Шарьинский р-н, Одоевское с., Животноводов ул., д. 6, кв. 2 | Z106: Экономический | AA106: 38.03.01 | AB106: Экономика | AC106: Бухгалтерский учет, анализ и аудит | AD106: 5 лет | AE106: БАКАЛАВР | AF106: 2-670 | AG106: 2018-08-20 | AH106: по договору с полным возмещением затрат | AI106: 000004866 | AJ106: 2018-08-08 | CA106: 1 | CB106: 214z
A107: 101 | B107: Шумилова | C107: Алёна | D107: Александровна | E107: Шумилова А. А. | J107: 1998-01-26 | K107: гор. Кострома | L107: РФ | M107: ж | N107: ОГБПОУ "Костромской автотранспортный колледж" г. Кострома | O107: 2018 | Q107: 156012 Кострома г., Красная Маевка ул., д. 12, кв. 1 | Z107: Экономический | AA107: 38.03.01 | AB107: Экономика | AC107: Бухгалтерский учет, анализ и аудит | AD107: 5 лет | AE107: БАКАЛАВР | AF107: 2-670 | AG107: 2018-08-20 | AH107: по договору с полным возмещением затрат | AI107: 000004860 | AJ107: 2018-08-07 | CA107: 1 | CB107: 213z
A108: 102 | B108: Щеглова | C108: Анна | D108: Николаевна | E108: Щеглова А. Н. | J108: 1988-04-04 | K108: с. Павино Павинского р-на Костромской обл. | L108: РФ | M108: ж | N108: ГОУ СПО "Шарьинский аграрный техникум Костромской области" | O108: 2008 | Q108: Костромская обл., Павинский р-н, Павино с. Луговая ул. д.6 кв.2 | Z108: Экономический | AA108: 38.03.01 | AB108: Экономика | AC108: Бухгалтерский учет, анализ и аудит | AD108: 5 лет | AE108: БАКАЛАВР | AF108: 2-670 | AG108: 2018-08-20 | AH108: по договору с полным возмещением затрат | AI108: 000004964 | AJ108: 2018-08-15 | CA108: 1 | CB108: 213z
A109: 103 | B109: Ясюкевичус | C109: Вера | D109: Леонидовна | E109: Ясюкевичус В. Л. | J109: 1996-11-16 | K109: пос. Октябрьский Манткровский район Костромская область | L109: РФ | M109: ж | N109: ОГБПОУ "Галичский аграрный техникум Костромской области" г. Галич Костромская обл. | O109: 2017 | Q109: Костромская обл., Мантуровский р-н, Октябрьский п. Садовая ул. д.23 кв.1 | Z109: Экономический | AA109: 38.03.01 | AB109: Экономика | AC109: Бухгалтерский учет, анализ и аудит | AD109: 5 лет | AE109: БАКАЛАВР | AF109: 2-670 | AG109: 2018-08-20 | AH109: по договору с полным возмещением затрат | AI109: 000004899 | AJ109: 2018-08-10 | CA109: 1 | CB109: 214z
A110: 104 | B110: Карпова | C110: Алёна | D110: Владимировна | E110: Карпова А. . | J110: 1999-08-07 | K110: гор. Кострома | L110: РФ | M110: ж | N110: ФГБОУ ВО "Костромской государственный университет" | O110: 2018 | Q110: Кострома г. мкр Якиманиха д.10 кв. 36 | Z110: Экономический | AA110: 38.03.01 | AB110: Экономика | AC110: Бухгалтерский учет, анализ и аудит | AD110: 5 лет | AE110: БАКАЛАВР | AF110: 2-685 | AG110: 2018-08-31 | AH110: по договору с полным возмещением затрат | AI110: 000004984 | AJ110: 2018-08-15 | CA110: 1 | CB110: 213z
A111: 105 | B111: Гвоздева | C111: Анастасия | D111: Сергеевна | E111: Гвоздева А. С. | J111: 1999-03-05 | K111: г. Волгореченск Костромская обл. | L111: РФ | M111: ж | N111: ОГБПОУ "Костромской колледж отраслевых технологий строительства и лесной промышленности" | O111: 2018 | Q111: Волгореченск г. Набережная ул. Д.34 кв.69 | Z111: Экономический | AA111: 38.03.01 | AB111: Экономика | AC111: Бухгалтерский учет, анализ и аудит | AD111: 5 лет | AE111: БАКАЛАВР | AF111: 2-685 | AG111: 2018-08-31 | AH111: по договору с полным возмещением затрат | AI111: 000005087 | AJ111: 2018-08-27 | CA111: 1 | CB111: 214z
A112: 106 | B112: Точилова | C112: Екатерина | D112: Александровна | E112: Точилова Е. А. | J112: 1999-01-04 | K112: гор. Кострома | L112: РФ | M112: ж | N112: ФГБОУ ВО "Костромская государственная сельскохозяйственная академия" пос. Караваево Костромского р-на Костромской обл. | O112: 2018 | Q112: Костромской р-н, Караваево п., Штеймана ул., д. 52, кв. 39 | Z112: Экономический | AA112: 38.03.01 | AB112: Экономика | AC112: Бухгалтерский учет, анализ и аудит | AD112: 5 лет | AE112: БАКАЛАВР | AF112: 2-685 | AG112: 2018-08-31 | AH112: по договору с полным возмещением затрат | AI112: 000005066 | AJ112: 2018-08-22 | CA112: 1 | CB112: 213z
A113: 107 | B113: Квашонкина | C113: Александра | D113: Сергеевна | E113: Квашонкина А. С. | J113: 2000-06-26 | K113: гор. Кострома | L113: РФ | M113: ж | N113: МБОУ г. Костромы "Вечерняя (сменная) общеобразовательная школа №2" | O113: 2018 | Q113: Кострома г Михалевский б-р д. 54 | Z113: Экономический | AA113: 38.03.01 | AB113: Экономика | AC113: Бухгалтерский учет, анализ и аудит | AD113: 5 лет | AE113: БАКАЛАВР | AF113: 2-685 | AG113: 2018-08-31 | AH113: по договору с полным возмещением затрат | AI113: 000004786 | AJ113: 2018-07-17 | CA113: 1 | CB113: 213z
A114: 108 | B114: Ермолина | C114: Юлия | D114: Владимировна | E114: Ермолина Ю. В. | J114: 1981-04-07 | K114: п. Волгореченск Костромская обл. | L114: РФ | M114: ж | N114: ФГОУ СПО "Буйский сельскохозяйственный техникум" | O114: 2006 | Q114: Ярославская обл. Ярославль г. ул. Ярославская, д. 33 кв. 21 | Z114: Экономический | AA114: 38.03.01 | AB114: Экономика | AC114: Бухгалтерский учет, анализ и аудит | AD114: 5 лет | AE114: БАКАЛАВР | AF114: 2-685 | AG114: 2018-08-31 | AH114: по договору с полным возмещением затрат | AI114: 000005080 | AJ114: 2018-08-27 | CA114: 1 | CB114: 215z
A115: 109 | B115: Аксёнова | C115: Кристина | D115: Анатольевна | E115: Аксёнова К. А. | J115: 1994-07-29 | K115: г. Галич Костромской обл. | L115: РФ | M115: ж | N115: ОГБ ПОУ "Галичский педагогический колледж Костромской области" | O115: 2016 | Q115: Галич г. ул. Луночарского, д. 49 | Z115: Экономический | AA115: 38.03.01 | AB115: Экономика | AC115: Бухгалтерский учет, анализ и аудит | AD115: 5 лет | AE115: БАКАЛАВР | AF115: 2-685 | AG115: 2018-08-31 | AH115: по договору с полным возмещением затрат | AI115: 000005086 | AJ115: 2018-08-27 | CA115: 1 | CB115: 215z
A116: 110 | B116: Поленская | C116: Анна | D116: Александровна | E116: Поленская А. А. | J116: 1987-05-10 | K116: д. Фатьяново Мантуровского р-на Костромской обл. | L116: РФ | M116: ж | N116: ОГБПОУ "Мантуровский политехнический техникум Костромской области | O116: 2018 | Q116: Мантурово г. ул. Герцена, д. 6 кв.5 | Z116: Экономический | AA116: 38.03.01 | AB116: Экономика | AC116: Бухгалтерский учет, анализ и аудит | AD116: 5 лет | AE116: БАКАЛАВР | AF116: 2-685 | AG116: 2018-08-31 | AH116: по договору с полным возмещением затрат | AI116: 000004823 | AJ116: 2018-08-02 | CA116: 1 | CB116: 213z
A117: 111 | B117: Артыкныязова | C117: Кумуш | E117: Артыкныязова К. . | J117: 1989-01-01 | K117: Республика Туркменистан | L117: Туркменистан | M117: ж | N117: Национальный университет "Юридическая академия Украины имени Ярослава Мудрого" | O117: 2013 | Q117: Туркменистан | Z117: Экономический | AA117: 38.03.01 | AB117: Экономика | AC117: Бухгалтерский учет, анализ и аудит | AD117: 5 лет | AE117: БАКАЛАВР | AF117: 2-685 | AG117: 2018-08-31 | AH117: по договору с полным возмещением затрат | AI117: 000005179 | AJ117: 2018-08-28 | CA117: 1 | CB117: 214z
A118: 112 | B118: Абыкова | C118: Светлана | D118: Валерьевна | E118: Абыкова С. В. | J118: 1981-02-01 | K118: г. Нея Костромская обл. | L118: РФ | M118: ж | N118: Профессиональный лицей №15 г. Костромы | O118: 1999 | Q118: Костромской р-н, Караваево п., Учебный городок ул., д. 24, кв. 114 | Z118: Экономический | AA118: 38.03.01 | AB118: Экономика | AC118: Бухгалтерский учет, анализ и аудит | AD118: 5 лет | AE118: БАКАЛАВР | AF118: 2-685 | AG118: 2018-08-31 | AH118: по договору с полным возмещением затрат | AI118: 000005074 | AJ118: 2018-08-24 | CA118: 1 | CB118: 213z
A119: 113 | B119: Артыкныязов | C119: Тойгулы | E119: Артыкныязов Т. . | J119: 1992-05-05 | K119: Республика Туркменистан | L119: Туркменистан | M119: м | N119: Средняя школа №51 г. Ашхабад | O119: 2009 | Q119: Туркменистан | Z119: Экономический | AA119: 38.03.01 | AB119: Экономика | AC119: Бухгалтерский учет, анализ и аудит | AD119: 5 лет | AE119: БАКАЛАВР | AF119: 2-685 | AG119: 2018-08-31 | AH119: по договору с полным возмещением затрат | AI119: 000005178 | AJ119: 2018-08-28 | CA119: 1 | CB119: 213z
A120: 114 | B120: Присяжнюк | C120: Анастасия | D120: Вячеславовна | E120: Присяжнюк А. В. | J120: 2000-05-21 | K120: гор. Кострома | L120: РФ | M120: ж | N120: МБОУ СОШ №27 г. Кострома | O120: 2018 | Q120: Кострома г. Подгорная ул. д. 12 кв. 1 | Z120: Экономический | AA120: 38.03.01 | AB120: Экономика | AC120: Бухгалтерский учет, анализ и аудит | AD120: 5 лет | AE120: БАКАЛАВР | AF120: 2-685 | AG120: 2018-08-31 | AH120: по договору с полным возмещением затрат | AI120: 000005206 | AJ120: 2018-08-28 | CA120: 1 | CB120: 214z

Sheet форма
A1: Федеральное государственное бюджетное образовательное учреждения высшего образования | I1: 40 | P1: января | Z1: Папка | AA1: C:\5\
A2: «Костромская государственная сельскохозяйственная академия» | J2: =IF(J3="Экономический",деканаты!F2,IF(J3="Архитектурно-строительный",деканаты!F3,IF(J3="Агробизнеса",деканаты!F4,IF(J3="Ветеринарной медицины и зоотехнии",деканаты!F5,IF(J3="Инженерно-технологический",деканаты!F6,IF(J3="Электроэнергетический",деканаты!F7,0)))))) -> И.о. декана | P2: февраля | Z2: Имя файла | AA2: =CONCATENATE(R11,"_","УК_",S25) -> 160626_УК_2016
B3: =J3 -> Экономический | J3: =INDEX(Предметы!$B$6:$JR$65,$I1,25) -> Экономический | N3: Удовлетворительно | O3: Удовлет. | P3: марта | AA3: =NOW() -> 2018-09-26T14:37:14.560
B4: Факультет | N4: Хорошо | O4: Хорошо | P4: апреля | Z4: - сохранить карточку в PDF
B5: =CONCATENATE(J5," ",K5) -> 38.03.01 Экономика | J5: =INDEX(Предметы!$B$6:$JR$65,$I1,26) -> 38.03.01 | K5: =INDEX(Предметы!$B$6:$JR$65,$I1,27) -> Экономика | N5: Отлично | O5: Отлично | P5: мая
B6: Направление | N6: Зачет | O6: Зачет | P6: июня
B7: =J7 -> Бухгалтерский учет, анализ и аудит | J7: =INDEX(Предметы!$B$6:$JR$65,$I1,28) -> Бухгалтерский учет, анализ и аудит | P7: июля
B8: Профиль | P8: августа
A9: Учебная карточка студента | P9: сентября
G10: Личное дело № | P10: октября
A11: 1 | B11: =CONCATENATE(J11," ",K11," ",L11) -> Ткаченко Евгения Владимировна | I11: 1 | J11: =INDEX(Предметы!$B$6:$JR$65,$I1,1) -> Ткаченко | K11: =INDEX(Предметы!$B$6:$JR$65,$I1,2) -> Евгения | L11: =INDEX(Предметы!$B$6:$JR$65,$I1,3) -> Владимировна | M11: =INDEX(Предметы!$B$6:$JR$65,$I1,12) -> ж | N11: =IF(M11="м","","а") -> а | P11: ноября | R11: =INDEX(Предметы!$B$6:$JR$65,$I1,24) -> 160626
B12: Фамилия, имя, отчество | I12: 1 | P12: декабря
A13: =A11+1 -> 2 | B13: =CONCATENATE(L13," ",O13," ",M13) -> 13 июля 1990 | I13: 1 | J13: =INDEX(Предметы!$B$6:$JR$65,$I1,9) -> 33067 | K13: =TEXT(J13,"ДД ММММ ГГГГ") -> 13 Июль 1990 | L13: =TEXT(J13,"ДД") -> 13 | M13: =TEXT(J13,"ГГГГ") -> 1990 | N13: =VALUE(TEXT(J13,"М")) -> 7 | O13: =CHOOSE(N13,$P$1,$P$2,$P$3,$P$4,$P$5,$P$6,P7,P8,P9,P10,P11,P12) -> июля
B14: Год и месяц рождения | I14: 1
A15: =A13+1 -> 3 | B15: =J15 -> г. Артем Приморского края | I15: 1 | J15: =INDEX(Предметы!$B$6:$JR$65,$I1,10) -> г. Артем Приморского края
B16: Место рождения | I16: 1
A17: =A15+1 -> 4 | B17: =J17 -> РФ | I17: 1 | J17: =INDEX(Предметы!$B$6:$JR$65,$I1,11) -> РФ
B18: Гражданство | I18: 1
A19: =A17+1 -> 5 | B19: =J19 -> г. Екатеринбург ГОУ СПО Уральский государственный колледж имени И.И. Ползунова | G19: год окончания | H19: =K19 -> 2010 | I19: 1 | J19: =INDEX(Предметы!$B$6:$JR$65,$I1,13) -> г. Екатеринбург ГОУ СПО Уральский государственный колледж имени И.И. Ползунова | K19: =INDEX(Предметы!$B$6:$JR$65,$I1,14) -> 2010
B20: Что окончил (а) | I20: 1
A21: =A19+1 -> 6 | B21: =J21 -> не замужем | I21: 1 | J21: =INDEX(Предметы!$B$6:$JR$65,$I1,15) -> не замужем
B22: Семейное положение | I22: 1
A23: =A21+1 -> 7 | B23: =J23 -> 620074 Свердловская обл., г. Екатеринбург, ул. Олега Кошевого, д. 36, кв. 52 | J23: =INDEX(Предметы!$B$6:$JR$65,$I1,16) -> 620074 Свердловская обл., г. Екатеринбург, ул. Олега Кошевого, д. 36, кв. 52
B24: Адрес местожительства
A25: =A23+1 -> 8 | B25: =CONCATENATE("Зачислен",N11," в вуз приказ № ",J25," от ",L25,"") -> Зачислена в вуз приказ № 2-542 от 19.08.2016 | I25: 1 | J25: =INDEX(Предметы!$B$6:$JR$65,$I1,31) -> 2-542 | K25: =INDEX(Предметы!$B$6:$JR$65,$I1,32) -> 42601 | L25: =TEXT(K25,"ДД.ММ.ГГГГ") -> 19.08.2016 | S25: =TEXT(K25,"ГГГГ") -> 2016
B26: =CONCATENATE(J26,M26) -> по договору с полным возмещение затрат договор № 000004087 от 08 08 2016 | I26: 1 | J26: =INDEX(Предметы!$B$6:$JR$65,$I1,33) -> по договору с полным возмещение затрат | K26: =INDEX(Предметы!$B$6:$JR$65,$I1,34) -> 000004087 | L26: =INDEX(Предметы!$B$6:$JR$65,$I1,35) -> 42590 | M26: =IF(K26=0,"",CONCATENATE(" договор № ",K26," от ",TEXT(L26,"ДД ММ ГГГГ") )) -> договор № 000004087 от 08 08 2016
A27: =A25+I25 -> 9 | B27: =CONCATENATE("Трудовая книжка ",M27) -> Трудовая книжка | I27: =IF(J27=0,0,1) -> 0 | J27: =INDEX(Предметы!$B$6:$JR$65,$I1,17) -> 0 | M27: =IF(J27=0,"",CONCATENATE(" № ",J27," дата выдачи ",TEXT(K27,"ДД.ММ.ГГГГ")," выдана ",L27)) -> 
I28: =I27 -> 0
A29: =A27+I27 -> 9 | B29: =CONCATENATE("Отчислен",N11," ",M29) -> Отчислена | I29: =IF(J29=0,0,1) -> 0 | J29: =INDEX(Предметы!$B$6:$JR$65,$I1,38) -> 0 | K29: =INDEX(Предметы!$B$6:$JR$122,$I1,39) -> 0 | L29: =INDEX(Предметы!$B$6:$JR$122,$I1,40) -> 0 | M29: =IF(J29=0,"",CONCATENATE(" приказ № ",J29," от ",TEXT(K29,"ДД.ММ.ГГГГ")," ",IF(L29=0,"",L29))) -> 
I30: =I29 -> 0
A31: =A29+I29 -> 9 | B31: =CONCATENATE("Востановлен",N11," ",M31) -> Востановлена | I31: =IF(J31=0,0,1) -> 0 | J31: =INDEX(Предметы!$B$6:$JR$65,$I$1,41) -> 0 | K31: =INDEX(Предметы!$B$6:$JR$65,$I$1,42) -> 0 | L31: =INDEX(Предметы!$B$6:$JR$65,$I$1,43) -> 0 | M31: =IF(J31=0,"",CONCATENATE(" приказ № ",J31," от ",TEXT(K31,"ДД.ММ.ГГГГ")," ",IF(L31=0,"",L31))) -> 
I32: =I31 -> 0
A33: =A31+I31 -> 9 | B33: =CONCATENATE("Предоставлен длительный отпуск",O33) -> Предоставлен длительный отпуск | I33: =IF(J33=0,0,1) -> 0 | J33: =INDEX(Предметы!$B$6:$JR$65,$I1,44) -> 0 | K33: =INDEX(Предметы!$B$6:$JR$65,$I1,45) -> 0 | L33: =INDEX(Предметы!$B$6:$JR$65,$I1,46) -> 0 | M33: =INDEX(Предметы!$B$6:$JR$65,$I1,47) -> 0 | N33: =INDEX(Предметы!$B$6:$JR$65,$I1,48) -> 0 | O33: =IF(J33=0,"",CONCATENATE(" сроком на ",IF(N34=0,"____",N34),O34," приказ № ",J33," от ",J34)) -> 
B34: =L33 -> 0 | D34: =IF(J33=0,"",CONCATENATE("с ",K34," по ",L34)) ->  | I34: =I33 -> 0 | J34: =TEXT(K33,"ДД.ММ.ГГГГ") -> 00.01.1900 | K34: =TEXT(M33,"ДД.ММ.ГГГГ") -> 00.01.1900 | L34: =TEXT(N33,"ДД.ММ.ГГГГ") -> 00.01.1900 | M34: =N33-M33+182 -> 182 | N34: =INT(M34/365+0.1) -> 0 | O34: =IF(N34=1," год"," года") -> года
A35: =A33+I33 -> 9 | B35: =CONCATENATE("Переведен",N11,M35) -> Переведена на 2 курс приказ № 2-339 от 03.05.2018 | I35: 1 | J35: =INDEX(Предметы!$B$6:$JR$65,$I1,49) -> 2-339 | K35: =INDEX(Предметы!$B$6:$JR$65,$I1,50) -> 43223 | L35: =TEXT(K35,"ДД.ММ.ГГГГ") -> 03.05.2018 | M35: =IF(J35=0,"",CONCATENATE(" на 2 курс приказ № ",J35," от ",L35,"")) -> на 2 курс приказ № 2-339 от 03.05.2018
A37: =A35+I35 -> 10 | B37: =CONCATENATE("Переведен",N11,M37) -> Переведена | I37: 1 | J37: =INDEX(Предметы!$B$6:$JR$65,$I1,51) -> 0 | K37: =INDEX(Предметы!$B$6:$JR$65,$I1,52) -> 0 | L37: =TEXT(K37,"ДД.ММ.ГГГГ") -> 00.01.1900 | M37: =IF(J37=0,"",CONCATENATE(" на 3 курс приказ № ",J37," от ",L37,"")) -> 
A39: =A37+I37 -> 11 | B39: =CONCATENATE("Переведен",N11,M39) -> Переведена | I39: 1 | J39: =INDEX(Предметы!$B$6:$JR$65,$I1,53) -> 0 | K39: =INDEX(Предметы!$B$6:$JR$65,$I1,54) -> 0 | L39: =TEXT(K39,"ДД.ММ.ГГГГ") -> 00.01.1900 | M39: =IF(J39=0,"",CONCATENATE(" на 4 курс приказ № ",J39," от ",L39,"")) -> 
A41: =A39+I39 -> 12 | B41: =CONCATENATE("Переведен",N11,M41) -> Переведена | I41: 1 | J41: =INDEX(Предметы!$B$6:$JR$65,$I1,55) -> 0 | K41: =INDEX(Предметы!$B$6:$JR$65,$I1,56) -> 0 | L41: =TEXT(K41,"ДД.ММ.ГГГГ") -> 00.01.1900 | M41: =IF(J41=0,"",CONCATENATE(" на 5 курс приказ № ",J41," от ",L41,"")) -> 
I42: 1
A43: =A41+I41 -> 13 | B43: =CONCATENATE("Сдано за весь срок обучения ",N43," предметов, средний балл ",O43) -> Сдано за весь срок обучения 10 предметов, средний балл 0,82 | I43: 1 | J43: =INDEX(Предметы!$B$6:$JR$145,$I1,271) -> 2 | K43: =INDEX(Предметы!$B$6:$JR$145,$I1,272) -> 5 | L43: =INDEX(Предметы!$B$6:$JR$145,$I1,273) -> 3 | M43: =INDEX(Предметы!$B$6:$JR$145,$I1,274) -> 7 | N43: =INDEX(Предметы!$B$6:$JR$145,$I1,275) -> 10 | O43: =INDEX(Предметы!$B$6:$JR$145,$I1,269) -> 0.82
B44: =CONCATENATE(" из них: отлично - ",L44,"; хорошо - ",K44,"; удовлетворительно - ",J44) -> из них: отлично - 3; хорошо - 5; удовлетворительно - 2 | I44: 1 | J44: =IF(J43=0,"нет",J43) -> 2 | K44: =IF(K43=0,"нет",K43) -> 5 | L44: =IF(L43=0,"нет",L43) -> 3 | M44: =IF(M43=0,"нет",M43) -> 7
A45: =A43+I43 -> 14 | B45: =CONCATENATE("Допущен",N11," к защите выпускной квалификационной работы ",M45) -> Допущена к защите выпускной квалификационной работы | I45: 1 | J45: =INDEX(Предметы!$B$6:$JR$65,$I1,61) -> 0 | K45: =INDEX(Предметы!$B$6:$JR$65,$I1,62) -> 0 | L45: =TEXT(K45,"ДД.ММ.ГГГГ") -> 00.01.1900 | M45: =IF(J45=0,"",CONCATENATE(" приказ № ",J45," от ",L45)) -> 
I46: 1
A47: =A45+I45 -> 15 | B47: Итоговый экзамен: | I47: 1
A48: № | B48: Название дисциплины | F48: Дата сдачи экзамена | G48: Экзаменационная оценка | I48: 1
A49: =IF(B49=0,"",1) -> 1 | B49: =IF(J49=0,"",J49) ->  | F49: =IF(K49=0,"",TEXT(K49,"ДД.ММ.ГГГГ")) ->  | G49: =IF(L49=0,"",M49) ->  | I49: =IF(J49=0,0,1) -> 0 | J49: =INDEX(Предметы!$B$6:$JR$65,$I1,63) -> 0 | K49: =INDEX(Предметы!$B$6:$JR$65,$I1,64) -> 0 | L49: =INDEX(Предметы!$B$6:$JR$65,$I1,65) -> 0 | M49: =CHOOSE(L49,$N$1,$N$2,$N$3,$N$4,$N$5,$N$6) -> 
A50: =IF(B50=0,"",2) -> 2 | B50: =IF(J50=0,"",J50) ->  | F50: =IF(K50=0,"",TEXT(K50,"ДД.ММ.ГГГГ")) ->  | I50: =IF(J50=0,0,1) -> 0 | J50: =INDEX(Предметы!$B$6:$JR$65,$I1,66) -> 0 | K50: =INDEX(Предметы!$B$6:$JR$65,$I1,67) -> 0 | L50: =INDEX(Предметы!$B$6:$JR$65,$I1,68) -> 0 | M50: =CHOOSE(L50,$N$1,$N$2,$N$3,$N$4,$N$5,$N$6) -> 
I51: 1
A52: =A47+I47 -> 16 | B52: =CONCATENATE("Дипломный проект (работу) выполнил",N11," на тему: """,IF(J52=0,"",J52),"""") -> Дипломный проект (работу) выполнила на тему: "" | I52: 1 | J52: =INDEX(Предметы!$B$6:$JR$65,$I1,69) -> 0
B53: =CONCATENATE("и защитил",N11," ",IF(K54=0,"____________",L54)," с оценкой ",IF(J53=0,"__________",K53)) -> и защитила ____________ с оценкой __________ | I53: 1 | J53: =INDEX(Предметы!$B$6:$JR$65,$I1,70) -> 0 | K53: =CHOOSE(J53,$N$1,$N$2,$N$3,$N$4,$N$5,$N$6) -> 
A54: =A52+I52 -> 17 | B54: =CONCATENATE("Постановлением государственной аттестационной комиссии (протокол № ",IF(J54=0,"____",J54)," от ",IF(J54=0,"____________",L54)," )") -> Постановлением государственной аттестационной комиссии (протокол № ____ от ____________ ) | I54: 1 | J54: =INDEX(Предметы!$B$6:$JR$65,$I1,71) -> 0 | K54: =INDEX(Предметы!$B$6:$JR$65,$I1,72) -> 0 | L54: =TEXT(K54,"ДД.ММ.ГГГГ") -> 00.01.1900 | M54: =INDEX(Предметы!$B$6:$JR$65,$I1,30) -> БАКАЛАВР
B55: =CONCATENATE("присвоена квалификация ",IF(J54=0,"__________",M54)) -> присвоена квалификация __________ | I55: 1
B56: =CONCATENATE("Диплом с отличием, без отличия, за № ",M56," выдан ",L56) -> Диплом с отличием, без отличия, за № 0 выдан 00.01.1900 | I56: =IF(K56=0,0,1) -> 0 | K56: =INDEX(Предметы!$B$6:$JR$65,$I1,77) -> 0 | L56: =TEXT(K56,"ДД.ММ.ГГГГ") -> 00.01.1900 | M56: =INDEX(Предметы!$B$6:$JR$65,$I1,76) -> 0
B57: =CONCATENATE(J2," факультета ______________________",J57) -> И.о. декана факультета ______________________Н.А. Середа | I57: 1 | J57: =IF(J3="Экономический",деканаты!D2,IF(J3="Архитектурно-строительный",деканаты!D3,IF(J3="Агробизнеса",деканаты!D4,IF(J3="Ветеринарной медицины и зоотехнии",деканаты!D5,IF(J3="Инженерно-технологический",деканаты!D6,IF(J3="Электроэнергетический",деканаты!D7,0)))))) -> Н.А. Середа | K57: 3 | L57: 3 | M57: 3 | N57: 3 | O57: 3 | P57: 3 | Q57: 3 | R57: 3 | S57: 3 | T57: 3 | U57: 3 | V57: 3
A58: =A54+I53 -> 18 | B58: Выполнение учебного плана | I58: 1 | K58: 1 | L58: 2 | M58: 3 | N58: 4 | O58: 5 | P58: 6 | Q58: 7 | R58: 8 | S58: 9 | T58: 10 | U58: 11 | V58: 12
A59: Семестры | B59: Название предмета | D59: Число часов по плану/ зачетных единиц | E59: Экзамена- ционная оценка | F59: Отметка о зачете | G59: Дата ведомости | I59: 1 | J59: =I1 -> 40 | K59: =COUNTIF(Предметы!$CC$2:$JG$2,1) -> 0 | L59: =COUNTIF(Предметы!$CC$2:$JG$2,2) -> 8 | M59: =COUNTIF(Предметы!$CC$2:$JG$2,3) -> 5 | N59: =COUNTIF(Предметы!$CC$2:$JG$2,4) -> 9 | O59: =COUNTIF(Предметы!$CC$2:$JG$2,5) -> 6 | P59: =COUNTIF(Предметы!$CC$2:$JG$2,6) -> 8 | Q59: =COUNTIF(Предметы!$CC$2:$JG$2,7) -> 5 | R59: =COUNTIF(Предметы!$CC$2:$JG$2,8) -> 8 | S59: =COUNTIF(Предметы!$CC$2:$JG$2,9) -> 12 | T59: =COUNTIF(Предметы!$CC$2:$JG$2,10) -> 2 | U59: =COUNTIF(Предметы!$CC$2:$JG$2,11) -> 0 | V59: =COUNTIF(Предметы!$CC$2:$JG$2,12) -> 0
A60: =K60 -> 2 | B60: =Предметы!CC5 -> Делопроизводство и документооборот | D60: =CONCATENATE(Предметы!CC3," / ",Предметы!CC3/36) -> 216 / 6 | E60: =IF(AND(L60>2, L60<6),P60,"------") -> Удовлет. | F60: =IF(M60=0,"------",IF(L60=6,P60,"------")) -> ------ | G60: =CONCATENATE(IF(M60=0,"------",N60)," ",IF(O60=0,"",CONCATENATE("№ ",O60))) -> 08.05.2018 № 784 | I60: =IF(M60=0,0,1) -> 1 | J60: 5 | K60: =Предметы!CC2 -> 2 | L60: =INDEX(Предметы!$B$6:$JR$65,$I1,80) -> 3 | M60: =INDEX(Предметы!$B$6:$JR$65,$I1,81) -> 43228 | N60: =TEXT(M60,"ДД.ММ.ГГГГ") -> 08.05.2018 | O60: =INDEX(Предметы!$B$6:$JR$65,$I1,82) -> 784 | P60: =CHOOSE(L60,$O$1,$O$2,$O$3,$O$4,$O$5,$O$6) -> Удовлет.
A61: =K61 -> 2 | B61: =Предметы!CF5 -> Введение в профессию и основы научных исследований | D61: =CONCATENATE(Предметы!CF3," / ",Предметы!CF3/36) -> 108 / 3 | E61: =IF(AND(L61>2, L61<6),P61,"------") -> ------ | F61: =IF(M61=0,"------",IF(L61=6,P61,"------")) -> Зачет | G61: =CONCATENATE(IF(M61=0,"------",N61)," ",IF(O61=0,"",CONCATENATE("№ ",O61))) -> 10.06.2017 | I61: =IF(M61=0,0,1) -> 1 | J61: =J60+1 -> 6 | K61: =Предметы!CF2 -> 2 | L61: =INDEX(Предметы!$B$6:$JR$65,$I1,83) -> 6 | M61: =INDEX(Предметы!$B$6:$JR$65,$I1,84) -> 10.06.2017 | N61: 10.06.2017 | O61: =INDEX(Предметы!$B$6:$JR$65,$I1,85) -> 0 | P61: =CHOOSE(L61,$O$1,$O$2,$O$3,$O$4,$O$5,$O$6) -> Зачет
A62: 2 | B62: =Предметы!CI5 -> История | D62: =CONCATENATE(Предметы!CI3," / ",Предметы!CI3/36) -> 108 / 3 | E62: Хорошо | F62: ------ | G62: 10.06.2017 | I62: 1 | J62: =J61+1 -> 7 | K62: =Предметы!CI2 -> 2 | L62: =INDEX(Предметы!$B$6:$JR$65,$I1,86) -> 4 | M62: =INDEX(Предметы!$B$6:$JR$65,$I1,87) -> 10.06.2017 | N62: 10.06.2017 | O62: =INDEX(Предметы!$B$6:$JR$65,$I1,88) -> 0 | P62: Хорошо
A63: 2 | B63: =Предметы!CL5 -> Психология | D63: =CONCATENATE(Предметы!CL3," / ",Предметы!CL3/36) -> 72 / 2 | E63: ------ | F63: Зачет | G63: 10.06.2017 | I63: 1 | J63: 8 | K63: =Предметы!CL2 -> 2 | L63: =INDEX(Предметы!$B$6:$JR$65,$I1,89) -> 6 | M63: =INDEX(Предметы!$B$6:$JR$65,$I1,90) -> 10.06.2017 | N63: 10.06.2017 | O63: =INDEX(Предметы!$B$6:$JR$65,$I1,91) -> 0 | P63: Зачет
A64: 2 | B64: =Предметы!CO5 -> Математический анализ | D64: =CONCATENATE(Предметы!CO3," / ",Предметы!CO3/36) -> 216 / 6 | E64: Отлично | F64: ------ | G64: 11.10.2017 | I64: 1 | J64: 9 | K64: =Предметы!CO2 -> 2 | L64: =INDEX(Предметы!$B$6:$JR$65,$I1,92) -> 5 | M64: =INDEX(Предметы!$B$6:$JR$65,$I1,93) -> 11.10.2017 | N64: 11.10.2017 | O64: =INDEX(Предметы!$B$6:$JR$65,$I1,94) -> 0 | P64: Отлично
A65: 2 | B65: =Предметы!CR5 -> Линейная алгебра | D65: =CONCATENATE(Предметы!CR3," / ",Предметы!CR3/36) -> 252 / 7 | E65: Отлично | F65: ------ | G65: 11.10.2017 | I65: 1 | J65: 10 | K65: =Предметы!CR2 -> 2 | L65: =INDEX(Предметы!$B$6:$JR$65,$I1,95) -> 5 | M65: =INDEX(Предметы!$B$6:$JR$65,$I1,96) -> 11.10.2017 | N65: 11.10.2017 | O65: =INDEX(Предметы!$B$6:$JR$65,$I1,97) -> 0 | P65: Отлично
A66: 2 | B66: =Предметы!CU5 -> Информатика и информационное обеспечение бухгалтерского учета | D66: =CONCATENATE(Предметы!CU3," / ",Предметы!CU3/36) -> 360 / 10 | E66: Хорошо | F66: ------ | G66: 11.10.2017 | I66: 1 | J66: 11 | K66: =Предметы!CU2 -> 2 | L66: =INDEX(Предметы!$B$6:$JR$65,$I1,98) -> 4 | M66: =INDEX(Предметы!$B$6:$JR$65,$I1,99) -> 11.10.2017 | N66: 11.10.2017 | O66: =INDEX(Предметы!$B$6:$JR$65,$I1,100) -> 0 | P66: Хорошо
A67: 2 | B67: =Предметы!CX5 -> Микроэкономика | D67: =CONCATENATE(Предметы!CX3," / ",Предметы!CX3/36) -> 216 / 6 | E67: Хорошо | F67: ------ | G67: 25.12.2017 | I67: 1 | J67: 12 | K67: =Предметы!CX2 -> 2 | L67: =INDEX(Предметы!$B$6:$JR$65,$I1,101) -> 4 | M67: =INDEX(Предметы!$B$6:$JR$65,$I1,102) -> 25.12.2017 | N67: 25.12.2017 | O67: =INDEX(Предметы!$B$6:$JR$65,$I1,103) -> 0 | P67: Хорошо
A68: 3 | B68: =Предметы!DA5 -> Иностранный язык (З) | D68: =CONCATENATE(Предметы!DA3," / ",Предметы!DA3/36) -> 97 / 2,69444444444444 | E68: ------ | F68: Зачет | G68: 23.12.2017 № Z-7869497 | I68: 1 | J68: 13 | K68: =Предметы!DA2 -> 3 | L68: =INDEX(Предметы!$B$6:$JR$65,$I1,104) -> 6 | M68: =INDEX(Предметы!$B$6:$JR$65,$I1,105) -> 43092 | N68: 23.12.2017 | O68: =INDEX(Предметы!$B$6:$JR$65,$I1,106) -> Z-7869497 | P68: Зачет
A69: 3 | B69: =Предметы!DD5 -> Социология | D69: =CONCATENATE(Предметы!DD3," / ",Предметы!DD3/36) -> 72 / 2 | E69: ------ | F69: Зачет | G69: =CONCATENATE(IF(M69=0,"------",N69)," ",IF(O69=0,"",CONCATENATE("№ ",O69))) -> 23.12.2017 № 7869528 | I69: 1 | J69: 14 | K69: =Предметы!DD2 -> 3 | L69: =INDEX(Предметы!$B$6:$JR$65,$I1,107) -> 6 | M69: =INDEX(Предметы!$B$6:$JR$65,$I1,108) -> 43092 | N69: 23.12.2017 | O69: =INDEX(Предметы!$B$6:$JR$65,$I1,109) -> 7869528 | P69: Зачет
A70: 3 | B70: =Предметы!DG5 -> Политология | D70: =CONCATENATE(Предметы!DG3," / ",Предметы!DG3/36) -> 180 / 5 | E70: Хорошо | F70: ------ | G70: 23.12.2018 № 7869529 | I70: 1 | J70: 15 | K70: =Предметы!DG2 -> 3 | L70: =INDEX(Предметы!$B$6:$JR$65,$I1,110) -> 4 | M70: =INDEX(Предметы!$B$6:$JR$65,$I1,111) -> 43457 | N70: 23.12.2018 | O70: =INDEX(Предметы!$B$6:$JR$65,$I1,112) -> 7869529 | P70: Хорошо
A71: 3 | B71: =Предметы!DJ5 -> Теория вероятностей и математическая статистика | D71: =CONCATENATE(Предметы!DJ3," / ",Предметы!DJ3/36) -> 144 / 4 | E71: Удовлет. | F71: ------ | G71: 23.12.2017 | I71: 1 | J71: 16 | K71: =Предметы!DJ2 -> 3 | L71: =INDEX(Предметы!$B$6:$JR$65,$I1,113) -> 3 | M71: =INDEX(Предметы!$B$6:$JR$65,$I1,114) -> 23.12.2017 | N71: 23.12.2017 | O71: =INDEX(Предметы!$B$6:$JR$65,$I1,115) -> 0 | P71: Удовлет.
A72: 3 | B72: =Предметы!DM5 -> Макроэкономика(З) | D72: =CONCATENATE(Предметы!DM3," / ",Предметы!DM3/36) -> 136 / 3,77777777777778 | E72: ------ | F72: Зачет | G72: 23.12.2017 | I72: 1 | J72: 17 | K72: =Предметы!DM2 -> 3 | L72: =INDEX(Предметы!$B$6:$JR$65,$I1,116) -> 6 | M72: =INDEX(Предметы!$B$6:$JR$65,$I1,117) -> 23.12.2017 | N72: 23.12.2017 | O72: =INDEX(Предметы!$B$6:$JR$65,$I1,118) -> 0 | P72: Зачет
A73: 4 | B73: =Предметы!DP5 -> Эконометрика | D73: =CONCATENATE(Предметы!DP3," / ",Предметы!DP3/36) -> 180 / 5 | E73: Отлично | F73: ------ | G73: 28.04.2018 | I73: 1 | J73: 18 | K73: =Предметы!DP2 -> 4 | L73: =INDEX(Предметы!$B$6:$JR$65,$I1,119) -> 5 | M73: =INDEX(Предметы!$B$6:$JR$65,$I1,120) -> 28.04.2018 | N73: 28.04.2018 | O73: =INDEX(Предметы!$B$6:$JR$65,$I1,121) -> 0 | P73: Отлично
A74: 4 | B74: =Предметы!DS5 -> Иностранный язык | D74: =CONCATENATE(Предметы!DS3," / ",Предметы!DS3/36) -> 119 / 3,30555555555556 | E74: Хорошо | F74: ------ | G74: 28.04.2018 № 7869498 | I74: 1 | J74: 19 | K74: =Предметы!DS2 -> 4 | L74: =INDEX(Предметы!$B$6:$JR$65,$I1,122) -> 4 | M74: =INDEX(Предметы!$B$6:$JR$65,$I1,123) -> 43218 | N74: 28.04.2018 | O74: =INDEX(Предметы!$B$6:$JR$65,$I1,124) -> 7869498 | P74: Хорошо
A75: 4 | B75: =Предметы!DV5 -> Макроэкономика | D75: =CONCATENATE(Предметы!DV3," / ",Предметы!DV3/36) -> 152 / 4,22222222222222 | E75: ------ | F75: ------ | I75: 1 | J75: 20 | K75: =Предметы!DV2 -> 4 | L75: =INDEX(Предметы!$B$6:$JR$65,$I1,125) -> 0 | M75: =INDEX(Предметы!$B$6:$JR$65,$I1,126) ->  | O75: =INDEX(Предметы!$B$6:$JR$65,$I1,127) -> 0
A76: 4 | B76: =Предметы!DY5 -> Статистика | D76: =CONCATENATE(Предметы!DY3," / ",Предметы!DY3/36) -> 216 / 6 | E76: ------ | F76: ------ | I76: 1 | J76: 21 | K76: =Предметы!DY2 -> 4 | L76: =INDEX(Предметы!$B$6:$JR$65,$I1,128) -> 0 | M76: =INDEX(Предметы!$B$6:$JR$65,$I1,129) ->  | O76: =INDEX(Предметы!$B$6:$JR$65,$I1,130) -> 0
A77: 4 | B77: =Предметы!EB5 -> Менеджмент | D77: =CONCATENATE(Предметы!EB3," / ",Предметы!EB3/36) -> 144 / 4 | E77: ------ | F77: ------ | I77: 1 | J77: 22 | K77: =Предметы!EB2 -> 4 | L77: =INDEX(Предметы!$B$6:$JR$65,$I1,131) -> 0 | M77: =INDEX(Предметы!$B$6:$JR$65,$I1,132) ->  | O77: =INDEX(Предметы!$B$6:$JR$65,$I1,133) -> 0
A78: 4 | B78: =Предметы!EE5 -> Физическая культура и спорт | D78: =CONCATENATE(Предметы!EE3," / ",Предметы!EE3/36) -> 72 / 2 | E78: ------ | F78: Зачет | G78: 28.04.2018 № 7869872 | I78: 1 | J78: 23 | K78: =Предметы!EE2 -> 4 | L78: =INDEX(Предметы!$B$6:$JR$65,$I1,134) -> 6 | M78: =INDEX(Предметы!$B$6:$JR$65,$I1,135) -> 43218 | N78: 28.04.2018 | O78: =INDEX(Предметы!$B$6:$JR$65,$I1,136) -> 7869872 | P78: Зачет
A79: 4 | B79: =Предметы!EH5 -> Общая физическая подготовка | D79: 328 час. | E79: ------ | F79: Зачет | G79: 28.04.2018 № 7869873 | I79: 1 | J79: 24 | K79: =Предметы!EH2 -> 4 | L79: =INDEX(Предметы!$B$6:$JR$65,$I1,137) -> 6 | M79: =INDEX(Предметы!$B$6:$JR$65,$I1,138) -> 43218 | N79: 28.04.2018 | O79: =INDEX(Предметы!$B$6:$JR$65,$I1,139) -> 7869873 | P79: Зачет
A80: 4 | B80: =Предметы!EK5 -> Деловые коммуникации | D80: =CONCATENATE(Предметы!EK3," / ",Предметы!EK3/36) -> 72 / 2 | E80: ------ | F80: ------ | I80: 1 | J80: 25 | K80: =Предметы!EK2 -> 4 | L80: =INDEX(Предметы!$B$6:$JR$65,$I1,140) -> 0 | M80: =INDEX(Предметы!$B$6:$JR$65,$I1,141) ->  | O80: =INDEX(Предметы!$B$6:$JR$65,$I1,142) -> 0
A81: 5 | B81: =Предметы!EQ5 -> Философия | D81: =CONCATENATE(Предметы!EQ3," / ",Предметы!EQ3/36) -> 108 / 3 | E81: ------ | F81: ------ | I81: 1 | J81: 26 | K81: =Предметы!EQ2 -> 5 | L81: =INDEX(Предметы!$B$6:$JR$65,$I1,146) -> 0 | M81: =INDEX(Предметы!$B$6:$JR$65,$I1,147) ->  | O81: =INDEX(Предметы!$B$6:$JR$65,$I1,148) -> 0
A82: 5 | B82: =Предметы!ET5 -> Право | D82: =CONCATENATE(Предметы!ET3," / ",Предметы!ET3/36) -> 144 / 4 | E82: ------ | F82: ------ | I82: 1 | J82: 27 | K82: =Предметы!ET2 -> 5 | L82: =INDEX(Предметы!$B$6:$JR$65,$I1,149) -> 0 | M82: =INDEX(Предметы!$B$6:$JR$65,$I1,150) ->  | O82: =INDEX(Предметы!$B$6:$JR$65,$I1,151) -> 0
A83: 5 | B83: =Предметы!EW5 -> Регионалистика | D83: =CONCATENATE(Предметы!EW3," / ",Предметы!EW3/36) -> 144 / 4 | E83: ------ | F83: ------ | I83: 1 | J83: 28 | K83: =Предметы!EW2 -> 5 | L83: =INDEX(Предметы!$B$6:$JR$65,$I1,152) -> 0 | M83: =INDEX(Предметы!$B$6:$JR$65,$I1,153) ->  | O83: =INDEX(Предметы!$B$6:$JR$65,$I1,154) -> 0
A84: 5 | B84: =Предметы!EZ5 -> Информационные технологии и базы данных в бухгалтерском учете | D84: =CONCATENATE(Предметы!EZ3," / ",Предметы!EZ3/36) -> 144 / 4 | E84: ------ | F84: ------ | I84: 1 | J84: 29 | K84: =Предметы!EZ2 -> 5 | L84: =INDEX(Предметы!$B$6:$JR$65,$I1,155) -> 0 | M84: =INDEX(Предметы!$B$6:$JR$65,$I1,156) ->  | O84: =INDEX(Предметы!$B$6:$JR$65,$I1,157) -> 0
A85: 5 | B85: =Предметы!FC5 -> Инструментальные средства программирования бухгалтерских операций | D85: =CONCATENATE(Предметы!FC3," / ",Предметы!FC3/36) -> 216 / 6 | E85: ------ | F85: ------ | I85: 1 | J85: 30 | K85: =Предметы!FC2 -> 5 | L85: =INDEX(Предметы!$B$6:$JR$65,$I1,158) -> 0 | M85: =INDEX(Предметы!$B$6:$JR$65,$I1,159) ->  | O85: =INDEX(Предметы!$B$6:$JR$65,$I1,160) -> 0
A86: 5 | B86: =Предметы!FF5 -> Мировая экономика и международные экономические отношения | D86: =CONCATENATE(Предметы!FF3," / ",Предметы!FF3/36) -> 144 / 4 | E86: ------ | F86: ------ | I86: 1 | J86: 31 | K86: =Предметы!FF2 -> 5 | L86: =INDEX(Предметы!$B$6:$JR$65,$I1,161) -> 0 | M86: =INDEX(Предметы!$B$6:$JR$65,$I1,162) ->  | O86: =INDEX(Предметы!$B$6:$JR$65,$I1,163) -> 0
A87: 6 | B87: =Предметы!FI5 -> Методы оптимальных решений | D87: =CONCATENATE(Предметы!FI3," / ",Предметы!FI3/36) -> 144 / 4 | E87: ------ | F87: ------ | I87: =IF(M87=0,0,1) -> 1 | J87: 32 | K87: =Предметы!FI2 -> 6 | L87: =INDEX(Предметы!$B$6:$JR$65,$I1,164) -> 0 | M87: =INDEX(Предметы!$B$6:$JR$65,$I1,165) ->  | O87: =INDEX(Предметы!$B$6:$JR$65,$I1,166) -> 0
A88: 6 | B88: =Предметы!FL5 -> Методы принятия управленческих решений в сфере бухгалтерского учета | D88: =CONCATENATE(Предметы!FL3," / ",Предметы!FL3/36) -> 72 / 2 | E88: ------ | F88: ------ | I88: 1 | J88: 33 | K88: =Предметы!FL2 -> 6 | L88: =INDEX(Предметы!$B$6:$JR$65,$I1,167) -> 0 | M88: =INDEX(Предметы!$B$6:$JR$65,$I1,168) ->  | O88: =INDEX(Предметы!$B$6:$JR$65,$I1,169) -> 0
A89: 6 | B89: =Предметы!FO5 -> Финансы | D89: =CONCATENATE(Предметы!FO3," / ",Предметы!FO3/36) -> 144 / 4 | E89: ------ | F89: ------ | I89: 1 | J89: 34 | K89: =Предметы!FR2 -> 6 | L89: =INDEX(Предметы!$B$6:$JR$65,$I1,170) -> 0 | M89: =INDEX(Предметы!$B$6:$JR$65,$I1,171) ->  | O89: =INDEX(Предметы!$B$6:$JR$65,$I1,172) -> 0
A90: 6 | B90: =Предметы!FR5 -> Бухгалтерский учет и анализ | D90: =CONCATENATE(Предметы!FR3," / ",Предметы!FR3/36) -> 252 / 7 | E90: ------ | F90: ------ | I90: 1 | J90: 35 | K90: =Предметы!FU2 -> 6 | L90: =INDEX(Предметы!$B$6:$JR$65,$I1,173) -> 0 | M90: =INDEX(Предметы!$B$6:$JR$65,$I1,174) ->  | O90: =INDEX(Предметы!$B$6:$JR$65,$I1,175) -> 0
A91: 6 | B91: =Предметы!FX5 -> Моделирование социально-экономических систем | D91: =CONCATENATE(Предметы!FX3," / ",Предметы!FX3/36) -> 288 / 8 | E91: ------ | F91: ------ | I91: 1 | J91: 36 | K91: =Предметы!GD2 -> 6 | L91: =INDEX(Предметы!$B$6:$JR$65,$I1,179) -> 0 | M91: =INDEX(Предметы!$B$6:$JR$65,$I1,180) ->  | O91: =INDEX(Предметы!$B$6:$JR$65,$I1,181) -> 0
A92: 7 | B92: =Предметы!GG5 -> Корпоративные финансы | D92: =CONCATENATE(Предметы!GG3," / ",Предметы!GG3/36) -> 144 / 4 | E92: ------ | F92: ------ | I92: 1 | J92: 37 | K92: =Предметы!GJ2 -> 7 | L92: =INDEX(Предметы!$B$6:$JR$65,$I1,188) -> 0 | M92: =INDEX(Предметы!$B$6:$JR$65,$I1,189) ->  | O92: =INDEX(Предметы!$B$6:$JR$65,$I1,190) -> 0
A93: 7 | B93: =Предметы!GJ5 -> Бухгалтерский финансовый учет (з) | D93: =CONCATENATE(Предметы!GJ3," / ",Предметы!GJ3/36) -> 160 / 4,44444444444444 | E93: ------ | F93: ------ | I93: 1 | J93: 38 | K93: =Предметы!GM2 -> 7 | L93: =INDEX(Предметы!$B$6:$JR$65,$I1,191) -> 0 | M93: =INDEX(Предметы!$B$6:$JR$65,$I1,192) ->  | O93: =INDEX(Предметы!$B$6:$JR$65,$I1,193) -> 0
A94: 7 | B94: =Предметы!GM5 -> Экономика организаций (предприятий) | D94: =CONCATENATE(Предметы!GM3," / ",Предметы!GM3/36) -> 180 / 5 | E94: ------ | F94: ------ | I94: 1 | J94: 39 | K94: =Предметы!GP2 -> 7 | L94: =INDEX(Предметы!$B$6:$JR$65,$I1,194) -> 0 | M94: =INDEX(Предметы!$B$6:$JR$65,$I1,195) ->  | O94: =INDEX(Предметы!$B$6:$JR$65,$I1,196) -> 0
A95: 7 | B95: =Предметы!GS5 -> Планирование на предприятии | D95: =CONCATENATE(Предметы!GS3," / ",Предметы!GS3/36) -> 144 / 4 | E95: ------ | F95: ------ | I95: 1 | J95: 40 | K95: =Предметы!GS2 -> 7 | L95: =INDEX(Предметы!$B$6:$JR$65,$I1,200) -> 0 | M95: =INDEX(Предметы!$B$6:$JR$65,$I1,201) ->  | O95: =INDEX(Предметы!$B$6:$JR$65,$I1,202) -> 0
A96: 8 | B96: =Предметы!GV5 -> Деньги, кредит, банки | D96: =CONCATENATE(Предметы!GV3," / ",Предметы!GV3/36) -> 144 / 4 | E96: ------ | F96: ------ | I96: 1 | J96: 41 | K96: =Предметы!GY2 -> 8 | L96: =INDEX(Предметы!$B$6:$JR$65,$I1,203) -> 0 | M96: =INDEX(Предметы!$B$6:$JR$65,$I1,204) ->  | O96: =INDEX(Предметы!$B$6:$JR$65,$I1,205) -> 0
A97: 8 | B97: =Предметы!GY5 -> Бухгалтерский финансовый учет | D97: =CONCATENATE(Предметы!GY3," / ",Предметы!GY3/36) -> 200 / 5,55555555555556 | E97: ------ | F97: ------ | I97: 1 | J97: 42 | K97: =Предметы!HB2 -> 8 | L97: =INDEX(Предметы!$B$6:$JR$65,$I1,206) -> 0 | M97: =INDEX(Предметы!$B$6:$JR$65,$I1,207) ->  | O97: =INDEX(Предметы!$B$6:$JR$65,$I1,208) -> 0
A98: 8 | B98: =Предметы!HE5 -> Бухгалтерский управленческий учет | D98: =CONCATENATE(Предметы!HE3," / ",Предметы!HE3/36) -> 180 / 5 | E98: ------ | F98: ------ | I98: 1 | J98: 43 | K98: =Предметы!HE2 -> 8 | L98: =INDEX(Предметы!$B$6:$JR$65,$I1,212) -> 0 | M98: =INDEX(Предметы!$B$6:$JR$65,$I1,213) ->  | O98: =INDEX(Предметы!$B$6:$JR$65,$I1,214) -> 0
A99: 8 | B99: =Предметы!HH5 -> Бухгалтерская (финансовая) отчетность | D99: =CONCATENATE(Предметы!HH3," / ",Предметы!HH3/36) -> 180 / 5 | E99: ------ | F99: ------ | I99: 1 | J99: 44 | K99: =Предметы!HH2 -> 8 | L99: =INDEX(Предметы!$B$6:$JR$65,$I1,215) -> 0 | M99: =INDEX(Предметы!$B$6:$JR$65,$I1,216) ->  | O99: =INDEX(Предметы!$B$6:$JR$65,$I1,217) -> 0
A100: 8 | B100: =Предметы!HK5 -> Аудит | D100: =CONCATENATE(Предметы!HK3," / ",Предметы!HK3/36) -> 144 / 4 | E100: ------ | F100: ------ | I100: 1 | J100: 45 | K100: =Предметы!HK2 -> 8 | L100: =INDEX(Предметы!$B$6:$JR$65,$I1,218) -> 0 | M100: =INDEX(Предметы!$B$6:$JR$65,$I1,219) ->  | O100: =INDEX(Предметы!$B$6:$JR$65,$I1,220) -> 0
A101: 9 | B101: =Предметы!HT5 -> Безопасность жизнедеятельности | D101: =CONCATENATE(Предметы!HT3," / ",Предметы!HT3/36) -> 144 / 4 | E101: ------ | F101: ------ | I101: 1 | J101: 46 | K101: =Предметы!HT2 -> 9 | L101: =INDEX(Предметы!$B$6:$JR$65,$I1,227) -> 0 | M101: =INDEX(Предметы!$B$6:$JR$65,$I1,228) ->  | O101: =INDEX(Предметы!$B$6:$JR$65,$I1,229) -> 0
A102: 9 | B102: =Предметы!HW5 -> Маркетинг | D102: =CONCATENATE(Предметы!HW3," / ",Предметы!HW3/36) -> 108 / 3 | E102: ------ | F102: ------ | I102: 1 | J102: 47 | K102: =Предметы!HW2 -> 9 | L102: =INDEX(Предметы!$B$6:$JR$65,$I1,230) -> 0 | M102: =INDEX(Предметы!$B$6:$JR$65,$I1,231) ->  | O102: =INDEX(Предметы!$B$6:$JR$65,$I1,232) -> 0
A103: 9 | B103: =Предметы!HZ5 -> Макроэкономическое планирование и прогнозирование | D103: =CONCATENATE(Предметы!HZ3," / ",Предметы!HZ3/36) -> 144 / 4 | E103: ------ | F103: ------ | I103: 1 | J103: 48 | K103: =Предметы!HZ2 -> 9 | L103: =INDEX(Предметы!$B$6:$JR$65,$I1,233) -> 0 | M103: =INDEX(Предметы!$B$6:$JR$65,$I1,234) ->  | O103: =INDEX(Предметы!$B$6:$JR$65,$I1,235) -> 0
A104: 9 | B104: =Предметы!IC5 -> Комплексный анализ хозяйственной деятельности | D104: =CONCATENATE(Предметы!IC3," / ",Предметы!IC3/36) -> 144 / 4 | E104: ------ | F104: ------ | I104: 1 | J104: 49 | K104: =Предметы!IC2 -> 9 | L104: =INDEX(Предметы!$B$6:$JR$65,$I1,236) -> 0 | M104: =INDEX(Предметы!$B$6:$JR$65,$I1,237) ->  | O104: =INDEX(Предметы!$B$6:$JR$65,$I1,238) -> 0
A105: 9 | B105: =Предметы!II5 -> Лабораторный практикум по бухгалтерскому учету | D105: =CONCATENATE(Предметы!II3," / ",Предметы!II3/36) -> 144 / 4 | E105: ------ | F105: ------ | I105: 1 | J105: 50 | K105: =Предметы!IF2 -> 9 | L105: =INDEX(Предметы!$B$6:$JR$65,$I1,242) -> 0 | M105: =INDEX(Предметы!$B$6:$JR$65,$I1,243) ->  | O105: =INDEX(Предметы!$B$6:$JR$65,$I1,244) -> 0
A106: 9 | B106: =Предметы!IL5 -> Международные стандарты финансовой отчетности | D106: =CONCATENATE(Предметы!IL3," / ",Предметы!IL3/36) -> 108 / 3 | E106: ------ | F106: ------ | I106: 1 | J106: 51 | K106: =Предметы!IL2 -> 9 | L106: =INDEX(Предметы!$B$6:$JR$65,$I1,245) -> 0 | M106: =INDEX(Предметы!$B$6:$JR$65,$I1,246) ->  | O106: =INDEX(Предметы!$B$6:$JR$65,$I1,247) -> 0
A107: 9 | B107: =Предметы!IO5 -> Бухгалтерский учет на предприятиях малого бизнеса | D107: =CONCATENATE(Предметы!IO3," / ",Предметы!IO3/36) -> 180 / 5 | E107: ------ | F107: ------ | I107: 1 | J107: 52 | K107: =Предметы!IO2 -> 9 | L107: =INDEX(Предметы!$B$6:$JR$65,$I1,248) -> 0 | M107: =INDEX(Предметы!$B$6:$JR$65,$I1,249) ->  | O107: =INDEX(Предметы!$B$6:$JR$65,$I1,250) -> 0
A108: 9 | B108: =Предметы!IR5 -> Логистика | D108: =CONCATENATE(Предметы!IR3," / ",Предметы!IR3/36) -> 180 / 5 | E108: ------ | F108: ------ | I108: 1 | J108: 53 | K108: =Предметы!IR2 -> 9 | L108: =INDEX(Предметы!$B$6:$JR$65,$I1,251) -> 0 | M108: =INDEX(Предметы!$B$6:$JR$65,$I1,252) ->  | O108: =INDEX(Предметы!$B$6:$JR$65,$I1,253) -> 0
A109: 9 | B109: =Предметы!IU5 -> Налоги и налогообложение | D109: =CONCATENATE(Предметы!IU3," / ",Предметы!IU3/36) -> 108 / 3 | E109: ------ | F109: ------ | I109: 1 | J109: 54 | K109: =Предметы!IU2 -> 9 | L109: =INDEX(Предметы!$B$6:$JR$65,$I1,254) -> 0 | M109: =INDEX(Предметы!$B$6:$JR$65,$I1,255) ->  | O109: =INDEX(Предметы!$B$6:$JR$65,$I1,256) -> 0
A110: 9 | B110: =Предметы!IX5 -> Анализ финансовой отчетности | D110: =CONCATENATE(Предметы!IX3," / ",Предметы!IX3/36) -> 108 / 3 | E110: ------ | F110: ------ | I110: 1 | J110: 55 | K110: =Предметы!IX2 -> 9 | L110: =INDEX(Предметы!$B$6:$JR$65,$I1,257) -> 0 | M110: =INDEX(Предметы!$B$6:$JR$65,$I1,258) ->  | O110: =INDEX(Предметы!$B$6:$JR$65,$I1,259) -> 0
A111: 9 | B111: =Предметы!JA5 -> Практикум 1С:Бухгалтерия | D111: =CONCATENATE(Предметы!JA3," / ",Предметы!JA3/36) -> 72 / 2 | E111: ------ | F111: ------ | I111: 1 | J111: 56 | K111: =Предметы!JA2 -> 9 | L111: =INDEX(Предметы!$B$6:$JR$65,$I1,260) -> 0 | M111: =INDEX(Предметы!$B$6:$JR$65,$I1,261) ->  | O111: =INDEX(Предметы!$B$6:$JR$65,$I1,262) -> 0
A112: 0 | E112: ------ | F112: ------ | G112: ------ | I112: =IF(M112=0,0,1) -> 0 | J112: 57 | N112: 00.01.1900
A113: 0 | E113: ------ | F113: ------ | G113: ------ | I113: 0 | J113: 58 | N113: 00.01.1900
A114: 0 | E114: ------ | F114: ------ | G114: ------ | I114: 0 | J114: 59 | N114: 00.01.1900
A115: 0 | E115: ------ | F115: ------ | G115: ------ | I115: 0 | J115: 60 | N115: 00.01.1900
A116: 0 | E116: ------ | F116: ------ | G116: ------ | I116: 0 | J116: 61 | L116: =INDIRECT(ADDRESS(J116,$J$59*3+4,,,"Предметы")) ->  | N116: 00.01.1900
A117: 0 | E117: ------ | F117: ------ | G117: ------ | I117: 0 | J117: 62 | N117: 00.01.1900
A118: 0 | E118: ------ | F118: ------ | G118: ------ | I118: 0 | J118: 63 | L118: 0 | N118: 00.01.1900
A119: 0 | E119: ------ | F119: ------ | G119: ------ | I119: 0 | J119: 64 | N119: 00.01.1900
A120: 0 | E120: ------ | F120: ------ | G120: ------ | I120: 0 | J120: 65 | L120: 0 | N120: 00.01.1900
A121: 0 | E121: ------ | F121: ------ | G121: ------ | I121: 0 | J121: 66 | L121: 0 | N121: 00.01.1900
A122: 0 | E122: ------ | F122: ------ | G122: ------ | I122: 0 | J122: 67 | L122: 0 | N122: 00.01.1900
A123: 0 | E123: ------ | F123: ------ | G123: ------ | I123: 0 | J123: 68 | L123: 0 | N123: 00.01.1900
A124: 0 | E124: ------ | F124: ------ | G124: ------ | I124: 0 | J124: 69 | L124: =INDIRECT(ADDRESS(J124,$J$59*3+4,,,"Предметы")) -> 0 | N124: 00.01.1900
A125: =K125 -> 0 | E125: =IF(AND(L125>2, L125<6),P125,"------") -> ------ | F125: =IF(M125=0,"------",IF(L125=6,P125,"------")) -> ------ | G125: =CONCATENATE(IF(M125=0,"------",N125)," ",IF(O125=0,"",CONCATENATE("№ ",O125))) -> ------ | I125: =IF(M125=0,0,1) -> 0 | J125: 70 | L125: 0 | N125: =TEXT(M125,"ДД.ММ.ГГГГ") -> 00.01.1900 | P125: =CHOOSE(L125,$O$1,$O$2,$O$3,$O$4,$O$5,$O$6) -> 
A126: 0 | E126: ------ | F126: ------ | G126: ------ | I126: 0 | J126: =J125+1 -> 71 | L126: 0 | N126: 00.01.1900
A127: 0 | E127: ------ | F127: ------ | G127: ------ | I127: 0 | J127: 72 | L127: 0 | N127: 00.01.1900
A128: 0 | E128: ------ | F128: ------ | G128: ------ | I128: 0 | J128: 73 | L128: 0 | N128: 00.01.1900
A129: 0 | E129: ------ | F129: ------ | G129: ------ | I129: 0 | J129: 74 | L129: 0 | N129: 00.01.1900
A130: 0 | E130: ------ | F130: ------ | G130: ------ | I130: 0 | J130: 75 | L130: 0 | N130: 00.01.1900
A131: 0 | E131: ------ | F131: ------ | G131: ------ | I131: 0 | J131: 76 | L131: 0 | N131: 00.01.1900
A132: 0 | E132: ------ | F132: ------ | G132: ------ | I132: 0 | J132: 77 | L132: 0 | N132: 00.01.1900
A133: 0 | E133: ------ | F133: ------ | G133: ------ | I133: 0 | J133: 78 | L133: 0 | N133: 00.01.1900
A134: 0 | E134: ------ | F134: ------ | G134: ------ | I134: 0 | J134: 79 | L134: 0 | N134: 00.01.1900
A135: 0 | E135: ------ | F135: ------ | G135: ------ | I135: 0 | J135: 80 | L135: 0 | N135: 00.01.1900
A136: 0 | E136: ------ | F136: ------ | G136: ------ | I136: 0 | J136: 81 | L136: 0 | N136: 00.01.1900
A137: 0 | E137: ------ | F137: ------ | G137: ------ | I137: 0 | J137: 82 | L137: 0 | N137: 00.01.1900
A138: 0 | E138: ------ | F138: ------ | G138: ------ | I138: 0 | J138: 83 | L138: 0 | N138: 00.01.1900
A139: 0 | E139: ------ | F139: ------ | G139: ------ | I139: 0 | J139: =J138+1 -> 84 | L139: 0 | N139: 00.01.1900
A140: 0 | E140: ------ | F140: ------ | G140: ------ | I140: 0 | J140: 85 | L140: 0 | N140: 00.01.1900
A141: 0 | E141: ------ | F141: ------ | G141: ------ | I141: 0 | J141: 86 | L141: 0 | N141: 00.01.1900
A142: 0 | E142: ------ | F142: ------ | G142: ------ | I142: 0 | J142: 87 | L142: 0 | N142: 00.01.1900
A143: 0 | E143: ------ | F143: ------ | G143: ------ | I143: 0 | J143: 88 | L143: 0 | N143: 00.01.1900
A144: 0 | E144: ------ | F144: ------ | G144: ------ | I144: 0 | J144: 89 | L144: 0 | N144: 00.01.1900
A145: 0 | E145: ------ | F145: ------ | G145: ------ | I145: 0 | J145: 90 | L145: 0 | N145: 00.01.1900
A146: 0 | E146: ------ | F146: ------ | G146: ------ | I146: 0 | J146: 91 | L146: 0 | N146: 00.01.1900
A147: 0 | E147: ------ | F147: ------ | G147: ------ | I147: 0 | J147: 92 | L147: 0 | N147: 00.01.1900
A148: 0 | E148: =IF(AND(L148>2, L148<6),P148,"------") -> ------ | F148: =IF(M148=0,"------",IF(L148=6,P148,"------")) -> ------ | G148: ------ | I148: 0 | J148: 93 | L148: 0 | N148: 00.01.1900
A149: 0 | E149: =IF(AND(L149>2, L149<6),P149,"------") -> ------ | F149: =IF(M149=0,"------",IF(L149=6,P149,"------")) -> ------ | G149: ------ | I149: 0 | J149: 94 | L149: 0 | N149: 00.01.1900
A150: 0 | E150: ------ | F150: ------ | G150: ------ | I150: 0 | J150: 95 | L150: 0 | N150: 00.01.1900
A151: 0 | E151: ------ | F151: ------ | G151: ------ | I151: 0 | J151: 96 | L151: 0 | N151: 00.01.1900
A152: 0 | E152: ------ | F152: ------ | G152: ------ | I152: 0 | J152: 97 | L152: 0 | N152: 00.01.1900
A153: 0 | E153: ------ | F153: ------ | G153: ------ | I153: 0 | J153: 98 | L153: 0 | N153: 00.01.1900
A154: 0 | E154: ------ | F154: ------ | G154: ------ | I154: 0 | J154: 99 | L154: 0 | N154: 00.01.1900
A155: 0 | E155: ------ | F155: ------ | G155: ------ | I155: 0 | J155: 100 | L155: 0 | N155: 00.01.1900
A156: 0 | E156: ------ | F156: ------ | G156: ------ | I156: 0 | J156: 101 | L156: 0 | N156: 00.01.1900
A157: 0 | E157: ------ | F157: ------ | G157: ------ | I157: 0 | J157: 102 | L157: 0 | N157: 00.01.1900
A158: 0 | E158: ------ | F158: ------ | G158: ------ | I158: 0 | J158: 103 | L158: 0 | N158: 00.01.1900
A159: 0 | E159: ------ | F159: ------ | G159: ------ | I159: 0 | J159: 104 | L159: 0 | N159: 00.01.1900
I160: 1
A161: =A58+I58 -> 19 | B161: Курсовые работы | I161: 1
A162: Семестры | B162: Название дисциплины | C162: Тема курсовой работы | F162: Оценка | G162: Дата сдачи | I162: 1
A163: =K163 -> 6 | B163: Моделирование социально-экономических систем | C163: =O163 -> 0 | F163: =IF(L163=0,"------",P163) -> ------ | G163: =IF(M163=0,"------",N163) -> ------ | I163: =IF(M163=0,0,1) -> 0 | J163: 107 | K163: =Предметы!FO2 -> 6 | L163: =INDEX(Предметы!$B$6:$JR$65,$I1,182) -> 0 | M163: =INDEX(Предметы!$B$6:$JR$65,$I1,183) -> 0 | N163: =TEXT(M163,"ДД.ММ.ГГГГ") -> 00.01.1900 | O163: =INDEX(Предметы!$B$6:$JR$65,$I1,184) -> 0 | P163: =CHOOSE(L163,$O$1,$O$2,$O$3,$O$4,$O$5,$O$6) -> 
A164: =K164 -> 6 | B164: Бухгалтерский учет и анализ | C164: =O164 -> 0 | F164: =IF(L164=0,"------",P164) -> ------ | G164: =IF(M164=0,"------",N164) -> ------ | I164: 0 | J164: =J163+1 -> 108 | K164: =Предметы!FX2 -> 6 | L164: =INDEX(Предметы!$B$6:$JR$65,$I1,176) -> 0 | M164: =INDEX(Предметы!$B$6:$JR$65,$I1,177) -> 0 | N164: 00.01.1900 | O164: =INDEX(Предметы!$B$6:$JR$65,$I1,178) -> 0
A165: 7 | B165: Экономика организаций (предприятий) | C165: 0 | F165: ------ | G165: ------ | I165: 0 | J165: 109 | K165: =Предметы!GG2 -> 7 | L165: =INDEX(Предметы!$B$6:$JR$65,$I1,197) -> 0 | M165: =INDEX(Предметы!$B$6:$JR$65,$I1,198) -> 0 | N165: 00.01.1900 | O165: =INDEX(Предметы!$B$6:$JR$65,$I1,199) -> 0
A166: 7 | B166: Бухгалтерский финансовый учет | C166: 0 | F166: ------ | G166: ------ | I166: 0 | J166: 110 | K166: =Предметы!GS2 -> 7 | L166: =INDEX(Предметы!$B$6:$JR$65,$I1,209) -> 0 | M166: =INDEX(Предметы!$B$6:$JR$65,$I1,210) -> 0 | N166: 00.01.1900 | O166: =INDEX(Предметы!$B$6:$JR$65,$I1,211) -> 0
A167: 8 | B167: Аудит | C167: 0 | F167: ------ | G167: ------ | I167: 0 | J167: 111 | K167: =Предметы!HN2 -> 8 | L167: =INDEX(Предметы!$B$6:$JR$65,$I1,221) -> 0 | M167: =INDEX(Предметы!$B$6:$JR$65,$I1,222) -> 0 | N167: 00.01.1900 | O167: =INDEX(Предметы!$B$6:$JR$65,$I1,223) -> 0
A168: 9 | B168: Комплексный анализ хозяйственной деятельности | C168: 0 | F168: ------ | G168: ------ | I168: 0 | J168: 112 | K168: =Предметы!II2 -> 9 | L168: =INDEX(Предметы!$B$6:$JR$65,$I1,239) -> 0 | M168: =INDEX(Предметы!$B$6:$JR$65,$I1,240) -> 0 | N168: 00.01.1900 | O168: =INDEX(Предметы!$B$6:$JR$65,$I1,241) -> 0
A169: 0 | C169: 0 | F169: ------ | G169: ------ | I169: 0 | J169: 113 | N169: 00.01.1900
A170: 0 | C170: 0 | F170: ------ | G170: ------ | I170: 0 | J170: 114 | N170: 00.01.1900
A171: 0 | C171: 0 | F171: ------ | G171: ------ | I171: 0 | J171: 115 | N171: 00.01.1900
A172: 0 | C172: 0 | F172: ------ | G172: ------ | I172: 0 | J172: 116 | N172: 00.01.1900
A173: 0 | C173: 0 | F173: ------ | G173: ------ | I173: 0 | J173: 117 | N173: 00.01.1900
C174: 0 | F174: ------ | G174: ------ | I174: 0 | J174: 118 | N174: 00.01.1900
A175: 13 | C175: 0 | F175: ------ | G175: ------ | I175: 0 | J175: 119 | N175: 00.01.1900
A176: 14 | C176: 0 | F176: ------ | G176: ------ | I176: 0 | J176: 120 | N176: 00.01.1900
A177: 15 | C177: 0 | F177: ------ | G177: ------ | I177: 0 | J177: 121 | N177: 00.01.1900
A178: 16 | C178: 0 | F178: ------ | G178: ------ | I178: 0 | J178: 122 | N178: 00.01.1900
A179: 17 | C179: 0 | F179: ------ | G179: ------ | I179: 0 | J179: 123 | N179: 00.01.1900
A180: 18 | C180: 0 | F180: ------ | G180: ------ | I180: 0 | J180: 124 | N180: 00.01.1900
A181: 19 | C181: 0 | F181: ------ | G181: ------ | I181: 0 | J181: 125 | N181: 00.01.1900
A182: 20 | C182: 0 | F182: ------ | G182: ------ | I182: 0 | J182: 126 | N182: 00.01.1900
I183: 1
A184: =A161+I161 -> 20 | B184: Прохождение практик | I184: 1
A185: Курс | B185: Наименование практики | C185: Место практики | E185: Продолжи- тельность | F185: Оценка | G185: Дата ведомости | I185: 1
A186: =INT(K186/2+0.5) ->  | E186: =IF(Q186=0,"",CONCATENATE(Q186," ",T186)) ->  | F186: =IF(L186=0,"------",P186) -> ------ | G186: =CONCATENATE(IF(M186=0,"------",N186)," ",IF(O186=0,"",CONCATENATE("№ ",O186))) -> ------ | I186: =IF(M186=0,0,1) -> 0 | J186: 129 | L186: =INDIRECT(ADDRESS(J186,$J$59*3+4,,,"Предметы")) -> 0 | M186: =INDIRECT(ADDRESS(J186,$J$59*3+5,,,"Предметы")) -> 0 | N186: =TEXT(M186,"ДД.ММ.ГГГГ") -> 00.01.1900 | O186: =INDIRECT(ADDRESS(J186,$J$59*3+6,,,"Предметы")) -> 0 | P186: =CHOOSE(L186,$O$1,$O$2,$O$3,$O$4,$O$5,$O$6) ->  | R186: 1 | S186: неделя | T186: =CHOOSE(Q186,$S$186,$S$187,$S$188,$S$189,$S$190,$S$191,$S$192,$S$193,$S$194,$S$195) -> 
A187: =INT(K187/2+0.5) -> 2 | B187: Учебная. Практика по получению первичных профессиональных умений и навыков, в том числе первичных умений и навыков научно-исследовательской деятельности | C187: =O187 -> ФГБОУ ВО Костромская ГСХА, кафедра экономической кибернетики | E187: =IF(Q187=0,"",CONCATENATE(Q187," ",T187)) -> 2 недели | F187: =IF(L187=0,"------",P187) -> ------ | G187: =IF(M187=0,"------",N187) ->  | I187: =IF(M187=0,0,1) -> 1 | J187: =J186+1 -> 130 | K187: =Предметы!EN2 -> 4 | L187: =INDEX(Предметы!$B$6:$JR$65,$I1,143) -> 0 | M187: =INDEX(Предметы!$B$6:$JR$65,$I1,144) ->  | O187: =INDEX(Предметы!$B$6:$JR$65,$I1,145) -> ФГБОУ ВО Костромская ГСХА, кафедра экономической кибернетики | P187: =CHOOSE(L187,$O$1,$O$2,$O$3,$O$4,$O$5,$O$6) ->  | Q187: 2 | R187: 2 | S187: недели | T187: =CHOOSE(Q187,$S$186,$S$187,$S$188,$S$189,$S$190,$S$191,$S$192,$S$193,$S$194,$S$195) -> недели
A188: 3 | B188: Производственная. Практика по получению профессиональных умений и опыта профессиональной деятельности | C188: =O188 -> 0 | E188: 2 недели | F188: =IF(L188=0,"------",P188) -> ------ | G188: =IF(M188=0,"------",N188) ->  | I188: 1 | J188: =J187+1 -> 131 | K188: =Предметы!GA2 -> 6 | L188: =INDEX(Предметы!$B$6:$JR$65,$I1,185) -> 0 | M188: =INDEX(Предметы!$B$6:$JR$65,$I1,186) ->  | O188: =INDEX(Предметы!$B$6:$JR$65,$I1,187) -> 0 | Q188: 2 | R188: 3 | S188: недели | T188: недели
A189: 4 | B189: Производственная. Технологическая | C189: 0 | E189: 2 недели | F189: ------ | I189: 1 | J189: 132 | K189: =Предметы!HQ2 -> 8 | L189: =INDEX(Предметы!$B$6:$JR$65,$I1,224) -> 0 | M189: =INDEX(Предметы!$B$6:$JR$65,$I1,225) ->  | O189: =INDEX(Предметы!$B$6:$JR$65,$I1,226) -> 0 | Q189: 2 | R189: 4 | S189: недели | T189: недели
A190: 5 | B190: Научно-исследовательская работа | C190: 0 | E190: 2 недели | F190: ------ | I190: 1 | J190: 133 | K190: =Предметы!JD2 -> 10 | L190: =INDEX(Предметы!$B$6:$JR$65,$I1,263) -> 0 | M190: =INDEX(Предметы!$B$6:$JR$65,$I1,264) ->  | O190: =INDEX(Предметы!$B$6:$JR$65,$I1,265) -> 0 | Q190: 2 | R190: 5 | S190: недель | T190: недели
A191: 5 | B191: Преддипломная | C191: 0 | E191: 2 недели | F191: ------ | I191: 1 | J191: 134 | K191: =Предметы!JG2 -> 10 | L191: =INDEX(Предметы!$B$6:$JR$65,$I1,266) -> 0 | M191: =INDEX(Предметы!$B$6:$JR$65,$I1,267) ->  | O191: =INDEX(Предметы!$B$6:$JR$65,$I1,268) -> 0 | Q191: 2 | R191: 6 | S191: недель | T191: недели
F192: ------ | G192: =CONCATENATE(IF(M192=0,"------",N192)," ",IF(O192=0,"",CONCATENATE("№ ",O192))) -> ------ | I192: 0 | J192: 135 | L192: =INDIRECT(ADDRESS(J192,$J$59*3+4,,,"Предметы")) -> 0 | M192: =INDIRECT(ADDRESS(J192,$J$59*3+5,,,"Предметы")) -> 0 | N192: 00.01.1900 | O192: =INDIRECT(ADDRESS(J192,$J$59*3+6,,,"Предметы")) -> 0 | R192: 7 | S192: недель
F193: =IF(L193=0,"",P193) ->  | G193: =CONCATENATE(IF(M193=0,"",N193)," ",IF(O193=0,"",CONCATENATE("№ ",O193))) ->  | I193: 0 | J193: 136 | L193: 0 | M193: 0 | N193: 00.01.1900 | O193: 0 | R193: 8 | S193: недель
F194: =IF(L194=0,"",P194) ->  | G194: =CONCATENATE(IF(M194=0,"",N194)," ",IF(O194=0,"",CONCATENATE("№ ",O194))) ->  | I194: 0 | J194: 137 | L194: 0 | M194: 0 | N194: 00.01.1900 | O194: 0 | R194: 9 | S194: недель
F195: =IF(L195=0,"",P195) ->  | G195: =CONCATENATE(IF(M195=0,"",N195)," ",IF(O195=0,"",CONCATENATE("№ ",O195))) ->  | I195: 0 | J195: 138 | L195: 0 | M195: 0 | N195: 00.01.1900 | O195: 0 | R195: 10 | S195: недель
I196: 1
B197: И. о. декана факультета ____________________________ Н. А. Середа | I197: 1
I198: 1
B199: Специалист по УМР ________________________ О. В. Сосова | I199: 1 | T199: =CHOOSE(Q199,$S$186,$S$187,$S$188,$S$189,$S$190,$S$191,$S$192,$S$193,$S$194,$S$195) -> 

Sheet !справочники
A1: Муж | B1: 07.02.01 Архитектура | C1: =RIGHT(LEFT(D1,5),2) -> 02 | D1: =LEFT(B1,8) -> 07.02.01 | E1: =RIGHT(B1,LEN(B1)-9) -> Архитектура | O1: Муж | P1: Жен
A2: Жен | B2: 23.02.03 Техническое обслуживание и ремонт автомобильного транспорта | C2: 02 | D2: 23.02.03 | E2: =RIGHT(B2,LEN(B2)-9) -> Техническое обслуживание и ремонт автомобильного транспорта | O2: холост | P2: не замужем
B3: 35.02.15 Кинология | C3: 02 | D3: 35.02.15 | E3: Кинология | O3: женат | P3: замужем
B4: 38.02.01 Экономика и бухгалтерский учет | C4: 02 | D4: 38.02.01 | E4: Экономика и бухгалтерский учет
A5: БАКАЛАВР | B5: 43.02.05 Флористика | C5: 02 | D5: 43.02.05 | E5: Флористика
A6: МАГИСТР | B6: 07.03.01 Архитектура | C6: 03 | D6: 07.03.01 | E6: Архитектура
A7: ИНЖЕНЕР | B7: 08.03.01 Строительство | C7: 03 | D7: 08.03.01 | E7: Строительство
A8: ВЕТЕРИНАРНЫЙ ВРАЧ | B8: 13.03.02 Электроэнергетика и электротехника | C8: 03 | D8: 13.03.02 | E8: Электроэнергетика и электротехника
A9: АРХИТЕКТОР | B9: 23.03.03 Эксплуатация транспортно-технологических машин и комплексов | C9: 03 | D9: 23.03.03 | E9: Эксплуатация транспортно-технологических машин и комплексов
A10: КИНОЛОГ | B10: 35.03.04 Агрономия | C10: 03 | D10: 35.03.04 | E10: Агрономия
A11: ТЕХНИК | B11: 35.03.06 Агроинженерия | C11: 03 | D11: 35.03.06 | E11: Агроинженерия
B12: 36.03.02 Зоотехния | C12: 03 | D12: 36.03.02 | E12: Зоотехния
B13: 38.03.01 Экономика | C13: 03 | D13: 38.03.01 | E13: Экономика
B14: 38.03.02 Менеджмент | C14: 03 | D14: 38.03.02 | E14: Менеджмент
B15: 08.04.01 Строительство | C15: 04 | D15: 08.04.01 | E15: Строительство
B16: 35.04.04 Агрономия | C16: 04 | D16: 35.04.04 | E16: Агрономия
B17: 35.04.06 Агроинженерия | C17: 04 | D17: 35.04.06 | E17: Агроинженерия
B18: 36.04.02 Зоотехния | C18: 04 | D18: 36.04.02 | E18: Зоотехния
B19: 38.04.01 Экономика | C19: 04 | D19: 38.04.01 | E19: Экономика
B20: 38.04.02 Менеджмент | C20: 04 | D20: 38.04.02 | E20: Менеджмент
B21: 23.05.01 Наземные и транспортно-технологические средства | C21: 05 | D21: 23.05.01 | E21: Наземные и транспортно-технологические средства
B22: 36.05.01 Ветеринария | C22: 05 | D22: 36.05.01 | E22: Ветеринария
B23: 06.06.01 Паразитология | C23: 06 | D23: 06.06.01 | E23: Паразитология
B24: 08.06.01 Строительные материалы и изделия | C24: 06 | D24: 08.06.01 | E24: Строительные материалы и изделия
B25: 13.06.01 Тепловые двигатели | C25: 06 | D25: 13.06.01 | E25: Тепловые двигатели
B26: 35.06.01 Общее земледелие, растениеводство | C26: 06 | D26: 35.06.01 | E26: Общее земледелие, растениеводство
B27: 35.06.04 Технологии и средства механизации сельского хозяйства | C27: 06 | D27: 35.06.04 | E27: Технологии и средства механизации сельского хозяйства
B28: 36.06.01 Диагностика болезней и терапия животных, патология, онкология и морфология животных | C28: 06 | D28: 36.06.01 | E28: Диагностика болезней и терапия животных, патология, онкология и морфология животных
B29: 38.06.01 Экономика и управление народным хозяйством | C29: 06 | D29: 38.06.01 | E29: Экономика и управление народным хозяйством
B30: 46.06.01 Отечественная история | C30: 06 | D30: 46.06.01 | E30: Отечественная история
B31: 47.06.01 Этика | C31: 06 | D31: 47.06.01 | E31: Этика
B50: Техник деканата
B51: Специалист по УМР

Sheet Отчисленные
A2: 27 | B2: Сухорукова | C2: Анастасия | D2: Владимировна | E2: =CONCATENATE(B2," ",LEFT(C2,1),". ",LEFT(D2,1),".") -> Сухорукова А. В. | G2: Сухоруковой | H2: Анастасии | I2: Владимировне | J2: 1996-11-24 | K2: г. Кострома | L2: РФ | M2: ж | N2: Вечерняя (общеобразовательная) школа 2 | O2: 2015 | P2: не замужем | Q2: г. Кострома, ул. Комсомольская, д. 30, кв. 3 | Y2: 15823з | Z2: Экономический | AA2: 38.03.10 | AB2: Экономика | AC2: Бухгалтерский учет, анализ и аудит | AD2: 5 лет | AE2: БАКАЛАВР | AF2: 2-557 | AG2: 2015-08-21 | AH2: по договору с полным возмещением затрат | AI2: 000003691 | AJ2: 2015-08-14 | AM2: 2-236 | AN2: 2018-04-02 | AO2: по собственному желанию | AX2: 2-561 | AY2: 2016-09-01 | CA2: 3 | CB2: 235z | CI2: 4 | CJ2: 11.06.2016 | CL2: 6 | CM2: 11.06.2016 | CO2: 3 | CP2: 11.06.2016 | CR2: 3 | CS2: 11.06.2016 | CU2: 4 | CV2: 11.06.2016 | CX2: 4 | CY2: 11.06.2016 | DA2: 6 | DB2: 23.12.2016 | DD2: 6 | DE2: 23.12.2016 | DG2: 4 | DH2: 23.12.2016 | DM2: 6 | DN2: 17.04.2017 | DP2: 3 | DQ2: 22.04.2017 | DS2: 3 | DT2: 22.04.2017 | DY2: 3 | DZ2: 22.04.2017 | EB2: 4 | EC2: 22.04.2017 | EE2: 6 | EF2: 22.04.2017 | EH2: 6 | EI2: 22.04.2017 | EK2: 6 | EL2: 22.04.2017 | EN2: 0 | EQ2: 6 | ER2: 02.12.2017 | ET2: 3 | EU2: 02.12.2017 | EW2: 3 | EX2: 02.12.2017 | FC2: 3 | FD2: 02.12.2017 | FF2: 4 | FG2: 02.12.2017 | JJ2: =(JL2*3+JM2*4+JN2*5)/50 -> 0.96 | JL2: =COUNTIF(CC2:JG2,3) -> 8 | JM2: =COUNTIF(CC2:JG2,4) -> 6 | JN2: =COUNTIF(CC2:JG2,5) -> 0 | JO2: =COUNTIF(CC2:JG2,6) -> 8 | JP2: =SUM(JL2:JN2) -> 14 | JQ2: =SUMIF(CC2:JG2,">0",$CC$3:$JG$3) -> 74 | JR2: =INT(JQ2/8+0.5) -> 9
A3: 17 | B3: Звездунова | C3: Юлия | D3: Владимировна | E3: Звездунова Ю. В. | G3: Звездуновой | H3: Юлии | I3: Владимировне | J3: 1982-06-06 | K3: г. Кострома | L3: РФ | M3: ж | N3: Профессиональный лицей 15 г. Костромы | O3: 1999 | P3: замужем | Q3: г. Кострома, ул. Северной правды, д. 29, кв. 30 | Y3: 14104 | Z3: Экономический | AA3: 38.03.10 | AB3: Экономика | AC3: Бухгалтерский учет, анализ и аудит | AD3: 5 лет | AE3: БАКАЛАВР | AF3: 2-525 | AG3: 2014-08-21 | AH3: по договору с полным возмещением затрат | AI3: 000002787 | AJ3: 2014-08-07 | AS3: 2-335 | AT3: 2017-04-26 | AU3: по семейным обстоятельствам | AV3: 2017-04-21 | AW3: 2018-04-21 | AX3: 2-571 | AY3: 2014-08-21 | AZ3: 2-561 | BA3: 2016-09-01 | CA3: 3 | CB3: 235z | CI3: 3 | CJ3: 01.06.2015 | CL3: 6 | CM3: 02.06.2015 | CO3: 3 | CP3: 02.06.2015 | CR3: 3 | CS3: 06.06.2015 | CU3: 3 | CV3: 30.05.2015 | CX3: 3 | CY3: 05.06.2015 | DA3: 6 | DB3: 23.12.2015 | DG3: 5 | DH3: 26.12.2015 | DM3: 6 | DN3: 23.12.2015 | DP3: 3 | DQ3: 27.04.2016 | DV3: 4 | DW3: 13.04.2016 | DY3: 3 | DZ3: 25.04.2016 | EB3: 4 | EC3: 21.04.2016 | EE3: 6 | EF3: 22.05.2015 | EQ3: 6 | ER3: 01.12.2016 | ET3: 4 | EU3: 01.12.2016 | EW3: 3 | EX3: 01.12.2016 | EZ3: 3 | FA3: 01.12.2016 | FC3: 3 | FD3: 01.12.2016 | FF3: 4 | FG3: 24.11.2016 | HD3: 0 | HP3: 0 | IH3: 0 | JJ3: 1.02 | JL3: 10 | JM3: 4 | JN3: 1 | JO3: 5 | JP3: 15 | JQ3: 81 | JR3: 10
A4: =A3+1 -> 18 | B4: Потёмкин | C4: Денис | D4: Владимирович | E4: Потёмкин Д. В. | G4: Потёмкину | H4: Денису | I4: Владимировичу | J4: 1982-05-10 | K4: п. Караваево Костромского р-на Костромской обл. | L4: РФ | M4: м | N4: МВОУ ВОШ 1 г. Костромы | O4: 2011 | P4: холост | Q4: Костромская обл., Костромской р-н, п. Караваево, ул. Школьная, д. 16, кв. 3 | Y4: 11147 | Z4: Экономический | AA4: 38.03.10 | AB4: Экономика | AC4: Бухгалтерский учет, анализ и аудит | AD4: 5 лет | AE4: БАКАЛАВР | AF4: 2-365 | AG4: 2011-08-12 | AH4: по договору с полным возмещением затрат | AI4: 159-2011 | AJ4: 2011-08-09 | AM4: 2-571 | AN4: 2015-09-01 | AO4: невыполнение учебного плана | AP4: 2-803 | AQ4: 2016-12-26 | AX4: 2-582 | AY4: 2012-08-31 | CA4: 3 | CB4: 237z | CI4: 3 | CJ4: 26.05.2012 | CL4: 6 | CM4: 01.02.2018 | CO4: 3 | CP4: 20.06.2013 | CR4: 3 | CS4: 28.06.2013 | DD4: 6 | DE4: 28.04.2013 | DG4: 3 | DH4: 04.09.2013 | DJ4: 3 | DK4: 11.04.2013 | DM4: 6 | DN4: 20.12.2012 | DP4: 4 | DQ4: 05.09.2013 | EE4: 6 | EF4: 28.08.2013 | EW4: 3 | EX4: 27.06.2014 | FR4: 5 | FS4: 24.06.2014 | HD4: 0 | HP4: 0 | IH4: 0 | JJ4: 0.54 | JL4: 6 | JM4: 1 | JN4: 1 | JO4: 4 | JP4: 8 | JQ4: 38 | JR4: 5
A5: 19 | B5: Мальцева (Максимова) | C5: Юлия | D5: Андреевна | E5: Мальцева (Максимова) Ю. А. | G5: Мальцевой | H5: Юлии | I5: Андреевне | J5: 1998-03-30 | K5: с. Средние Покачи Олюторского р-на Комчатской обл. | L5: РФ | M5: ж | N5: ОГБПОУ Костромской торгово-экономический колледж г. Кострома | O5: 2017 | P5: замужем | Q5: г. Кострома, ул. Голубкова, д.14 а, кв.30 | Y5: 170788 | Z5: Экономический | AA5: 38.03.10 | AB5: Экономика | AC5: Бухгалтерский учет, анализ и аудит | AD5: 5 лет | AE5: БАКАЛАВР | AF5: 2-701 | AG5: 2017-08-31 | AH5: по договору с полным возмещением затрат | AI5: 000004598 | AJ5: 2017-08-25 | CA5: 1 | CB5: 213z | CI5: 5 | CJ5: п/атт. 14.10.2017 | EE5: 6 | EF5: п/атт. 20.10.2017 | EN5: 4 | EO5: п/атт. 24.10.2017 | EQ5: 6 | ER5: п/атт. 31.10.2017 | GD5: 5 | GE5: п/атт. 25.10.2017 | HD5: 0 | HP5: 0 | HQ5: 4 | HR5: п/атт. 26.10.2017 | IH5: 0
A6: 20 | B6: Попова | C6: Ирина | D6: Вадимовна | E6: Попова И. В. | G6: Поповой | H6: Ирине | I6: Вадимовне | J6: 1997-07-27 | K6: д. Починок Солигаличского р-на | L6: РФ | M6: ж | N6: ОГПОУ Костромской торгово-экономический колледж | O6: 2016 | P6: замужем | Q6: г Солигалич, ул. Нагорная, д.63 | Y6: 160519 | Z6: Экономический | AA6: 38.03.01 | AB6: Экономика | AC6: Бухгалтерский учет, анализ и аудит | AD6: 5 лет | AE6: БАКАЛАВР | AF6: 2-539 | AG6: 2016-08-19 | AH6: по договору с полным возмещение затрат | AI6: 000004003 | AJ6: 2016-07-25 | AM6: 2-565 | AN6: 2018-06-25 | AO6: за академическую неуспеваемость | CA6: 2 | CB6: 223z | CI6: 3 | CJ6: п/зач | CL6: 6 | CM6: п/зач | CO6: 3 | CP6: п/зач | CX6: 3 | CY6: п/зач | DA6: 6 | DB6: 23.12.2017 | DD6: 6 | DE6: 23.12.2017 | DJ6: 3 | DK6: 23.12.2017 | DM6: 6 | DN6: п/зач | EB6: 4 | EC6: 28.04.2018 | ED6: 7859483 | EK6: 6 | EL6: 28.04.2018 | EM6: 7859482 | EP6: ФГБОУ ВО Костромская ГСХА, кафедра экономической кибернетики | IH6: 0
A7: 21 | B7: Громова | C7: Юлия | D7: Николаевна | E7: Громова Ю. Н. | G7: Громовой | H7: Юлии | I7: Николаевне | J7: 1991-11-26 | K7: д. Татарское Нерехтского р-на Костромской обл. | L7: РФ | M7: ж | N7: МОУ Лицей 41 города Костромы | O7: 2009 | P7: замужем | Q7: Мурманская обл., Печенгский р-н, жд. ст. Печенка, д. 1, кв. 27 | Y7: 170827 | Z7: Экономический | AA7: 38.03.01 | AB7: Экономика | AC7: Бухгалтерский учет, анализ и аудит | AD7: 5 лет | AE7: БАКАЛАВР | AF7: 2-370 | AG7: 2009-08-12 | AH7: по договору с полным возмещение затрат | AI7: 152 | AJ7: 2009-08-11 | AM7: 2-596 | AN7: 2018-07-03 | AO7: по собственному желанию | AP7: 2-761 | AQ7: 2017-09-27 | CA7: 2 | CB7: 224z | CI7: 3 | CJ7: п/зач 15.11.17 | CL7: 6 | CM7: п/зач 07.11.17 | CO7: 3 | CP7: п/зач 06.11.2017 | CU7: 3 | CV7: п/зач 03.11.2017 | CX7: 4 | CY7: п/зач 17.11.17 | DA7: 6 | DB7: п/зач 02.11.2017 | DD7: 6 | DE7: 2017-12-23 | DF7: 7869528 | DG7: 4 | DH7: 23.12.2017 | DI7: 7869529 | DP7: 3 | DQ7: п/зач 10.11.2017 | DS7: 3 | DT7: п/зач 02.11.2017 | EE7: 6 | EF7: 2018-04-28 | EG7: 7869872 | EH7: 6 | EI7: 2018-04-28 | EJ7: 7869873 | EP7: ФГБОУ ВО Костромская ГСХА, кафедра экономической кибернетики | EQ7: 6 | ER7: п/зач 31.10.2017 | ET7: 6 | EU7: п/зач 31.10.2017 | HT7: 3 | HU7: п/зач 07.11.2017 | IH7: 0 | JJ7: =(JL7*3+JM7*4+JN7*5)/50 -> 0.52 | JL7: =COUNTIF(CC7:JG7,3) -> 6 | JM7: =COUNTIF(CC7:JG7,4) -> 2 | JN7: =COUNTIF(CC7:JG7,5) -> 0 | JO7: =COUNTIF(CC7:JG7,6) -> 7 | JP7: =SUM(JL7:JN7) -> 8 | JQ7: =SUMIF(CC7:JG7,">0",$CC$3:$JG$3) -> 48 | JR7: =INT(JQ7/8+0.5) -> 6

Sheet Для диплома
A2: № п.п. | B2: Фамилия | C2: Имя | D2: Отчество | E2: Пол | F2: день (цифры) дата рождения | G2: месяц (цифры) дата рождения | H2: год (цифры) дата рождения | I2: Год поступления | J2: Отличие (цифра 5) | K2: гражданство (РФ, ближнее, дальнее, без гражданства) | L2: источник финансирования (платно, бюджет, целевое) | M2: Предыдущий документ, год выдачи, (С УКАЗАНИЕМ СТРАНЫ ВЫДАЧИ КРОМЕ РФ) | N2: Примечание | O2: государственный экзамен | P2: Вид выпускной работы (ДП, ДР, МД) | Q2: Тема диплома | R2: выпускная квалификационная работа | S2: № протокола аттестационной комиссии | T2: день (цифры) дата защиты | U2: месяц (цифры) дата защиты | V2: год (цифры) дата защиты | W2: № приказа об отчислении | X2: день (цифры) дата приказа об отчислении | Y2: месяц (цифры) дата приказа об отчислении | Z2: год (цифры) дата приказа об отчислении | AA2: Серия диплома | AB2: № диплома | AC2: Серия приложения к диплому | AD2: № приложения к диплому | AE2: Регистрационный номер | AG2: Моделирование социально-экономических систем | AI2: Бухгалтерский учет и анализ | AK2: Экономика организаций (предприятий) | AM2: Аудит | AO2: Комплексный анализ хозяйственной деятельности | AQ2: Бухгалтерский финансовый учет | AS2: 0 | AU2: 0 | AW2: 0 | AY2: 0 | BA2: 0 | BC2: 0 | BE2: 0 | BG2: 0 | BI2: 0 | BK2: 0 | BM2: 0 | BO2: 0 | BQ2: 0 | BS2: 0 | BV2: Учебная (практика по получению первичных профессиональных умений и навыков, в том | BW2: числе первичных умений и навыков научно-исследовательской деятельности) | BX2: Производственная (научно-исследовательская работа) | BY2: Производственная (практика по получению профессиональных | BZ2: умений и опыта профессиональной деятельности) | CA2: Производственная (технологическая) | CB2: Производственная (преддипломная) | CC2: 0 | CD2: 0 | CE2: 0 | CG2: История | CH2: Философия | CI2: Иностранный язык | CJ2: Право | CK2: Социология | CL2: Психология | CM2: Математический анализ | CN2: Линейная алгебра | CO2: Теория вероятности и математическая статистика | CP2: Методы оптимальных решений | CQ2: Макроэкономика | CR2: Микроэкономика | CS2: Эконометрика | CT2: Статистика | CU2: Безопасность жизнедеятельности | CV2: Финансы | CW2: Бухгалтерский учет и анализ | CX2: Деньги, кредит, банки | CY2: Менеджмент | CZ2: Маркетинг | DA2: Мировая экономика и международные экономические отношения | DB2: Макроэкономическое планирование и прогнозирование | DC2: Корпоративные финансы | DD2: Физическая культура и спорт | DE2: Политология | DF2: Введение в профессию и основы научных исследований | DG2: Информатика и информационное обеспечение бухгалтеского учета | DH2: Информационные технологии и базы данных в бухгалтерском учете | DI2: Методы принятия управленческих решений в сфере бухгалтерского учета | DJ2: Регионалистика | DK2: Бухгалтерский финансовый учет | DL2: Бухгалтерский управленческий учет | DM2: Бухгалтерская (финансовая) отчетность | DN2: Комплексный анализ хозяйственной деятельности | DO2: Аудит | DP2: Лабораторный практикум по бухгалтерскому учету | DQ2: Международные стандарты финансовой отчетности | DR2: Бухгалтерский учет на предприятиях малого бизнеса | DS2: Практикум 1С: Бухгалтерия | DT2: Делопроизводство и документооборот | DU2: Инструментальные средства программирования бухгалтерских операций | DV2: Экономика организаций (предприятий) | DW2: Логистика | DX2: Моделирование социально-экономических систем | DY2: Налоги и налогообложение | DZ2: Планирование на предприятии | EA2: Анализ финансовой отчетности | EB2: Общая физическая подготовка | EC2: =[4]Предметы!$B50 -> 0 | ED2: 0 | EE2: 0 | EF2: 0 | EG2: 0 | EH2: 0 | EI2: 0 | EJ2: 0 | EK2: 0 | EL2: 0 | EM2: 0 | EN2: 0 | EO2: 0 | EP2: 0 | EQ2: 0 | ER2: 0 | ES2: 0 | ET2: 0 | EU2: 0 | EV2: 0 | EW2: 0 | EX2: 0 | EY2: 0 | EZ2: 0 | FA2: 0 | FB2: 0 | FC2: 0 | FD2: 0 | FE2: 0 | FF2: 0 | FG2: 0 | FH2: 0 | FI2: 0 | FJ2: 0 | FK2: 0 | FL2: 0 | FM2: 0 | FN2: 0 | FO2: 0 | FP2: 0 | FQ2: 0 | FR2: 0 | FS2: 0 | FT2: 0 | FU2: 0 | FV2: 0 | FW2: 0 | FX2: 0 | FY2: 0 | FZ2: 0 | GA2: 0 | GB2: 0 | GC2: факультативные дисциплины | GD2: 0 | GE2: 0 | GF2: 0 | GG2: 0 | GH2: 0 | GI2: 0 | GJ2: 0 | GK2: 0 | GL2: 0 | GM2: 0 | GN2: 0 | GO2: 0 | GP2: 0 | GQ2: 0 | GR2: 0
AG3: 1 | AI3: 2 | AK3: 3 | AM3: 4 | AO3: 5 | AQ3: 6 | AS3: 7 | AU3: 8 | AW3: 9 | AY3: 10 | BA3: 11 | BC3: 12 | BE3: 13 | BG3: 14 | BI3: 15 | BK3: 16 | BM3: 17 | BO3: 18 | BQ3: 19 | BS3: 20 | BW3: 3 з.е. | BX3: 3 з.е. | BZ3: 3 з.е. | CA3: 3 з.е. | CB3: 3 з.е. | CG3: 3 з.е. | CH3: 3 з.е. | CI3: 6 з.е. | CJ3: 4 з.е. | CK3: 2 з.е. | CL3: 2 з.е. | CM3: 6 з.е. | CN3: 7 з.е. | CO3: 4 з.е. | CP3: 4 з.е. | CQ3: 8 з.е. | CR3: 6 з.е. | CS3: 5 з.е. | CT3: 6 з.е. | CU3: 4 з.е. | CV3: 4 з.е. | CW3: 7 з.е. | CX3: 4 з.е. | CY3: 4 з.е. | CZ3: 3 з.е. | DA3: 4 з.е. | DB3: 4 з.е. | DC3: 4 з.е. | DD3: 2 з.е. | DE3: 5 з.е. | DF3: 6 з.е. | DG3: 10 з.е. | DH3: 4 з.е. | DI3: 2 з.е. | DJ3: 4 з.е. | DK3: 10 з.е. | DL3: 5 з.е. | DM3: 5 з.е. | DN3: 4 з.е. | DO3: 4 з.е. | DP3: 4 з.е. | DQ3: 3 з.е. | DR3: 5 з.е. | DS3: 2 з.е. | DT3: 3 з.е. | DU3: 6 з.е. | DV3: 5 з.е. | DW3: 5 з.е. | DX3: 8 з.е. | DY3: 3 з.е. | DZ3: 4 з.е. | EA3: 3 з.е. | EB3: 328 час. | EC3: =IF([4]Предметы!$C50=0,CONCATENATE([4]Предметы!$D50," час."),CONCATENATE([4]Предметы!$C50," з.е.")) -> час. | ED3: час. | EE3: час. | EF3: час. | EG3: час. | EH3: час. | EI3: час. | EJ3: час. | EK3: час. | EL3: час. | EM3: час. | EN3: час. | EO3: час. | EP3: час. | EQ3: час. | ER3: час. | ES3: час. | ET3: час. | EU3: час. | EV3: час. | EW3: час. | EX3: час. | EY3: час. | EZ3: час. | FA3: час. | FB3: час. | FC3: час. | FD3: час. | FE3: час. | FF3: час. | FG3: час. | FH3: час. | FI3: час. | FJ3: час. | FK3: час. | FL3: час. | FM3: час. | FN3: час. | FO3: час. | FP3: час. | FQ3: час. | FR3: час. | FS3: час. | FT3: час. | FU3: час. | FV3: час. | FW3: час. | FX3: час. | FY3: час. | FZ3: час. | GA3: час. | GB3: час. | GD3: 0 | GE3: 0 | GF3: 0 | GG3: 0 | GH3: 0 | GI3: 0 | GJ3: 0 | GK3: 0 | GL3: 0 | GM3: 0 | GN3: 0 | GO3: 0 | GP3: 0 | GQ3: 0 | GR3: 0
A4: 6 | B4: =VLOOKUP(A4,Предметы!$A$6:$JI$64,2,FALSE) -> Вахнина | C4: =VLOOKUP(A4,Предметы!$A$6:$JI$64,3) -> Наталья | D4: =VLOOKUP(A4,Предметы!$A$6:$JI$64,4) -> Сергеевна | E4: =VLOOKUP(A4,Предметы!$A$6:$JI$64,13) -> ж | F4: =DAY(VLOOKUP(A4,Предметы!$A$6:$JI$64,10)) -> 21 | G4: =MONTH(VLOOKUP(A4,Предметы!$A$6:$JI$64,10)) -> 9 | H4: =YEAR(VLOOKUP(A4,Предметы!$A$6:$JI$64,10)) -> 1994 | I4: =YEAR(VLOOKUP(A4,Предметы!$A$6:$JI$64,33)) -> 2014 | K4: =VLOOKUP(A4,Предметы!$A$6:$JI$64,12) -> РФ | L4: платно | O4: =VLOOKUP(A4,Предметы!$A$6:$JI$64,66) -> 0 | Q4: =VLOOKUP(A4,Предметы!$A$6:$JI$64,70) -> 0 | R4: ВКР | S4: =VLOOKUP(A4,Предметы!$A$6:$JI$64,72) -> 0 | T4: =DAY(VLOOKUP(A4,Предметы!$A$6:$JI$64,73)) -> 0 | U4: =MONTH(VLOOKUP(A4,Предметы!$A$6:$JI$64,73)) -> 1 | V4: =YEAR(VLOOKUP(A4,Предметы!$A$6:$JI$64,73)) -> 1900 | X4: 29 | Y4: 6 | Z4: 2018 | AA4: 104406 | AB4: 0005647 | AC4: 104406 | AD4: 0012997 | AE4: 35385 | AH4: =VLOOKUP(A4,Предметы!$A$6:$JI$64,183) -> 3 | AJ4: =VLOOKUP(A4,Предметы!$A$6:$JI$64,177) -> 0 | AL4: =VLOOKUP(A4,Предметы!$A$6:$JI$64,198) -> 0 | AN4: =VLOOKUP(A4,Предметы!$A$6:$JI$64,222) -> 0 | AP4: =VLOOKUP(A4,Предметы!$A$6:$JI$64,240) -> 0 | AR4: =VLOOKUP(A4,Предметы!$A$6:$JI$64,210) -> 0 | BW4: =VLOOKUP(A4,Предметы!$A$6:$JI$64,144) -> 0 | BX4: =VLOOKUP(A4,Предметы!$A$6:$JI$64,264) -> 0 | BZ4: =VLOOKUP(A4,Предметы!$A$6:$JI$64,186) -> 0 | CA4: =VLOOKUP(A4,Предметы!$A$6:$JI$64,225) -> 0 | CB4: =VLOOKUP(A4,Предметы!$A$6:$JI$64,267) -> 0 | CG4: =VLOOKUP(A4,Предметы!$A$6:$JI$64,87) -> 4 | CH4: =VLOOKUP(A4,Предметы!$A$6:$JI$64,147) -> 6 | CI4: =VLOOKUP(A4,Предметы!$A$6:$JI$64,123) -> 0 | CJ4: =VLOOKUP(A4,Предметы!$A$6:$JI$64,150) -> 4 | CK4: =VLOOKUP(A4,Предметы!$A$6:$JI$64,108) -> 6 | CL4: =VLOOKUP(A4,Предметы!$A$6:$JI$64,90) -> 6 | CM4: =VLOOKUP(A4,Предметы!$A$6:$JI$64,93) -> 3 | CN4: =VLOOKUP(A4,Предметы!$A$6:$JI$64,96) -> 3 | CO4: =VLOOKUP(A4,Предметы!$A$6:$JI$64,114) -> 3 | CP4: =VLOOKUP(A4,Предметы!$A$6:$JI$64,165) -> 3 | CQ4: =VLOOKUP(A4,Предметы!$A$6:$JI$64,126) -> 4 | CR4: =VLOOKUP(A4,Предметы!$A$6:$JI$64,102) -> 3 | CS4: =VLOOKUP(A4,Предметы!$A$6:$JI$64,120) -> 4 | CT4: =VLOOKUP(A4,Предметы!$A$6:$JI$64,129) -> 3 | CU4: =VLOOKUP(A4,Предметы!$A$6:$JI$64,228) -> 0 | CV4: =VLOOKUP(A4,Предметы!$A$6:$JI$64,171) -> 0 | CW4: =VLOOKUP(A4,Предметы!$A$6:$JI$64,177) -> 0 | CX4: =VLOOKUP(A4,Предметы!$A$6:$JI$64,204) -> 4 | CY4: =VLOOKUP(A4,Предметы!$A$6:$JI$64,132) -> 4 | CZ4: =VLOOKUP(A4,Предметы!$A$6:$JI$64,231) -> 0 | DA4: =VLOOKUP(A4,Предметы!$A$6:$JI$64,162) -> 4 | DB4: =VLOOKUP(A4,Предметы!$A$6:$JI$64,234) -> 0 | DC4: =VLOOKUP(A4,Предметы!$A$6:$JI$64,189) -> 0 | DD4: 6 | DE4: =VLOOKUP(A4,Предметы!$A$6:$JI$64,111) -> 5 | DF4: =VLOOKUP(A4,Предметы!$A$6:$JI$64,84) -> 6 | DG4: =VLOOKUP(A4,Предметы!$A$6:$JI$64,99) -> 4 | DH4: =VLOOKUP(A4,Предметы!$A$6:$JI$64,156) -> 3 | DI4: =VLOOKUP(A4,Предметы!$A$6:$JI$64,168) -> 6 | DJ4: =VLOOKUP(A4,Предметы!$A$6:$JI$64,153) -> 3 | DK4: =VLOOKUP(A4,Предметы!$A$6:$JI$64,207) -> 3 | DL4: =VLOOKUP(A4,Предметы!$A$6:$JI$64,213) -> 4 | DM4: =VLOOKUP(A4,Предметы!$A$6:$JI$64,216) -> 3 | DN4: =VLOOKUP(A4,Предметы!$A$6:$JI$64,240) -> 0 | DO4: =VLOOKUP(A4,Предметы!$A$6:$JI$64,222) -> 0 | DP4: =VLOOKUP(A4,Предметы!$A$6:$JI$64,243) -> 0 | DQ4: =VLOOKUP(A4,Предметы!$A$6:$JI$64,246) -> 0 | DR4: =VLOOKUP(A4,Предметы!$A$6:$JI$64,249) -> 0 | DS4: =VLOOKUP(A4,Предметы!$A$6:$JI$64,261) -> 0 | DT4: =VLOOKUP(A4,Предметы!$A$6:$JI$64,81) -> 0 | DU4: =VLOOKUP(A4,Предметы!$A$6:$JI$64,159) -> 3 | DV4: =VLOOKUP(A4,Предметы!$A$6:$JI$64,198) -> 0 | DW4: =VLOOKUP(A4,Предметы!$A$6:$JI$64,252) -> 0 | DX4: =VLOOKUP(A4,Предметы!$A$6:$JI$64,180) -> 3 | DY4: =VLOOKUP(A4,Предметы!$A$6:$JI$64,255) -> 0 | DZ4: =VLOOKUP(A4,Предметы!$A$6:$JI$64,201) -> 4 | EA4: =VLOOKUP(A4,Предметы!$A$6:$JI$64,258) -> 0 | EB4: 6 | EC4: 6 | GD4: 6
M5: аттестат о среднем (полном) общем образовании, 2012 год

Sheet ВЫПУСКНИКИ БУ 5лет
A1: 1 | B1: Кочетова | C1: Мария | D1: Алексеевна | E1: =CONCATENATE(B1," ",LEFT(C1,1),". ",LEFT(D1,1),".") -> Кочетова М. А. | G1: Кочетовой | H1: Марии | I1: Алексеевне | J1: 1994-07-06 | K1: г. Кострома | L1: РФ | M1: ж | N1: МОУ СОШ 23 г. Кострома | O1: 2011 | P1: не замужем | Q1: г. Кострома, ул. Голубкова, д. 8, кв. 28 | Y1: 13525 | Z1: Экономический | AA1: 38.03.01 | AB1: Экономика | AC1: Бухгалтерский учет, анализ и аудит | AD1: 5 лет | AE1: БАКАЛАВР | AF1: 2-363 | AG1: 2011-08-05 | AH1: по договору с полным возмещение затрат | AI1: 29-2011 | AJ1: 2011-07-13 | AS1: 2-799 | AT1: 2014-12-30 | AU1: по семейным обстоятельствам | AV1: 2015-01-01 | AW1: 2016-12-31 | AX1: 2-590 | AY1: 2012-09-10 | AZ1: 2-592 | BA1: 2013-09-16 | BB1: 2-561 | BC1: 2016-09-01 | BD1: 2-703 | BE1: 2017-09-01 | BJ1: 2-395 | BK1: 2018-05-21 | BL1: Государственный экзамен | BM1: 2018-06-01 | BN1: 3 | BR1: Бухгалтерский учет и анализ предоставления работ, услуг по обслуживанию мостов в ООО «Автомост» г. Кострома | BS1: 4 | BT1: 26 | BU1: 2018-06-27 | BW1: 36224 | BX1: 104406 | BY1: 0018162 | BZ1: 2018-06-29 | CA1: 5 | CB1: 252z | CC1: 4 | CD1: 2017-11-01 | CF1: 6 | CG1: 2017-11-01 | CI1: 4 | CJ1: п/зач | CL1: 6 | CM1: п/зач | CO1: 3 | CP1: п/зач | CR1: 3 | CS1: п/зач | CU1: 3 | CV1: п/зач | CX1: 3 | CY1: п/зач | DA1: 6 | DB1: п/зач | DD1: 6 | DE1: п/зач | DG1: 4 | DH1: п/зач | DJ1: 3 | DK1: п/зач | DM1: 6 | DN1: п/зач | DP1: 3 | DQ1: п/зач | DS1: 3 | DT1: п/зач | DV1: 3 | DW1: п/зач | DY1: 3 | DZ1: п/зач | EB1: 3 | EC1: 09.12.2015 | EE1: 6 | EF1: п/зач | EH1: 6 | EI1: 24.04.2014 | EN1: 3 | EO1: п/зач | EQ1: 6 | ER1: п/зач | ET1: 4 | EU1: п/зач | EW1: 3 | EX1: п/зач | EZ1: 3 | FA1: п/зач | FC1: 3 | FD1: 26.11.2015 | FF1: 4 | FG1: 04.06.2016 | FI1: 4 | FJ1: п/зач | FL1: 6 | FM1: п/зач | FO1: 3 | FP1: п/зач | FR1: 3 | FS1: п/зач | FU1: 3 | FV1: п/зач | FX1: 3 | FY1: п/зач | GA1: 3 | GB1: п/зач | GD1: 4 | GE1: п/зач | GF1: ООО "АВТОМОСТ" г. Кострома | GG1: 3 | GH1: 01.12.2016 | GJ1: 6 | GK1: 19.12.2016 | GM1: 3 | GN1: 10.12.2016 | GP1: 3 | GQ1: 2018-05-15 | GS1: 3 | GT1: п/зач | GV1: 3 | GW1: п/зач | GY1: 3 | GZ1: 11.04.2017 | HB1: 4 | HC1: 2018-05-16 | HE1: 3 | HF1: 11.04.2017 | HH1: 3 | HK1: 5 | HL1: 11.04.2017 | HN1: 3 | HO1: 2015-05-15 | HQ1: 4 | HR1: п/зач | HS1: ООО "АВТОМОСТ" г. Кострома | HT1: 4 | HU1: п/зач | HW1: 3 | HX1: 01.11.2017 | HZ1: 3 | IA1: 01.11.2017 | IC1: 4 | ID1: 01.11.2017 | IF1: 4 | IG1: 2018-05-17 | II1: 3 | IJ1: 2018-05-18 | IK1: 919 | IL1: 3 | IM1: 01.11.2017 | IO1: 3 | IP1: 01.11.2017 | IR1: 5 | IS1: 2017-11-21 | IT1: 210 | IU1: 6 | IV1: 01.11.2017 | IX1: 6 | IY1: 01.11.2017 | JA1: 6 | JB1: 01.11.2017 | JD1: 3 | JE1: 2018-05-18 | JF1: ФГБОУ ВО Костромская ГСХА, кафедра бухгалтерский учет, анализ и аудит | JG1: 3 | JH1: 2018-05-18 | JI1: ООО "Автомост" г. Кострома Костромской обл. | JJ1: =(JL1*3+JM1*4+JN1*5)/50 -> 3.26 | JL1: =COUNTIF(CC1:JG1,3) -> 35 | JM1: =COUNTIF(CC1:JG1,4) -> 12 | JN1: =COUNTIF(CC1:JG1,5) -> 2 | JO1: =COUNTIF(CC1:JG1,6) -> 13 | JP1: =SUM(JL1:JN1) -> 49 | JQ1: =SUMIF(CC1:JG1,">0",$CC$3:$JG$3) -> 216475 | JR1: =INT(JQ1/8+0.5) -> 27059
A2: =A1+1 -> 2 | B2: Чулкова | C2: Анастасия | D2: Леонидовна | E2: Чулкова А. Л. | G2: Чулковой | H2: Анастасии | I2: Леонидовне | J2: 1990-05-06 | K2: п. Караваево Костромского р-на Костромской обл. | L2: РФ | M2: ж | N2: МОУ Караваевская СОШ | O2: 2007 | P2: не замужем | Q2: Костромская обл., Костромской р-н, п. Караваево, ул. Шувалово, д. 24 | Y2: 13129 | Z2: Экономический | AA2: 38.03.01 | AB2: Экономика | AC2: Бухгалтерский учет, анализ и аудит | AD2: 5 лет | AE2: БАКАЛАВР | AF2: 2-552 | AG2: 2013-08-30 | AH2: по договору с полным возмещение затрат | AI2: 000000967 | AJ2: 2013-08-19 | AX2: 2-532 | AY2: 2014-09-01 | AZ2: 2-571 | BA2: 2015-09-01 | BB2: 2-672 | BC2: 2017-08-01 | BD2: 2-339 | BE2: 2018-05-03 | BJ2: 2-395 | BK2: 2018-05-21 | BL2: Государственный экзамен | BM2: 01.06.2018. | BN2: 3 | BR2: Бухгалтерский учет затрат и анализ себестоимости молока в ООО «Сущево» Костромского района Костромской области | BS2: 4 | BT2: 30 | BU2: 2018-06-27 | BW2: 36226 | BX2: 104406 | BY2: 0018164 | BZ2: 2018-06-29 | CA2: 5 | CB2: 252z | CC2: 4 | CD2: 2017-11-01 | CF2: 6 | CG2: 2017-11-01 | CI2: 4 | CJ2: 2014-05-29 | CL2: 6 | CM2: 2014-06-03 | CO2: 3 | CP2: 2018-04-26 | CQ2: 769 | CR2: 4 | CS2: 2014-06-03 | CU2: 5 | CV2: 2014-05-30 | CX2: 3 | CY2: 2015-12-24 | DA2: 6 | DB2: 2014-12-24 | DD2: 6 | DE2: 23.12.2014 | DG2: 5 | DH2: 2014-12-25 | DJ2: 3 | DK2: 2015-06-29 | DM2: 6 | DN2: 2016-06-07 | DP2: 4 | DQ2: 2015-04-27 | DS2: 4 | DT2: 2015-04-23 | DV2: 4 | DW2: 2015-04-21 | DY2: 3 | DZ2: 2018-05-08 | EA2: 803 | EB2: 4 | EC2: 2016-06-07 | EE2: 6 | EF2: 2014-05-21 | EH2: 6 | EI2: 24.04.2014 | EN2: 3 | EO2: 2018-04-28 | EP2: ФГБОУ ВО Костромская ГСХА, кафедра экономической кибернетики | EQ2: 6 | ER2: 2015-11-01 | ET2: 4 | EU2: 2015-12-02 | EW2: 4 | EX2: 2015-11-09 | EZ2: 3 | FA2: 2015-11-27 | FC2: 4 | FD2: 2015-11-26 | FF2: 4 | FG2: 2015-11-23 | FI2: 4 | FJ2: 2016-06-04 | FL2: 6 | FM2: 2016-06-05 | FO2: 3 | FP2: 2018-04-26 | FQ2: 768 | FR2: 3 | FS2: 2018-05-03 | FT2: 733 | FU2: 4 | FV2: 2018-05-03 | FW2: Основы организации и введения бухгалтерского учета на предприятиях | FX2: 5 | FY2: 2016-06-05 | GA2: 3 | GB2: 2018-04-26 | GC2: Оптимизация кормопроизводства сельскохозяйственного предприятия | GD2: 4 | GE2: 2018-05-17 | GF2: ООО "Торговый дом "Кострома" г. Кострома | GG2: 3 | GH2: 2016-12-01 | GJ2: 6 | GK2: 2016-12-10 | GM2: 3 | GN2: 10.12.2016 | GP2: 3 | GQ2: 2018-05-11 | GR2: Формирование и использование прибыли организации (предприятия) | GS2: 4 | GT2: 2018-04-20 | GU2: 708 | GV2: 4 | GW2: 2017-04-11 | GY2: 3 | GZ2: 11.04.2017 | HB2: 3 | HC2: 2018-04-28 | HD2: Учет и анализ денежных средств на предприятии | HE2: 3 | HF2: 11.04.2017 | HH2: 4 | HI2: 11.04.2017 | HK2: 5 | HL2: 11.04.2017 | HN2: 4 | HO2: 2018-05-03 | HP2: Сущность аудита и его место в системе финансового контроля РФ | HQ2: 3 | HR2: 2018-05-17 | HS2: ООО "ГеоСтройизыскания" г. Кострома | HT2: 5 | HU2: 01.11.2017 | HW2: 4 | HX2: 01.11.2017 | HZ2: 3 | IA2: 01.11.2017 | IC2: 4 | ID2: 01.11.2017 | IF2: 4 | IG2: 2018-05-17 | IH2: Анализ финансовых результатов деятельности ООО "Сущёво" Костромского района Костромской области | II2: 3 | IJ2: 01.11.2017 | IL2: 4 | IM2: 01.11.2017 | IO2: 4 | IP2: 01.11.2017 | IR2: 5 | IS2: 01.11.2017 | IU2: 6 | IV2: 01.11.2017 | IX2: 6 | IY2: 01.11.2017 | JA2: 6 | JB2: 01.11.2017 | JD2: 3 | JE2: 2018-05-18 | JF2: ФГБОУ ВО Костромская ГСХА, кафедра бухгалтерский учет, анализ и аудит | JG2: 3 | JH2: 2018-05-18 | JI2: ООО "Сущево" Костромского р-на Костромской обл. | JJ2: =(JL2*3+JM2*4+JN2*5)/50 -> 3.64 | JL2: =COUNTIF(CC2:JG2,3) -> 20 | JM2: =COUNTIF(CC2:JG2,4) -> 23 | JN2: =COUNTIF(CC2:JG2,5) -> 6 | JO2: =COUNTIF(CC2:JG2,6) -> 13 | JP2: =SUM(JL2:JN2) -> 49 | JQ2: =SUMIF(CC2:JG2,">0",$CC$3:$JG$3) -> 300980 | JR2: =INT(JQ2/8+0.5) -> 37623
A3: =A2+1 -> 3 | B3: Гогина | C3: Лидия | D3: Владимировна | E3: Гогина Л. В. | G3: Гогиной | H3: Лидии | I3: Владимировне | J3: 1979-11-27 | K3: п. Караваево Костромского р-на Костромской обл. | L3: РФ | M3: ж | N3: МСШ 7 г. Кострома | O3: 1997 | P3: замужем | Q3: г. Кострома, мкр. Давыдовский 2, д. 69, кв. 28 | Y3: 13111 | Z3: Экономический | AA3: 38.03.01 | AB3: Экономика | AC3: Бухгалтерский учет, анализ и аудит | AD3: 5 лет | AE3: БАКАЛАВР | AF3: 2-522 | AG3: 2013-08-16 | AH3: по договору с полным возмещение затрат | AI3: 000000873 | AJ3: 2013-08-12 | AX3: 2-532 | AY3: 2014-09-01 | AZ3: 2-571 | BA3: 2015-09-01 | BB3: 2-561 | BC3: 2016-09-01 | BD3: 2-703 | BE3: 2017-09-01 | BJ3: 2-395 | BK3: 2018-05-21 | BL3: Государственный экзамен | BM3: 2018-06-01 | BN3: 3 | BR3: Бухгалтерский учет и анализ предоставления услуг по подбору недвижимости в ООО «Строймеханизация» г. Кострома | BS3: 3 | BT3: 25 | BU3: 2018-06-27 | BW3: 36223 | BX3: 104406 | BY3: 0018161 | BZ3: 2018-06-29 | CA3: 5 | CB3: 254z | CC3: 4 | CD3: 2017-11-01 | CF3: 6 | CG3: 2017-11-01 | CI3: 4 | CJ3: 22.01.2014 | CL3: 6 | CM3: 03.02.2014 | CO3: 4 | CP3: 18.06.2014 | CR3: 5 | CS3: 09.04.2014 | CU3: 5 | CV3: 27.06.2014 | CX3: 4 | CY3: 26.06.2014 | DA3: 6 | DB3: 26.06.2014 | DD3: 6 | DE3: 23.12.2014 | DG3: 4 | DH3: 25.12.2014 | DJ3: 4 | DK3: 26.12.2014 | DM3: 6 | DN3: 27.12.2014 | DP3: 4 | DQ3: 27.04.2015 | DS3: 3 | DT3: 15.09.2015 | DV3: 5 | DW3: 21.04.2015 | DY3: 4 | DZ3: 18.04.2015 | EB3: 4 | EC3: 25.04.2015 | EE3: 6 | EF3: 24.04.2014 | EH3: 6 | EI3: 24.04.2014 | EN3: 5 | EO3: 2016-09-09 | EP3: ФГБОУ ВО Костромская ГСХА, кафедра "Экономическая кибернетика" | EQ3: 6 | ER3: 03.12.2015 | ET3: 4 | EU3: 02.12.2015 | EW3: 5 | EX3: 06.12.2015 | EZ3: 3 | FA3: 29.08.2016 | FC3: 3 | FD3: 12.09.2016 | FF3: 5 | FG3: 31.08.2016 | FI3: 4 | FJ3: 05.06.2016 | FL3: 6 | FM3: 05.06.2016 | FO3: 5 | FP3: 04.06.2016 | FR3: 5 | FS3: 04.06.2016 | FU3: 3 | FV3: 11.04.2017 | FW3: История развития бухгалтерского учёта | FX3: 3 | FY3: 04.06.2016 | GA3: 4 | GB3: 06.09.2016 | GC3: Оптимизация рационов кормления птицы | GD3: 4 | GE3: 2016-08-31 | GF3: ООО Строймеханизация г. Кострома | GG3: 4 | GH3: 10.12.2016 | GJ3: 6 | GK3: 10.12.2016 | GM3: 5 | GN3: 10.12.2016 | GP3: 4 | GQ3: 18.10.2017 | GR3: Себестоимость и рентабельностьпроизводства продукции растениеводства | GS3: 4 | GT3: 10.12.2016 | GV3: 5 | GW3: 11.04.2017 | GY3: 4 | GZ3: 11.04.2017 | HB3: 4 | HC3: 11.04.2017 | HD3: Организация бухгалтерского учета | HE3: 5 | HF3: 11.04.2017 | HH3: 4 | HI3: 11.04.2017 | HK3: 5 | HL3: 11.04.2017 | HN3: 4 | HO3: 04.06.2016 | HP3: Сущность аудита и его место в системе финансового контроля РФ | HQ3: 5 | HR3: 2017-08-31 | HS3: ООО "Строймеханизация" г. Кострома | HT3: 4 | HU3: 2018-05-15 | HV3: 838 | HW3: 5 | HX3: 2017-11-01 | HY3: Z-7679486 | HZ3: 4 | IA3: 2018-04-17 | IB3: 671 | IC3: 5 | ID3: 2017-11-01 | IE3: Z-7679523 | IF3: 4 | IG3: 2018-05-04 | IH3: анализ себестоимости продукции растениеводства в предприятии | II3: 3 | IJ3: 1900-01-04 | IK3: 664 | IL3: 4 | IM3: 2018-04-16 | IN3: 667 | IO3: 4 | IP3: 2017-11-01 | IQ3: Z-7679503 | IR3: 5 | IS3: 2017-11-01 | IT3: Z-7679715 | IU3: 6 | IV3: 2017-11-01 | IW3: Z-7679564 | IX3: 6 | IY3: 2017-11-01 | IZ3: Z-7679562 | JA3: 6 | JB3: 2018-03-16 | JC3: 546 | JD3: 4 | JE3: 2018-03-20 | JF3: ФГБОУ ВО Костромская ГСХА, кафедра бухгалтерский учет, анализ и аудит | JG3: 4 | JH3: 2018-03-31 | JI3: ООО "Строймеханизация" г. Кострома Костромской обл. | JJ3: =(JL3*3+JM3*4+JN3*5)/50 -> 4.2 | JL3: =COUNTIF(CC3:JG3,3) -> 6 | JM3: =COUNTIF(CC3:JG3,4) -> 28 | JN3: =COUNTIF(CC3:JG3,5) -> 16 | JO3: =COUNTIF(CC3:JG3,6) -> 13 | JP3: =SUM(JL3:JN3) -> 50 | JQ3: =SUMIF(CC3:JG3,">0",$CC$3:$JG$3) -> 735433 | JR3: =INT(JQ3/8+0.5) -> 91929
A4: 4 | B4: Судзиловская (Калашникова) | C4: Ксения | D4: Игоревна | E4: Судзиловская (Калашникова) К. И. | G4: Судзиловской | H4: Ксении | I4: Игоревне | J4: 1995-03-03 | K4: г. Кострома | L4: РФ | M4: ж | N4: МБОУ "Средняя общеообразовательная школа 7" города Костромы | O4: 2013 | P4: замужем | Q4: г. Кострома, Кинешемское шоссе, д. 15, кв. 181 | Y4: 13130 | Z4: Экономический | AA4: 38.03.01 | AB4: Экономика | AC4: Бухгалтерский учет, анализ и аудит | AD4: 5 лет | AE4: БАКАЛАВР | AF4: 2-552 | AG4: 2013-08-30 | AH4: по договору с полным возмещение затрат | AI4: 000000924 | AJ4: 2013-08-16 | AX4: 2-532 | AY4: 2014-09-01 | AZ4: 2-571 | BA4: 2015-09-01 | BB4: 2-561 | BC4: 2016-09-01 | BD4: 2-339 | BE4: 2018-05-03 | BJ4: 2-395 | BK4: 2018-05-21 | BL4: Государственный экзамен | BM4: 2018-06-01 | BN4: 3 | BR4: Бухгалтерский учет и анализ эффективности использования основных средств в ЗАО «Птицефабрика «Костромская» Костромского района Костромской области | BS4: 3 | BT4: 29 | BU4: 2018-06-27 | BW4: 36225 | BX4: 104406 | BY4: 0018163 | BZ4: 2018-06-29 | CA4: 5 | CB4: 254z | CC4: 4 | CD4: 2017-11-01 | CF4: 6 | CG4: 2017-11-01 | CI4: 4 | CJ4: 21.12.2013 | CL4: 6 | CM4: 16.01.2014 | CO4: 4 | CP4: 18.06.2014 | CR4: 4 | CS4: 20.12.2013 | CU4: 4 | CV4: 27.06.2014 | CX4: 4 | CY4: 26.06.2014 | DA4: 6 | DB4: 24.12.2014 | DD4: 6 | DE4: 23.12.2014 | DG4: 4 | DH4: 25.12.2014 | DJ4: 4 | DK4: 26.12.2014 | DM4: 6 | DN4: 27.12.2014 | DP4: 4 | DQ4: 27.04.2015 | DS4: 4 | DT4: 23.04.2015 | DV4: 3 | DW4: 01.07.2016 | DY4: 4 | DZ4: 18.04.2015 | EB4: 3 | EC4: 25.04.2015 | EE4: 6 | EF4: 24.04.2014 | EH4: 6 | EI4: 24.04.2014 | EN4: 5 | EO4: 2016-09-09 | EP4: ФГБОУ ВО Костромская ГСХА, кафедра экономической кибернетики | EQ4: 6 | ER4: 03.12.2015 | ET4: 3 | EU4: 28.06.2016 | EW4: 4 | EX4: 31.08.2016 | EZ4: 3 | FA4: 22.09.2016 | FC4: 4 | FD4: 28.01.2016 | FF4: 4 | FG4: 31.08.2016 | FI4: 3 | FJ4: 30.12.2016 | FL4: 6 | FM4: 13.09.2016 | FO4: 4 | FP4: 04.06.2016 | FR4: 4 | FS4: 04.06.2016 | FU4: 4 | FV4: 28.06.2016 | FW4: Основные направления и перспективы развития бухгалтерского учёта в РФ | FX4: 3 | FY4: 04.06.2016 | GA4: 4 | GB4: 04.06.2016 | GC4: Оптимизация распределения заготовленных кормов | GD4: 4 | GE4: 2018-03-15 | GF4: ЗАО "Птицефабрика Костромская" Костромского р-на Костромской обл. | GG4: 4 | GH4: 10.12.2016 | GJ4: 6 | GK4: 2018-05-10 | GL4: 814 | GM4: 4 | GN4: 2018-04-10 | GO4: 621 | GP4: 3 | GQ4: 18.10.2017 | GR4: Финансовые ресурсы организации (предприятия) и эффективность их использования | GS4: 5 | GT4: 18.12.2017 | GV4: 5 | GW4: 11.04.2017 | GY4: 3 | GZ4: 2018-05-10 | HA4: 815 | HB4: 4 | HC4: 2018-05-10 | HD4: Учет производственных запасов в организации | HE4: 5 | HF4: 18.09.2017 | HH4: 3 | HI4: 11.04.2017 | HK4: 4 | HL4: 05.09.2017 | HN4: 4 | HO4: 2018-04-27 | HP4: Сущность аудита и его место в системе финансового контроля Российской Федерации | HQ4: 4 | HR4: 2018-04-28 | HS4: ЗАО "Птицефабрика Костромская" Костромской р-на Костромская обл. | HT4: 3 | HU4: 2018-05-15 | HV4: 839 | HW4: 5 | HX4: 2017-11-01 | HY4: Z-7679486 | HZ4: 3 | IA4: 2017-11-01 | IB4: Z-7679713 | IC4: 5 | ID4: 2017-11-01 | IE4: Z-7679523 | IF4: 4 | IG4: 2018-05-16 | IH4: Анализ финансовых результатов деятельности ЗАО Птицефабрика "костромская" | II4: 4 | IJ4: 2017-11-01 | IK4: Z-7679506 | IL4: 5 | IM4: 2017-11-01 | IN4: Z-7679507 | IO4: 4 | IP4: 2017-11-01 | IQ4: Z-7679503 | IR4: 4 | IS4: 2018-04-24 | IT4: 758 | IU4: 6 | IV4: 2017-11-01 | IW4: Z-7679564 | IX4: 6 | IY4: 2017-11-01 | IZ4: Z-7679562 | JA4: 6 | JB4: 2018-05-03 | JC4: 741 | JD4: 4 | JE4: 2018-05-04 | JF4: ФГБОУ ВО Костромская ГСХА, кафедра бухгалтерский учет, анализ и аудит | JG4: 4 | JH4: 2018-05-04 | JI4: ЗАО "Птицефабрика "Костромская" Костромского р-на Костромской обл. | JJ4: 3.84 | JL4: 11 | JM4: 31 | JN4: 7 | JO4: 13 | JP4: 49 | JQ4: 733431 | JR4: 91679
